Workbook

Sheet Interfaz
C5: POBLACIÓN ASIGNADA SEGÚN CENSOS INEI - RENIEC - PN - CNV - 2023
C10: RED INTEGRADA DE SALUD HUAURA OYÓN
A22: Elaboración: Área de Estadística - RIS Huaura Oyón.
A23: NOTA: LA POBLACION ESTIMADA DE EDADES SIMPLES Y GRUPOS DE EDAD DE DISTRITOS, CORRESPONDEN A CIFRAS REFERENCIALES HASTA OBTENER LAS CIFRAS DE LAS PROYECCIONES DEL INEI
A26: OFICINA DE GESTION DE LA INFORMACIÓN - MINISTERIO DE SALUD
R27: Versión1.030

Sheet Poblacion
C1: 1 | D1: 2 | E1: 3 | F1: 4 | G1: 5 | H1: 6 | I1: 7 | J1: 8 | K1: 9 | L1: 10 | M1: 11 | N1: 12 | O1: 13 | P1: 14 | Q1: 15 | R1: 16 | S1: 17 | T1: 18 | U1: 19 | V1: 20 | W1: 21 | X1: 22 | Y1: 23 | Z1: 24 | AA1: 25 | AB1: 26 | AC1: 27 | AD1: 28 | AE1: 29 | AF1: 30 | AG1: 31 | AH1: 32 | AI1: 33 | AJ1: 34 | AK1: 35 | AL1: 36 | AM1: 37 | AN1: 38 | AO1: 39 | AP1: 40 | AQ1: 41 | AR1: 42 | AS1: 43 | AT1: 44 | AU1: 45 | AV1: 46 | AW1: 47 | AX1: 48 | AY1: 49 | AZ1: 50 | BA1: 51 | BB1: 52 | BC1: 53 | BD1: 54 | BE1: 55 | BF1: 56 | BG1: 57 | BH1: 58 | BI1: 59 | BJ1: 60 | BK1: 61 | BL1: 62 | BM1: 63 | BN1: 64 | BO1: 65 | BP1: 66 | BQ1: 67 | BR1: 68 | BS1: 69 | BT1: 70 | BU1: 71 | BV1: 72 | BW1: 73 | BX1: 74 | BY1: 75 | BZ1: 76 | CA1: 77 | CB1: 78 | CC1: 79 | CD1: 80 | CE1: 81 | CF1: 82 | CG1: 83 | CH1: 84 | CI1: 85 | CJ1: 86 | CK1: 87 | CL1: 88 | CM1: 89 | CN1: 90 | CO1: 91 | CP1: 92 | CQ1: 93 | CR1: 94 | CS1: 95 | CT1: 96 | CU1: 97 | CV1: 98 | CZ1: 77 | DA1: 78 | DB1: 79 | DC1: 80 | DD1: 81 | DE1: 82 | DF1: 83 | DG1: 84 | DH1: 85 | DI1: 86 | DJ1: 87 | DK1: 88 | DL1: 89 | DM1: 90 | DN1: 91 | DO1: 92 | DP1: 93 | DQ1: 94 | DR1: 95 | DS1: 96 | DT1: 97 | DU1: 98 | DV1: 99 | DW1: 106 | DX1: 107 | DY1: 108 | DZ1: 109 | EA1: 110 | EB1: 111
AE2: POBLACIÓN ESTIMADA POR GRUPOS DE EDAD, SEGÚN PROVINCIAS DISTRITOS Y ESTABLECIMIENTOS DE SALUD
AE3: RED INTEGRADA DE SALUD HUAURA OYON - AÑO 2023 | CP3: MAS GRUPOS DE EDAD
AE4: EDADES PUNTUALES Y GRUPOS DE EDAD
C5: N° | E5: DIRECCION DE SALUD | F5: TOTAL GENERAL | H5: TOTAL MASCULINO | I5: TOTAL FEMENINO | K5: EDAD | M5: EDAD | O5: EDAD | Q5: EDAD | S5: EDAD | U5: EDAD | W5: EDAD | Y5: EDAD | AA5: EDAD | AC5: EDAD | AE5: EDAD | AG5: EDAD | AI5: EDAD | AK5: EDAD | AM5: EDAD | AO5: EDAD | AQ5: EDAD | AS5: EDAD | AU5: EDAD | AW5: EDAD | AY5: EDAD | BA5: EDAD | BC5: EDAD | BE5: EDAD | BG5: EDAD | BI5: EDAD | BK5: EDAD | BM5: EDAD | BO5: EDAD | BQ5: EDAD | BS5: EDAD | BU5: EDAD | BW5: EDAD | BY5: EDADES ESPECIALES | CD5: NACIMIENTOS | CE5: POBLACION FEMENINA TOTAL | CF5: POBLACION FEMENINA | CI5: GESTANTES ESPERADAS | CK5: menor de 1 Año | CL5: Pre escolar (1-4) | CM5: Niño (0 - 11) | CN5: Escolar (05 - 17) | CO5: Adolescente (12 - 17) | CP5: Adulto Joven (18 - 29) | CQ5: Adulto (30-59) | CR5: Adu.Mayor (60 a MAS) | CT5: Escolar (05 - 09) | CU5: Adolescente (10 - 19) | CV5: Adulto (20-59)
A6: UBIGEO | E6: PROVINCIA | K6: 0 | M6: 1 | O6: 2 | Q6: 3 | S6: 4 | U6: 5 | W6: 6 | Y6: 7 | AA6: 8 | AC6: 9 | AE6: 10 | AG6: 11 | AI6: 12 | AK6: 13 | AM6: 14 | AO6: 15 | AQ6: 16 | AS6: 17 | AU6: 18 | AW6: 19 | AY6: 20 - 24 | BA6: 25 - 29 | BC6: 30 - 34 | BE6: 35 - 39 | BG6: 40 - 44 | BI6: 45 - 49 | BK6: 50 - 54 | BM6: 55 - 59 | BO6: 60 - 64 | BQ6: 65 - 69 | BS6: 70- 74 | BU6: 75 - 79 | BW6: 80 - + | BY6: 28 DIAS | BZ6: 0-5 MESES | CB6: 6-11 MESES
B7: Microredes | D7: RENAES | E7: DISTRITO | K7: M | L7: F | M7: M | N7: F | O7: M | P7: F | Q7: M | R7: F | S7: M | T7: F | U7: M | V7: F | W7: M | X7: F | Y7: M | Z7: F | AA7: M | AB7: F | AC7: M | AD7: F | AE7: M | AF7: F | AG7: M | AH7: F | AI7: M | AJ7: F | AK7: M | AL7: F | AM7: M | AN7: F | AO7: M | AP7: F | AQ7: M | AR7: F | AS7: M | AT7: F | AU7: M | AV7: F | AW7: M | AX7: F | AY7: M | AZ7: F | BA7: M | BB7: F | BC7: M | BD7: F | BE7: M | BF7: F | BG7: M | BH7: F | BI7: M | BJ7: F | BK7: M | BL7: F | BM7: M | BN7: F | BO7: M | BP7: F | BQ7: M | BR7: F | BS7: M | BT7: F | BU7: M | BV7: F | BW7: M | BX7: F | BZ7: M | CA7: F | CB7: M | CC7: F | CF7: 10 - 14 | CG7: 15 - 19 | CH7: 20 - 49
A8: 150000 | C8: 1 | E8: HUAURA - OYON | F8: 270075 | H8: 134621 | I8: 135454 | K8: 1808 | L8: 1781 | M8: 1825 | N8: 1802 | O8: 2052 | P8: 1947 | Q8: 2104 | R8: 1974 | S8: 2051 | T8: 2010 | U8: 1752 | V8: 1753 | W8: 2368 | X8: 2310 | Y8: 2444 | Z8: 2296 | AA8: 2378 | AB8: 2372 | AC8: 2323 | AD8: 2282 | AE8: 2316 | AF8: 2119 | AG8: 2316 | AH8: 2210 | AI8: 2465 | AJ8: 2283 | AK8: 2337 | AL8: 2280 | AM8: 2207 | AN8: 2099 | AO8: 2201 | AP8: 2209 | AQ8: 2160 | AR8: 2103 | AS8: 2074 | AT8: 2040 | AU8: 2098 | AV8: 1980 | AW8: 1974 | AX8: 1974 | AY8: 10034 | AZ8: 9877 | BA8: 11321 | BB8: 11624 | BC8: 10321 | BD8: 10713 | BE8: 9904 | BF8: 10099 | BG8: 9070 | BH8: 9073 | BI8: 8326 | BJ8: 8456 | BK8: 7342 | BL8: 7448 | BM8: 6335 | BN8: 6545 | BO8: 5323 | BP8: 5377 | BQ8: 4323 | BR8: 4482 | BS8: 3402 | BT8: 3478 | BU8: 2457 | BV8: 2648 | BW8: 3210 | BX8: 3810 | BY8: 181 | BZ8: 834 | CA8: 793 | CB8: 974 | CC8: 988 | CD8: 4436 | CE8: 0 | CF8: 10991 | CG8: 10306 | CH8: 59842 | CI8: 6953 | CK8: =SUM(K8:L8) -> 3589 | CL8: =SUM(M8:T8) -> 15765 | CM8: =SUM(K8:AH8) -> 50593 | CN8: =SUM(U8:AT8) -> 57697 | CO8: =SUM(AI8:AT8) -> 26458 | CP8: =SUM(AU8:BB8) -> 50882 | CQ8: =SUM(BC8:BN8) -> 103632 | CR8: =SUM(BO8:BX8) -> 38510 | CT8: =SUM(U8:AD8) -> 22278 | CU8: =SUM(AE8:AX8) -> 43445 | CV8: =SUM(AY8:BN8) -> 146488
A9: 150800 | C9: 2 | D9: 150800 | E9: PROVINCIA HUAURA | F9: 252635 | H9: 125998 | I9: 126637 | K9: 1695 | L9: 1667 | M9: 1726 | N9: 1694 | O9: 1923 | P9: 1834 | Q9: 1965 | R9: 1851 | S9: 1930 | T9: 1865 | U9: 1624 | V9: 1657 | W9: 2221 | X9: 2171 | Y9: 2295 | Z9: 2146 | AA9: 2242 | AB9: 2205 | AC9: 2159 | AD9: 2119 | AE9: 2142 | AF9: 1948 | AG9: 2138 | AH9: 2037 | AI9: 2283 | AJ9: 2083 | AK9: 2141 | AL9: 2088 | AM9: 2046 | AN9: 1930 | AO9: 2014 | AP9: 2014 | AQ9: 1986 | AR9: 1903 | AS9: 1905 | AT9: 1882 | AU9: 1939 | AV9: 1834 | AW9: 1838 | AX9: 1840 | AY9: 9379 | AZ9: 9225 | BA9: 10652 | BB9: 10937 | BC9: 9731 | BD9: 10059 | BE9: 9313 | BF9: 9478 | BG9: 8567 | BH9: 8604 | BI9: 7817 | BJ9: 7983 | BK9: 6882 | BL9: 6986 | BM9: 5950 | BN9: 6146 | BO9: 4970 | BP9: 5037 | BQ9: 4049 | BR9: 4207 | BS9: 3181 | BT9: 3261 | BU9: 2303 | BV9: 2457 | BW9: 2992 | BX9: 3489 | BY9: 166 | BZ9: 778 | CA9: 736 | CB9: 917 | CC9: 931 | CD9: 4155 | CE9: 0 | CF9: 10086 | CG9: 9473 | CH9: 56286 | CI9: 6530 | CK9: =SUM(K9:L9) -> 3362 | CL9: =SUM(M9:T9) -> 14788 | CM9: =SUM(K9:AH9) -> 47254 | CN9: =SUM(U9:AT9) -> 53379 | CO9: =SUM(AI9:AT9) -> 24275 | CP9: =SUM(AU9:BB9) -> 47644 | CQ9: =SUM(BC9:BN9) -> 97516 | CR9: =SUM(BO9:BX9) -> 35946 | CT9: 20839 | CU9: 39991 | CV9: 137709
A10: 150801 | C10: 3 | D10: 150802 | E10: DISTRITO HUACHO | F10: 72821 | H10: 35513 | I10: 37308 | K10: 360 | L10: 357 | M10: 345 | N10: 337 | O10: 423 | P10: 401 | Q10: 488 | R10: 448 | S10: 457 | T10: 460 | U10: 340 | V10: 408 | W10: 587 | X10: 596 | Y10: 616 | Z10: 556 | AA10: 612 | AB10: 637 | AC10: 593 | AD10: 611 | AE10: 581 | AF10: 542 | AG10: 582 | AH10: 533 | AI10: 566 | AJ10: 561 | AK10: 562 | AL10: 568 | AM10: 523 | AN10: 520 | AO10: 531 | AP10: 550 | AQ10: 532 | AR10: 522 | AS10: 516 | AT10: 513 | AU10: 559 | AV10: 493 | AW10: 499 | AX10: 490 | AY10: 2525 | AZ10: 2477 | BA10: 2764 | BB10: 3029 | BC10: 2592 | BD10: 2826 | BE10: 2614 | BF10: 2691 | BG10: 2496 | BH10: 2608 | BI10: 2340 | BJ10: 2489 | BK10: 2168 | BL10: 2292 | BM10: 1905 | BN10: 2077 | BO10: 1633 | BP10: 1791 | BQ10: 1383 | BR10: 1518 | BS10: 1052 | BT10: 1226 | BU10: 737 | BV10: 868 | BW10: 1032 | BX10: 1313 | BY10: 27 | BZ10: 175 | CA10: 172 | CB10: 185 | CC10: 185 | CD10: 886 | CE10: 0 | CF10: 2724 | CG10: 2568 | CH10: 16120 | CI10: 1412 | CK10: 717 | CL10: 3359 | CM10: 11870 | CN10: 14258 | CO10: 6464 | CP10: 12836 | CQ10: 29098 | CR10: 12553 | CT10: 5556 | CU10: 10743 | CV10: 39893
B11: 00 | C11: 4 | D11: 7639 | E11: HOSPITAL HUACHO | F11: 52435 | H11: 25572 | I11: 26863 | K11: 259 | L11: 257 | M11: 248 | N11: 243 | O11: 305 | P11: 289 | Q11: 351 | R11: 323 | S11: 329 | T11: 331 | U11: 245 | V11: 294 | W11: 423 | X11: 429 | Y11: 444 | Z11: 400 | AA11: 441 | AB11: 459 | AC11: 427 | AD11: 440 | AE11: 418 | AF11: 390 | AG11: 419 | AH11: 384 | AI11: 408 | AJ11: 404 | AK11: 405 | AL11: 409 | AM11: 377 | AN11: 374 | AO11: 382 | AP11: 396 | AQ11: 383 | AR11: 376 | AS11: 372 | AT11: 369 | AU11: 402 | AV11: 355 | AW11: 359 | AX11: 353 | AY11: 1818 | AZ11: 1783 | BA11: 1990 | BB11: 2181 | BC11: 1866 | BD11: 2035 | BE11: 1882 | BF11: 1938 | BG11: 1797 | BH11: 1878 | BI11: 1685 | BJ11: 1792 | BK11: 1561 | BL11: 1650 | BM11: 1372 | BN11: 1495 | BO11: 1176 | BP11: 1290 | BQ11: 996 | BR11: 1093 | BS11: 757 | BT11: 883 | BU11: 531 | BV11: 625 | BW11: 744 | BX11: 945 | BY11: 19 | BZ11: 126 | CA11: 124 | CB11: 133 | CC11: 133 | CD11: 638 | CF11: 1961 | CG11: 1849 | CH11: 11607 | CI11: 1017 | CK11: 516 | CL11: 2419 | CM11: 8548 | CN11: 10268 | CO11: 4655 | CP11: 9241 | CQ11: 20951 | CR11: 9040 | CT11: 4002 | CU11: 7735 | CV11: 28723
B12: 02 | C12: 5 | D12: 5679 | E12: C.S. MANZANARES | F12: 20386 | H12: 9941 | I12: 10445 | K12: 101 | L12: 100 | M12: 97 | N12: 94 | O12: 118 | P12: 112 | Q12: 137 | R12: 125 | S12: 128 | T12: 129 | U12: 95 | V12: 114 | W12: 164 | X12: 167 | Y12: 172 | Z12: 156 | AA12: 171 | AB12: 178 | AC12: 166 | AD12: 171 | AE12: 163 | AF12: 152 | AG12: 163 | AH12: 149 | AI12: 158 | AJ12: 157 | AK12: 157 | AL12: 159 | AM12: 146 | AN12: 146 | AO12: 149 | AP12: 154 | AQ12: 149 | AR12: 146 | AS12: 144 | AT12: 144 | AU12: 157 | AV12: 138 | AW12: 140 | AX12: 137 | AY12: 707 | AZ12: 694 | BA12: 774 | BB12: 848 | BC12: 726 | BD12: 791 | BE12: 732 | BF12: 753 | BG12: 699 | BH12: 730 | BI12: 655 | BJ12: 697 | BK12: 607 | BL12: 642 | BM12: 533 | BN12: 582 | BO12: 457 | BP12: 501 | BQ12: 387 | BR12: 425 | BS12: 295 | BT12: 343 | BU12: 206 | BV12: 243 | BW12: 288 | BX12: 368 | BY12: 8 | BZ12: 49 | CA12: 48 | CB12: 52 | CC12: 52 | CD12: 248 | CF12: 763 | CG12: 719 | CH12: 4513 | CI12: 395 | CK12: 201 | CL12: 940 | CM12: 3322 | CN12: 3990 | CO12: 1809 | CP12: 3595 | CQ12: 8147 | CR12: 3513 | CT12: 1554 | CU12: 3008 | CV12: 11170
A13: 150802 | C13: 6 | D13: 150802 | E13: DISTRITO AMBAR | F13: 2049 | H13: 1090 | I13: 959 | K13: 17 | L13: 28 | M13: 26 | N13: 29 | O13: 18 | P13: 11 | Q13: 27 | R13: 22 | S13: 16 | T13: 18 | U13: 17 | V13: 19 | W13: 14 | X13: 10 | Y13: 17 | Z13: 9 | AA13: 20 | AB13: 13 | AC13: 18 | AD13: 12 | AE13: 13 | AF13: 11 | AG13: 16 | AH13: 15 | AI13: 23 | AJ13: 13 | AK13: 15 | AL13: 14 | AM13: 15 | AN13: 16 | AO13: 12 | AP13: 16 | AQ13: 15 | AR13: 8 | AS13: 14 | AT13: 15 | AU13: 18 | AV13: 11 | AW13: 17 | AX13: 17 | AY13: 87 | AZ13: 72 | BA13: 80 | BB13: 80 | BC13: 60 | BD13: 67 | BE13: 74 | BF13: 81 | BG13: 64 | BH13: 49 | BI13: 67 | BJ13: 55 | BK13: 54 | BL13: 51 | BM13: 58 | BN13: 38 | BO13: 43 | BP13: 40 | BQ13: 49 | BR13: 40 | BS13: 37 | BT13: 23 | BU13: 38 | BV13: 13 | BW13: 31 | BX13: 43 | BY13: 2 | BZ13: 9 | CA13: 10 | CB13: 8 | CC13: 18 | CD13: 65 | CE13: 0 | CF13: 69 | CG13: 67 | CH13: 404 | CI13: 103 | CK13: 45 | CL13: 167 | CM13: 416 | CN13: 380 | CO13: 176 | CP13: 382 | CQ13: 718 | CR13: 357 | CT13: 149 | CU13: 294 | CV13: 1037
B14: 01 | C14: 7 | D14: 5680 | E14: C.S. AMBAR | F14: 1235 | H14: 660 | I14: 575 | K14: 11 | L14: 17 | M14: 15 | N14: 17 | O14: 11 | P14: 7 | Q14: 17 | R14: 13 | S14: 10 | T14: 11 | U14: 11 | V14: 11 | W14: 9 | X14: 6 | Y14: 10 | Z14: 5 | AA14: 12 | AB14: 8 | AC14: 11 | AD14: 7 | AE14: 8 | AF14: 7 | AG14: 10 | AH14: 9 | AI14: 14 | AJ14: 8 | AK14: 9 | AL14: 8 | AM14: 9 | AN14: 9 | AO14: 8 | AP14: 9 | AQ14: 9 | AR14: 5 | AS14: 9 | AT14: 9 | AU14: 11 | AV14: 7 | AW14: 10 | AX14: 10 | AY14: 52 | AZ14: 43 | BA14: 48 | BB14: 48 | BC14: 36 | BD14: 40 | BE14: 45 | BF14: 48 | BG14: 39 | BH14: 29 | BI14: 40 | BJ14: 33 | BK14: 33 | BL14: 31 | BM14: 35 | BN14: 23 | BO14: 26 | BP14: 24 | BQ14: 29 | BR14: 24 | BS14: 22 | BT14: 14 | BU14: 22 | BV14: 8 | BW14: 19 | BX14: 27 | BY14: 2 | BZ14: 6 | CA14: 6 | CB14: 5 | CC14: 11 | CD14: 38 | CF14: 41 | CG14: 40 | CH14: 241 | CI14: 61 | CK14: 28 | CL14: 101 | CM14: 253 | CN14: 230 | CO14: 106 | CP14: 229 | CQ14: 432 | CR14: 215 | CT14: 90 | CU14: 178 | CV14: 623
B15: 01 | C15: 8 | D15: 5681 | E15: P.S. AYNACA | F15: 814 | H15: 430 | I15: 384 | K15: 6 | L15: 11 | M15: 11 | N15: 12 | O15: 7 | P15: 4 | Q15: 10 | R15: 9 | S15: 6 | T15: 7 | U15: 6 | V15: 8 | W15: 5 | X15: 4 | Y15: 7 | Z15: 4 | AA15: 8 | AB15: 5 | AC15: 7 | AD15: 5 | AE15: 5 | AF15: 4 | AG15: 6 | AH15: 6 | AI15: 9 | AJ15: 5 | AK15: 6 | AL15: 6 | AM15: 6 | AN15: 7 | AO15: 4 | AP15: 7 | AQ15: 6 | AR15: 3 | AS15: 5 | AT15: 6 | AU15: 7 | AV15: 4 | AW15: 7 | AX15: 7 | AY15: 35 | AZ15: 29 | BA15: 32 | BB15: 32 | BC15: 24 | BD15: 27 | BE15: 29 | BF15: 33 | BG15: 25 | BH15: 20 | BI15: 27 | BJ15: 22 | BK15: 21 | BL15: 20 | BM15: 23 | BN15: 15 | BO15: 17 | BP15: 16 | BQ15: 20 | BR15: 16 | BS15: 15 | BT15: 9 | BU15: 16 | BV15: 5 | BW15: 12 | BX15: 16 | BY15: 0 | BZ15: 3 | CA15: 4 | CB15: 3 | CC15: 7 | CD15: 27 | CF15: 28 | CG15: 27 | CH15: 163 | CI15: 42 | CK15: 17 | CL15: 66 | CM15: 163 | CN15: 150 | CO15: 70 | CP15: 153 | CQ15: 286 | CR15: 142 | CT15: 59 | CU15: 116 | CV15: 414
A16: 150803 | C16: 9 | D16: 150803 | E16: DISTRITO CARQUIN | F16: 9116 | H16: 4596 | I16: 4520 | K16: 47 | L16: 55 | M16: 47 | N16: 36 | O16: 54 | P16: 44 | Q16: 48 | R16: 54 | S16: 43 | T16: 58 | U16: 51 | V16: 48 | W16: 74 | X16: 75 | Y16: 93 | Z16: 73 | AA16: 85 | AB16: 82 | AC16: 77 | AD16: 82 | AE16: 76 | AF16: 73 | AG16: 96 | AH16: 82 | AI16: 86 | AJ16: 75 | AK16: 99 | AL16: 88 | AM16: 74 | AN16: 83 | AO16: 86 | AP16: 76 | AQ16: 93 | AR16: 88 | AS16: 69 | AT16: 72 | AU16: 55 | AV16: 60 | AW16: 58 | AX16: 65 | AY16: 354 | AZ16: 341 | BA16: 374 | BB16: 356 | BC16: 357 | BD16: 385 | BE16: 371 | BF16: 343 | BG16: 331 | BH16: 354 | BI16: 301 | BJ16: 288 | BK16: 241 | BL16: 239 | BM16: 229 | BN16: 230 | BO16: 189 | BP16: 162 | BQ16: 131 | BR16: 150 | BS16: 127 | BT16: 117 | BU16: 78 | BV16: 84 | BW16: 102 | BX16: 102 | BY16: 5 | BZ16: 19 | CA16: 26 | CB16: 28 | CC16: 29 | CD16: 123 | CE16: 0 | CF16: 401 | CG16: 361 | CH16: 2067 | CI16: 173 | CK16: 102 | CL16: 384 | CM16: 1553 | CN16: 2056 | CO16: 989 | CP16: 1663 | CQ16: 3669 | CR16: 1242 | CT16: 740 | CU16: 1554 | CV16: 5094
B17: 02 | C17: 10 | D17: 5664 | E17: P.S. CARQUIN | F17: 9116 | H17: 4596 | I17: 4520 | K17: 47 | L17: 55 | M17: 47 | N17: 36 | O17: 54 | P17: 44 | Q17: 48 | R17: 54 | S17: 43 | T17: 58 | U17: 51 | V17: 48 | W17: 74 | X17: 75 | Y17: 93 | Z17: 73 | AA17: 85 | AB17: 82 | AC17: 77 | AD17: 82 | AE17: 76 | AF17: 73 | AG17: 96 | AH17: 82 | AI17: 86 | AJ17: 75 | AK17: 99 | AL17: 88 | AM17: 74 | AN17: 83 | AO17: 86 | AP17: 76 | AQ17: 93 | AR17: 88 | AS17: 69 | AT17: 72 | AU17: 55 | AV17: 60 | AW17: 58 | AX17: 65 | AY17: 354 | AZ17: 341 | BA17: 374 | BB17: 356 | BC17: 357 | BD17: 385 | BE17: 371 | BF17: 343 | BG17: 331 | BH17: 354 | BI17: 301 | BJ17: 288 | BK17: 241 | BL17: 239 | BM17: 229 | BN17: 230 | BO17: 189 | BP17: 162 | BQ17: 131 | BR17: 150 | BS17: 127 | BT17: 117 | BU17: 78 | BV17: 84 | BW17: 102 | BX17: 102 | BY17: 5 | BZ17: 19 | CA17: 26 | CB17: 28 | CC17: 29 | CD17: 123 | CF17: 401 | CG17: 361 | CH17: 2067 | CI17: 173 | CK17: 102 | CL17: 384 | CM17: 1553 | CN17: 2056 | CO17: 989 | CP17: 1663 | CQ17: 3669 | CR17: 1242 | CT17: 740 | CU17: 1554 | CV17: 5094
A18: 150804 | C18: 11 | D18: 150804 | E18: DISTRITO CHECRAS | F18: 847 | H18: 420 | I18: 427 | K18: 3 | L18: 3 | M18: 6 | N18: 7 | O18: 4 | P18: 2 | Q18: 4 | R18: 3 | S18: 2 | T18: 7 | U18: 4 | V18: 4 | W18: 3 | X18: 4 | Y18: 8 | Z18: 3 | AA18: 3 | AB18: 4 | AC18: 7 | AD18: 2 | AE18: 3 | AF18: 4 | AG18: 6 | AH18: 6 | AI18: 5 | AJ18: 10 | AK18: 11 | AL18: 3 | AM18: 5 | AN18: 6 | AO18: 7 | AP18: 7 | AQ18: 17 | AR18: 10 | AS18: 10 | AT18: 7 | AU18: 4 | AV18: 8 | AW18: 7 | AX18: 1 | AY18: 18 | AZ18: 28 | BA18: 30 | BB18: 24 | BC18: 16 | BD18: 20 | BE18: 18 | BF18: 22 | BG18: 23 | BH18: 14 | BI18: 22 | BJ18: 14 | BK18: 24 | BL18: 29 | BM18: 31 | BN18: 26 | BO18: 23 | BP18: 22 | BQ18: 26 | BR18: 27 | BS18: 23 | BT18: 26 | BU18: 12 | BV18: 20 | BW18: 35 | BX18: 54 | BY18: 0 | BZ18: 0 | CA18: 2 | CB18: 3 | CC18: 1 | CD18: 11 | CE18: 0 | CF18: 29 | CG18: 33 | CH18: 122 | CI18: 22 | CK18: 6 | CL18: 35 | CM18: 102 | CN18: 159 | CO18: 98 | CP18: 120 | CQ18: 259 | CR18: 268 | CT18: 42 | CU18: 137 | CV18: 359
B19: 05 | C19: 12 | D19: 5663 | E19: P.S. PUÑUN | F19: 847 | H19: 420 | I19: 427 | K19: 3 | L19: 3 | M19: 6 | N19: 7 | O19: 4 | P19: 2 | Q19: 4 | R19: 3 | S19: 2 | T19: 7 | U19: 4 | V19: 4 | W19: 3 | X19: 4 | Y19: 8 | Z19: 3 | AA19: 3 | AB19: 4 | AC19: 7 | AD19: 2 | AE19: 3 | AF19: 4 | AG19: 6 | AH19: 6 | AI19: 5 | AJ19: 10 | AK19: 11 | AL19: 3 | AM19: 5 | AN19: 6 | AO19: 7 | AP19: 7 | AQ19: 17 | AR19: 10 | AS19: 10 | AT19: 7 | AU19: 4 | AV19: 8 | AW19: 7 | AX19: 1 | AY19: 18 | AZ19: 28 | BA19: 30 | BB19: 24 | BC19: 16 | BD19: 20 | BE19: 18 | BF19: 22 | BG19: 23 | BH19: 14 | BI19: 22 | BJ19: 14 | BK19: 24 | BL19: 29 | BM19: 31 | BN19: 26 | BO19: 23 | BP19: 22 | BQ19: 26 | BR19: 27 | BS19: 23 | BT19: 26 | BU19: 12 | BV19: 20 | BW19: 35 | BX19: 54 | BY19: 0 | BZ19: 0 | CA19: 2 | CB19: 3 | CC19: 1 | CD19: 11 | CF19: 29 | CG19: 33 | CH19: 122 | CI19: 22 | CK19: 6 | CL19: 35 | CM19: 102 | CN19: 159 | CO19: 98 | CP19: 120 | CQ19: 259 | CR19: 268 | CT19: 42 | CU19: 137 | CV19: 359
A20: 150805 | C20: 13 | D20: 150805 | E20: DISTRITO HUALMAY | F20: 29453 | H20: 14548 | I20: 14905 | K20: 187 | L20: 189 | M20: 181 | N20: 179 | O20: 207 | P20: 189 | Q20: 220 | R20: 220 | S20: 224 | T20: 231 | U20: 204 | V20: 203 | W20: 239 | X20: 240 | Y20: 272 | Z20: 276 | AA20: 278 | AB20: 250 | AC20: 256 | AD20: 265 | AE20: 250 | AF20: 224 | AG20: 229 | AH20: 225 | AI20: 264 | AJ20: 241 | AK20: 252 | AL20: 252 | AM20: 227 | AN20: 243 | AO20: 222 | AP20: 234 | AQ20: 208 | AR20: 217 | AS20: 228 | AT20: 215 | AU20: 242 | AV20: 213 | AW20: 179 | AX20: 214 | AY20: 1118 | AZ20: 1110 | BA20: 1244 | BB20: 1308 | BC20: 1158 | BD20: 1139 | BE20: 1089 | BF20: 1180 | BG20: 996 | BH20: 1033 | BI20: 978 | BJ20: 984 | BK20: 854 | BL20: 786 | BM20: 689 | BN20: 710 | BO20: 540 | BP20: 551 | BQ20: 437 | BR20: 501 | BS20: 335 | BT20: 361 | BU20: 254 | BV20: 314 | BW20: 287 | BX20: 408 | BY20: 16 | BZ20: 90 | CA20: 76 | CB20: 97 | CC20: 113 | CD20: 457 | CE20: 0 | CF20: 1185 | CG20: 1093 | CH20: 6754 | CI20: 617 | CK20: 376 | CL20: 1651 | CM20: 5438 | CN20: 6214 | CO20: 2803 | CP20: 5628 | CQ20: 11596 | CR20: 3988 | CT20: 2483 | CU20: 4579 | CV20: 16376
B21: 02 | C21: 14 | D21: 5665 | E21: C.S. HUALMAY | F21: 14167 | H21: 6999 | I21: 7168 | K21: 91 | L21: 91 | M21: 87 | N21: 86 | O21: 100 | P21: 91 | Q21: 106 | R21: 106 | S21: 108 | T21: 111 | U21: 98 | V21: 97 | W21: 116 | X21: 116 | Y21: 131 | Z21: 133 | AA21: 133 | AB21: 121 | AC21: 123 | AD21: 128 | AE21: 121 | AF21: 108 | AG21: 110 | AH21: 109 | AI21: 127 | AJ21: 116 | AK21: 122 | AL21: 122 | AM21: 110 | AN21: 117 | AO21: 107 | AP21: 113 | AQ21: 101 | AR21: 105 | AS21: 110 | AT21: 104 | AU21: 117 | AV21: 103 | AW21: 86 | AX21: 103 | AY21: 537 | AZ21: 534 | BA21: 598 | BB21: 628 | BC21: 557 | BD21: 547 | BE21: 523 | BF21: 567 | BG21: 478 | BH21: 496 | BI21: 469 | BJ21: 473 | BK21: 410 | BL21: 377 | BM21: 332 | BN21: 341 | BO21: 260 | BP21: 264 | BQ21: 210 | BR21: 241 | BS21: 161 | BT21: 174 | BU21: 122 | BV21: 151 | BW21: 138 | BX21: 195 | BY21: 7 | BZ21: 44 | CA21: 37 | CB21: 47 | CC21: 54 | CD21: 219 | CF21: 572 | CG21: 528 | CH21: 3245 | CI21: 308 | CK21: 182 | CL21: 795 | CM21: 2621 | CN21: 2998 | CO21: 1354 | CP21: 2706 | CQ21: 5570 | CR21: 1916 | CT21: 1196 | CU21: 2211 | CV21: 7867
B22: 02 | C22: 15 | D22: 5666 | E22: P.S. DGO. MANDAMIENTO | F22: 10595 | H22: 5231 | I22: 5364 | K22: 67 | L22: 68 | M22: 65 | N22: 64 | O22: 74 | P22: 68 | Q22: 79 | R22: 79 | S22: 80 | T22: 83 | U22: 73 | V22: 74 | W22: 86 | X22: 85 | Y22: 97 | Z22: 100 | AA22: 100 | AB22: 90 | AC22: 92 | AD22: 95 | AE22: 90 | AF22: 81 | AG22: 83 | AH22: 81 | AI22: 94 | AJ22: 87 | AK22: 91 | AL22: 91 | AM22: 82 | AN22: 88 | AO22: 80 | AP22: 84 | AQ22: 75 | AR22: 78 | AS22: 82 | AT22: 77 | AU22: 87 | AV22: 76 | AW22: 65 | AX22: 77 | AY22: 402 | AZ22: 399 | BA22: 447 | BB22: 471 | BC22: 416 | BD22: 410 | BE22: 392 | BF22: 425 | BG22: 358 | BH22: 372 | BI22: 352 | BJ22: 354 | BK22: 308 | BL22: 283 | BM22: 248 | BN22: 255 | BO22: 194 | BP22: 199 | BQ22: 158 | BR22: 179 | BS22: 120 | BT22: 130 | BU22: 91 | BV22: 113 | BW22: 103 | BX22: 148 | BY22: 6 | BZ22: 32 | CA22: 27 | CB22: 35 | CC22: 41 | CD22: 166 | CF22: 428 | CG22: 392 | CH22: 2431 | CI22: 222 | CK22: 135 | CL22: 592 | CM22: 1954 | CN22: 2236 | CO22: 1009 | CP22: 2024 | CQ22: 4173 | CR22: 1435 | CT22: 892 | CU22: 1649 | CV22: 5892
B23: 02 | C23: 16 | D23: 5667 | E23: P.S. CAMPO ALEGRE | F23: 4691 | H23: 2318 | I23: 2373 | K23: 29 | L23: 30 | M23: 29 | N23: 29 | O23: 33 | P23: 30 | Q23: 35 | R23: 35 | S23: 36 | T23: 37 | U23: 33 | V23: 32 | W23: 37 | X23: 39 | Y23: 44 | Z23: 43 | AA23: 45 | AB23: 39 | AC23: 41 | AD23: 42 | AE23: 39 | AF23: 35 | AG23: 36 | AH23: 35 | AI23: 43 | AJ23: 38 | AK23: 39 | AL23: 39 | AM23: 35 | AN23: 38 | AO23: 35 | AP23: 37 | AQ23: 32 | AR23: 34 | AS23: 36 | AT23: 34 | AU23: 38 | AV23: 34 | AW23: 28 | AX23: 34 | AY23: 179 | AZ23: 177 | BA23: 199 | BB23: 209 | BC23: 185 | BD23: 182 | BE23: 174 | BF23: 188 | BG23: 160 | BH23: 165 | BI23: 157 | BJ23: 157 | BK23: 136 | BL23: 126 | BM23: 109 | BN23: 114 | BO23: 86 | BP23: 88 | BQ23: 69 | BR23: 81 | BS23: 54 | BT23: 57 | BU23: 41 | BV23: 50 | BW23: 46 | BX23: 65 | BY23: 3 | BZ23: 14 | CA23: 12 | CB23: 15 | CC23: 18 | CD23: 72 | CF23: 185 | CG23: 173 | CH23: 1078 | CI23: 87 | CK23: 59 | CL23: 264 | CM23: 863 | CN23: 980 | CO23: 440 | CP23: 898 | CQ23: 1853 | CR23: 637 | CT23: 395 | CU23: 719 | CV23: 2617
A24: 150806 | C24: 17 | D24: 150806 | E24: DISTRITO HUAURA | F24: 38198 | H24: 19355 | I24: 18843 | K24: 270 | L24: 233 | M24: 237 | N24: 240 | O24: 323 | P24: 288 | Q24: 314 | R24: 311 | S24: 309 | T24: 270 | U24: 243 | V24: 232 | W24: 360 | X24: 365 | Y24: 378 | Z24: 305 | AA24: 359 | AB24: 315 | AC24: 339 | AD24: 312 | AE24: 351 | AF24: 324 | AG24: 350 | AH24: 340 | AI24: 355 | AJ24: 340 | AK24: 325 | AL24: 318 | AM24: 318 | AN24: 306 | AO24: 305 | AP24: 301 | AQ24: 298 | AR24: 330 | AS24: 277 | AT24: 289 | AU24: 293 | AV24: 291 | AW24: 294 | AX24: 286 | AY24: 1443 | AZ24: 1407 | BA24: 1787 | BB24: 1709 | BC24: 1672 | BD24: 1543 | BE24: 1423 | BF24: 1425 | BG24: 1375 | BH24: 1284 | BI24: 1147 | BJ24: 1204 | BK24: 996 | BL24: 1082 | BM24: 872 | BN24: 899 | BO24: 738 | BP24: 694 | BQ24: 536 | BR24: 530 | BS24: 407 | BT24: 397 | BU24: 289 | BV24: 273 | BW24: 372 | BX24: 400 | BY24: 31 | BZ24: 121 | CA24: 102 | CB24: 149 | CC24: 131 | CD24: 571 | CE24: 0 | CF24: 1628 | CG24: 1497 | CH24: 8572 | CI24: 916 | CK24: 503 | CL24: 2292 | CM24: 7368 | CN24: 8335 | CO24: 3762 | CP24: 7510 | CQ24: 14922 | CR24: 4636 | CT24: 3208 | CU24: 6291 | CV24: 21268
B25: 01 | C25: 18 | D25: 5682 | E25: C.S. HUAURA | F25: 19108 | H25: 9683 | I25: 9425 | K25: 136 | L25: 117 | M25: 119 | N25: 120 | O25: 163 | P25: 144 | Q25: 157 | R25: 156 | S25: 155 | T25: 136 | U25: 122 | V25: 117 | W25: 180 | X25: 183 | Y25: 189 | Z25: 152 | AA25: 179 | AB25: 158 | AC25: 170 | AD25: 156 | AE25: 175 | AF25: 162 | AG25: 174 | AH25: 170 | AI25: 178 | AJ25: 170 | AK25: 162 | AL25: 159 | AM25: 159 | AN25: 153 | AO25: 152 | AP25: 151 | AQ25: 149 | AR25: 165 | AS25: 139 | AT25: 144 | AU25: 146 | AV25: 145 | AW25: 147 | AX25: 143 | AY25: 722 | AZ25: 704 | BA25: 894 | BB25: 855 | BC25: 836 | BD25: 772 | BE25: 711 | BF25: 713 | BG25: 688 | BH25: 642 | BI25: 574 | BJ25: 602 | BK25: 498 | BL25: 540 | BM25: 436 | BN25: 450 | BO25: 369 | BP25: 347 | BQ25: 268 | BR25: 265 | BS25: 204 | BT25: 198 | BU25: 145 | BV25: 136 | BW25: 187 | BX25: 200 | BY25: 16 | BZ25: 61 | CA25: 51 | CB25: 75 | CC25: 66 | CD25: 290 | CF25: 814 | CG25: 748 | CH25: 4288 | CI25: 466 | CK25: 253 | CL25: 1150 | CM25: 3690 | CN25: 4168 | CO25: 1881 | CP25: 3756 | CQ25: 7462 | CR25: 2319 | CT25: 1606 | CU25: 3143 | CV25: 10637
B26: 01 | C26: 19 | D26: 5686 | E26: C.S. SOCORRO | F26: 12603 | H26: 6382 | I26: 6221 | K26: 89 | L26: 78 | M26: 78 | N26: 79 | O26: 106 | P26: 95 | Q26: 103 | R26: 103 | S26: 102 | T26: 90 | U26: 80 | V26: 76 | W26: 119 | X26: 120 | Y26: 125 | Z26: 101 | AA26: 119 | AB26: 104 | AC26: 112 | AD26: 104 | AE26: 116 | AF26: 107 | AG26: 116 | AH26: 112 | AI26: 117 | AJ26: 112 | AK26: 108 | AL26: 105 | AM26: 105 | AN26: 101 | AO26: 101 | AP26: 100 | AQ26: 98 | AR26: 109 | AS26: 91 | AT26: 96 | AU26: 97 | AV26: 96 | AW26: 97 | AX26: 95 | AY26: 476 | AZ26: 464 | BA26: 589 | BB26: 564 | BC26: 552 | BD26: 509 | BE26: 469 | BF26: 470 | BG26: 453 | BH26: 423 | BI26: 378 | BJ26: 397 | BK26: 329 | BL26: 357 | BM26: 288 | BN26: 296 | BO26: 243 | BP26: 229 | BQ26: 176 | BR26: 175 | BS26: 133 | BT26: 131 | BU26: 95 | BV26: 90 | BW26: 122 | BX26: 133 | BY26: 10 | BZ26: 40 | CA26: 34 | CB26: 49 | CC26: 44 | CD26: 188 | CF26: 537 | CG26: 496 | CH26: 2827 | CI26: 293 | CK26: 167 | CL26: 756 | CM26: 2434 | CN26: 2754 | CO26: 1243 | CP26: 2478 | CQ26: 4921 | CR26: 1527 | CT26: 1060 | CU26: 2079 | CV26: 7014
B27: 01 | C27: 20 | D27: 5683 | E27: P.S. HUMAYA | F27: 3456 | H27: 1750 | I27: 1706 | K27: 24 | L27: 21 | M27: 22 | N27: 22 | O27: 29 | P27: 26 | Q27: 29 | R27: 28 | S27: 28 | T27: 24 | U27: 22 | V27: 21 | W27: 33 | X27: 33 | Y27: 34 | Z27: 28 | AA27: 33 | AB27: 29 | AC27: 31 | AD27: 28 | AE27: 32 | AF27: 30 | AG27: 32 | AH27: 31 | AI27: 32 | AJ27: 31 | AK27: 30 | AL27: 29 | AM27: 29 | AN27: 28 | AO27: 28 | AP27: 27 | AQ27: 27 | AR27: 30 | AS27: 25 | AT27: 26 | AU27: 27 | AV27: 27 | AW27: 27 | AX27: 26 | AY27: 130 | AZ27: 127 | BA27: 161 | BB27: 154 | BC27: 150 | BD27: 139 | BE27: 129 | BF27: 129 | BG27: 124 | BH27: 116 | BI27: 103 | BJ27: 109 | BK27: 89 | BL27: 98 | BM27: 78 | BN27: 81 | BO27: 67 | BP27: 63 | BQ27: 49 | BR27: 48 | BS27: 37 | BT27: 36 | BU27: 26 | BV27: 25 | BW27: 33 | BX27: 36 | BY27: 3 | BZ27: 11 | CA27: 9 | CB27: 13 | CC27: 12 | CD27: 51 | CF27: 149 | CG27: 136 | CH27: 774 | CI27: 83 | CK27: 45 | CL27: 208 | CM27: 670 | CN27: 759 | CO27: 342 | CP27: 679 | CQ27: 1345 | CR27: 420 | CT27: 292 | CU27: 574 | CV27: 1917
B28: 01 | C28: 21 | D28: 5684 | E28: P.S. VILCAHUAURA | F28: 2651 | H28: 1345 | I28: 1306 | K28: 19 | L28: 15 | M28: 16 | N28: 17 | O28: 22 | P28: 20 | Q28: 22 | R28: 22 | S28: 21 | T28: 18 | U28: 17 | V28: 16 | W28: 24 | X28: 25 | Y28: 26 | Z28: 21 | AA28: 24 | AB28: 21 | AC28: 23 | AD28: 21 | AE28: 24 | AF28: 22 | AG28: 24 | AH28: 24 | AI28: 24 | AJ28: 24 | AK28: 22 | AL28: 22 | AM28: 22 | AN28: 21 | AO28: 21 | AP28: 20 | AQ28: 21 | AR28: 23 | AS28: 19 | AT28: 20 | AU28: 20 | AV28: 20 | AW28: 20 | AX28: 19 | AY28: 100 | AZ28: 98 | BA28: 125 | BB28: 119 | BC28: 117 | BD28: 107 | BE28: 100 | BF28: 99 | BG28: 96 | BH28: 90 | BI28: 80 | BJ28: 84 | BK28: 70 | BL28: 76 | BM28: 61 | BN28: 63 | BO28: 52 | BP28: 48 | BQ28: 38 | BR28: 37 | BS28: 29 | BT28: 28 | BU28: 20 | BV28: 19 | BW28: 26 | BX28: 27 | BY28: 2 | BZ28: 8 | CA28: 7 | CB28: 11 | CC28: 8 | CD28: 38 | CF28: 113 | CG28: 102 | CH28: 597 | CI28: 64 | CK28: 34 | CL28: 158 | CM28: 504 | CN28: 571 | CO28: 259 | CP28: 521 | CQ28: 1043 | CR28: 324 | CT28: 218 | CU28: 432 | CV28: 1485
B29: 01 | C29: 22 | D29: 5685 | E29: P.S. PEÑICO | F29: 380 | H29: 195 | I29: 185 | K29: 2 | L29: 2 | M29: 2 | N29: 2 | O29: 3 | P29: 3 | Q29: 3 | R29: 2 | S29: 3 | T29: 2 | U29: 2 | V29: 2 | W29: 4 | X29: 4 | Y29: 4 | Z29: 3 | AA29: 4 | AB29: 3 | AC29: 3 | AD29: 3 | AE29: 4 | AF29: 3 | AG29: 4 | AH29: 3 | AI29: 4 | AJ29: 3 | AK29: 3 | AL29: 3 | AM29: 3 | AN29: 3 | AO29: 3 | AP29: 3 | AQ29: 3 | AR29: 3 | AS29: 3 | AT29: 3 | AU29: 3 | AV29: 3 | AW29: 3 | AX29: 3 | AY29: 15 | AZ29: 14 | BA29: 18 | BB29: 17 | BC29: 17 | BD29: 16 | BE29: 14 | BF29: 14 | BG29: 14 | BH29: 13 | BI29: 12 | BJ29: 12 | BK29: 10 | BL29: 11 | BM29: 9 | BN29: 9 | BO29: 7 | BP29: 7 | BQ29: 5 | BR29: 5 | BS29: 4 | BT29: 4 | BU29: 3 | BV29: 3 | BW29: 4 | BX29: 4 | BY29: 0 | BZ29: 1 | CA29: 1 | CB29: 1 | CC29: 1 | CD29: 4 | CF29: 15 | CG29: 15 | CH29: 86 | CI29: 10 | CK29: 4 | CL29: 20 | CM29: 70 | CN29: 83 | CO29: 37 | CP29: 76 | CQ29: 151 | CR29: 46 | CT29: 32 | CU29: 63 | CV29: 215
A30: 150807 | C30: 23 | D30: 150807 | E30: DISTRITO LEONCIO PRADO | F30: 1995 | H30: 1123 | I30: 872 | K30: 23 | L30: 18 | M30: 20 | N30: 14 | O30: 27 | P30: 16 | Q30: 14 | R30: 13 | S30: 14 | T30: 10 | U30: 20 | V30: 12 | W30: 10 | X30: 14 | Y30: 13 | Z30: 9 | AA30: 13 | AB30: 13 | AC30: 13 | AD30: 15 | AE30: 13 | AF30: 10 | AG30: 17 | AH30: 14 | AI30: 14 | AJ30: 14 | AK30: 18 | AL30: 17 | AM30: 13 | AN30: 15 | AO30: 23 | AP30: 13 | AQ30: 17 | AR30: 17 | AS30: 17 | AT30: 12 | AU30: 21 | AV30: 15 | AW30: 21 | AX30: 13 | AY30: 102 | AZ30: 80 | BA30: 67 | BB30: 65 | BC30: 94 | BD30: 60 | BE30: 80 | BF30: 60 | BG30: 73 | BH30: 49 | BI30: 73 | BJ30: 52 | BK30: 56 | BL30: 45 | BM30: 52 | BN30: 32 | BO30: 48 | BP30: 38 | BQ30: 53 | BR30: 41 | BS30: 28 | BT30: 19 | BU30: 21 | BV30: 21 | BW30: 35 | BX30: 36 | BY30: 5 | BZ30: 8 | CA30: 9 | CB30: 15 | CC30: 9 | CD30: 53 | CE30: 0 | CF30: 70 | CG30: 70 | CH30: 366 | CI30: 87 | CK30: 41 | CL30: 128 | CM30: 355 | CN30: 376 | CO30: 190 | CP30: 384 | CQ30: 726 | CR30: 340 | CT30: 132 | CU30: 314 | CV30: 1040
B31: 03 | C31: 24 | D31: 5778 | E31: P.S. AUQUIMARCA | F31: 108 | H31: 59 | I31: 49 | K31: 1 | L31: 1 | M31: 1 | N31: 1 | O31: 2 | P31: 1 | Q31: 1 | R31: 1 | S31: 1 | T31: 1 | U31: 1 | V31: 1 | W31: 1 | X31: 1 | Y31: 1 | Z31: 1 | AA31: 1 | AB31: 1 | AC31: 1 | AD31: 1 | AE31: 1 | AF31: 1 | AG31: 1 | AH31: 1 | AI31: 1 | AJ31: 1 | AK31: 1 | AL31: 1 | AM31: 1 | AN31: 1 | AO31: 1 | AP31: 1 | AQ31: 1 | AR31: 1 | AS31: 1 | AT31: 1 | AU31: 1 | AV31: 1 | AW31: 1 | AX31: 1 | AY31: 5 | AZ31: 4 | BA31: 3 | BB31: 3 | BC31: 5 | BD31: 3 | BE31: 4 | BF31: 3 | BG31: 4 | BH31: 2 | BI31: 4 | BJ31: 2 | BK31: 3 | BL31: 2 | BM31: 2 | BN31: 2 | BO31: 2 | BP31: 2 | BQ31: 2 | BR31: 2 | BS31: 1 | BT31: 1 | BU31: 1 | BV31: 1 | BW31: 2 | BX31: 2 | BY31: 0 | BZ31: 0 | CA31: 1 | CB31: 1 | CC31: 0 | CD31: 4 | CF31: 5 | CG31: 5 | CH31: 17 | CI31: 6 | CK31: 2 | CL31: 9 | CM31: 25 | CN31: 26 | CO31: 12 | CP31: 19 | CQ31: 36 | CR31: 16 | CT31: 10 | CU31: 20 | CV31: 51
B32: 03 | C32: 25 | D32: 5779 | E32: P.S. PARAN | F32: 684 | H32: 385 | I32: 299 | K32: 8 | L32: 6 | M32: 7 | N32: 4 | O32: 8 | P32: 5 | Q32: 4 | R32: 4 | S32: 4 | T32: 3 | U32: 6 | V32: 3 | W32: 3 | X32: 5 | Y32: 5 | Z32: 2 | AA32: 5 | AB32: 5 | AC32: 5 | AD32: 5 | AE32: 5 | AF32: 3 | AG32: 6 | AH32: 5 | AI32: 5 | AJ32: 5 | AK32: 6 | AL32: 6 | AM32: 5 | AN32: 5 | AO32: 7 | AP32: 5 | AQ32: 6 | AR32: 6 | AS32: 6 | AT32: 4 | AU32: 7 | AV32: 5 | AW32: 7 | AX32: 5 | AY32: 35 | AZ32: 28 | BA32: 23 | BB32: 23 | BC32: 33 | BD32: 21 | BE32: 28 | BF32: 21 | BG32: 25 | BH32: 18 | BI32: 25 | BJ32: 19 | BK32: 19 | BL32: 16 | BM32: 18 | BN32: 11 | BO32: 17 | BP32: 12 | BQ32: 18 | BR32: 14 | BS32: 10 | BT32: 6 | BU32: 7 | BV32: 7 | BW32: 12 | BX32: 12 | BY32: 1 | BZ32: 3 | CA32: 3 | CB32: 5 | CC32: 3 | CD32: 15 | CF32: 24 | CG32: 25 | CH32: 130 | CI32: 32 | CK32: 14 | CL32: 39 | CM32: 116 | CN32: 129 | CO32: 66 | CP32: 133 | CQ32: 254 | CR32: 115 | CT32: 44 | CU32: 109 | CV32: 363
B33: 03 | C33: 26 | D33: 6725 | E33: P.S. SANTA CRUZ | F33: 396 | H33: 222 | I33: 174 | K33: 5 | L33: 4 | M33: 4 | N33: 3 | O33: 6 | P33: 4 | Q33: 3 | R33: 3 | S33: 3 | T33: 2 | U33: 4 | V33: 3 | W33: 2 | X33: 3 | Y33: 2 | Z33: 2 | AA33: 2 | AB33: 2 | AC33: 2 | AD33: 3 | AE33: 2 | AF33: 2 | AG33: 3 | AH33: 3 | AI33: 3 | AJ33: 3 | AK33: 4 | AL33: 3 | AM33: 2 | AN33: 3 | AO33: 5 | AP33: 2 | AQ33: 3 | AR33: 3 | AS33: 3 | AT33: 2 | AU33: 4 | AV33: 3 | AW33: 4 | AX33: 2 | AY33: 21 | AZ33: 16 | BA33: 14 | BB33: 13 | BC33: 19 | BD33: 12 | BE33: 16 | BF33: 12 | BG33: 14 | BH33: 10 | BI33: 14 | BJ33: 10 | BK33: 11 | BL33: 9 | BM33: 10 | BN33: 6 | BO33: 10 | BP33: 8 | BQ33: 10 | BR33: 8 | BS33: 6 | BT33: 4 | BU33: 4 | BV33: 4 | BW33: 7 | BX33: 7 | BY33: 1 | BZ33: 2 | CA33: 2 | CB33: 3 | CC33: 2 | CD33: 12 | CF33: 14 | CG33: 12 | CH33: 73 | CI33: 17 | CK33: 9 | CL33: 28 | CM33: 72 | CN33: 71 | CO33: 36 | CP33: 77 | CQ33: 143 | CR33: 68 | CT33: 25 | CU33: 59 | CV33: 207
B34: 03 | C34: 27 | D34: 7757 | E34: P.S. HUANANGUI | F34: 807 | H34: 457 | I34: 350 | K34: 9 | L34: 7 | M34: 8 | N34: 6 | O34: 11 | P34: 6 | Q34: 6 | R34: 5 | S34: 6 | T34: 4 | U34: 9 | V34: 5 | W34: 4 | X34: 5 | Y34: 5 | Z34: 4 | AA34: 5 | AB34: 5 | AC34: 5 | AD34: 6 | AE34: 5 | AF34: 4 | AG34: 7 | AH34: 5 | AI34: 5 | AJ34: 5 | AK34: 7 | AL34: 7 | AM34: 5 | AN34: 6 | AO34: 10 | AP34: 5 | AQ34: 7 | AR34: 7 | AS34: 7 | AT34: 5 | AU34: 9 | AV34: 6 | AW34: 9 | AX34: 5 | AY34: 41 | AZ34: 32 | BA34: 27 | BB34: 26 | BC34: 37 | BD34: 24 | BE34: 32 | BF34: 24 | BG34: 30 | BH34: 19 | BI34: 30 | BJ34: 21 | BK34: 23 | BL34: 18 | BM34: 22 | BN34: 13 | BO34: 19 | BP34: 16 | BQ34: 23 | BR34: 17 | BS34: 11 | BT34: 8 | BU34: 9 | BV34: 9 | BW34: 14 | BX34: 15 | BY34: 3 | BZ34: 3 | CA34: 3 | CB34: 6 | CC34: 4 | CD34: 22 | CF34: 27 | CG34: 28 | CH34: 146 | CI34: 32 | CK34: 16 | CL34: 52 | CM34: 142 | CN34: 150 | CO34: 76 | CP34: 155 | CQ34: 293 | CR34: 141 | CT34: 53 | CU34: 126 | CV34: 419
A35: 150808 | C35: 28 | D35: 150808 | E35: DISTRITO PACCHO | F35: 1466 | H35: 745 | I35: 721 | K35: 5 | L35: 2 | M35: 5 | N35: 7 | O35: 10 | P35: 12 | Q35: 7 | R35: 5 | S35: 7 | T35: 16 | U35: 12 | V35: 13 | W35: 8 | X35: 5 | Y35: 13 | Z35: 4 | AA35: 8 | AB35: 7 | AC35: 5 | AD35: 11 | AE35: 11 | AF35: 9 | AG35: 9 | AH35: 6 | AI35: 11 | AJ35: 7 | AK35: 6 | AL35: 10 | AM35: 12 | AN35: 11 | AO35: 15 | AP35: 10 | AQ35: 7 | AR35: 5 | AS35: 11 | AT35: 8 | AU35: 12 | AV35: 11 | AW35: 7 | AX35: 8 | AY35: 39 | AZ35: 47 | BA35: 40 | BB35: 41 | BC35: 38 | BD35: 36 | BE35: 46 | BF35: 31 | BG35: 37 | BH35: 36 | BI35: 50 | BJ35: 44 | BK35: 50 | BL35: 58 | BM35: 50 | BN35: 43 | BO35: 41 | BP35: 37 | BQ35: 40 | BR35: 36 | BS35: 30 | BT35: 35 | BU35: 40 | BV35: 41 | BW35: 63 | BX35: 69 | BY35: 1 | BZ35: 3 | CA35: 1 | CB35: 2 | CC35: 1 | CD35: 8 | CE35: 0 | CF35: 43 | CG35: 42 | CH35: 235 | CI35: 21 | CK35: 7 | CL35: 69 | CM35: 197 | CN35: 234 | CO35: 113 | CP35: 205 | CQ35: 519 | CR35: 432 | CT35: 86 | CU35: 186 | CV35: 686
B36: 05 | C36: 29 | D36: 5650 | E36: P.S. PACCHO | F36: 625 | H36: 323 | I36: 302 | K36: 4 | L36: 2 | M36: 3 | N36: 3 | O36: 4 | P36: 6 | Q36: 3 | R36: 2 | S36: 3 | T36: 7 | U36: 5 | V36: 6 | W36: 4 | X36: 3 | Y36: 6 | Z36: 2 | AA36: 4 | AB36: 3 | AC36: 3 | AD36: 5 | AE36: 5 | AF36: 4 | AG36: 4 | AH36: 3 | AI36: 5 | AJ36: 3 | AK36: 3 | AL36: 4 | AM36: 6 | AN36: 5 | AO36: 6 | AP36: 4 | AQ36: 3 | AR36: 3 | AS36: 5 | AT36: 4 | AU36: 6 | AV36: 5 | AW36: 3 | AX36: 4 | AY36: 17 | AZ36: 19 | BA36: 17 | BB36: 16 | BC36: 16 | BD36: 15 | BE36: 18 | BF36: 12 | BG36: 15 | BH36: 15 | BI36: 21 | BJ36: 17 | BK36: 21 | BL36: 24 | BM36: 21 | BN36: 17 | BO36: 17 | BP36: 15 | BQ36: 17 | BR36: 15 | BS36: 13 | BT36: 15 | BU36: 17 | BV36: 16 | BW36: 28 | BX36: 28 | BY36: 1 | BZ36: 2 | CA36: 1 | CB36: 2 | CC36: 1 | CD36: 4 | CF36: 19 | CG36: 20 | CH36: 94 | CI36: 9 | CK36: 6 | CL36: 31 | CM36: 94 | CN36: 108 | CO36: 51 | CP36: 87 | CQ36: 212 | CR36: 181 | CT36: 41 | CU36: 85 | CV36: 281
B37: 05 | C37: 30 | D37: 5651 | E37: P.S. LACSANGA | F37: 363 | H37: 181 | I37: 182 | K37: 1 | L37: 0 | M37: 1 | N37: 2 | O37: 2 | P37: 3 | Q37: 2 | R37: 1 | S37: 2 | T37: 4 | U37: 3 | V37: 4 | W37: 2 | X37: 1 | Y37: 3 | Z37: 1 | AA37: 2 | AB37: 2 | AC37: 1 | AD37: 3 | AE37: 3 | AF37: 2 | AG37: 2 | AH37: 2 | AI37: 3 | AJ37: 2 | AK37: 2 | AL37: 3 | AM37: 3 | AN37: 3 | AO37: 4 | AP37: 3 | AQ37: 2 | AR37: 1 | AS37: 3 | AT37: 2 | AU37: 3 | AV37: 3 | AW37: 2 | AX37: 2 | AY37: 9 | AZ37: 11 | BA37: 10 | BB37: 11 | BC37: 9 | BD37: 9 | BE37: 11 | BF37: 7 | BG37: 9 | BH37: 9 | BI37: 12 | BJ37: 12 | BK37: 12 | BL37: 13 | BM37: 12 | BN37: 11 | BO37: 10 | BP37: 9 | BQ37: 10 | BR37: 9 | BS37: 7 | BT37: 8 | BU37: 10 | BV37: 11 | BW37: 14 | BX37: 18 | BY37: 0 | BZ37: 1 | CA37: 0 | CB37: 0 | CC37: 0 | CD37: 3 | CF37: 12 | CG37: 11 | CH37: 59 | CI37: 5 | CK37: 1 | CL37: 17 | CM37: 49 | CN37: 62 | CO37: 31 | CP37: 51 | CQ37: 126 | CR37: 106 | CT37: 22 | CU37: 50 | CV37: 167
B38: 05 | C38: 31 | D38: 5653 | E38: P.S. AYARANGA | F38: 233 | H38: 118 | I38: 115 | K38: 0 | L38: 0 | M38: 0 | N38: 1 | O38: 2 | P38: 0 | Q38: 1 | R38: 1 | S38: 1 | T38: 2 | U38: 2 | V38: 1 | W38: 1 | X38: 1 | Y38: 2 | Z38: 0 | AA38: 1 | AB38: 1 | AC38: 1 | AD38: 2 | AE38: 2 | AF38: 2 | AG38: 2 | AH38: 1 | AI38: 2 | AJ38: 1 | AK38: 1 | AL38: 2 | AM38: 2 | AN38: 2 | AO38: 3 | AP38: 2 | AQ38: 1 | AR38: 1 | AS38: 2 | AT38: 1 | AU38: 2 | AV38: 2 | AW38: 1 | AX38: 1 | AY38: 6 | AZ38: 8 | BA38: 6 | BB38: 6 | BC38: 6 | BD38: 6 | BE38: 8 | BF38: 6 | BG38: 6 | BH38: 6 | BI38: 8 | BJ38: 7 | BK38: 8 | BL38: 10 | BM38: 8 | BN38: 7 | BO38: 6 | BP38: 6 | BQ38: 6 | BR38: 6 | BS38: 5 | BT38: 6 | BU38: 6 | BV38: 6 | BW38: 10 | BX38: 11 | BY38: 0 | BZ38: 0 | CA38: 0 | CB38: 0 | CC38: 0 | CD38: 0 | CF38: 8 | CG38: 7 | CH38: 39 | CI38: 3 | CK38: 0 | CL38: 8 | CM38: 27 | CN38: 39 | CO38: 20 | CP38: 32 | CQ38: 86 | CR38: 68 | CT38: 12 | CU38: 33 | CV38: 112
B39: 05 | C39: 32 | D39: 5652 | E39: P.S. MUZGA | F39: 245 | H39: 123 | I39: 122 | K39: 0 | L39: 0 | M39: 1 | N39: 1 | O39: 2 | P39: 3 | Q39: 1 | R39: 1 | S39: 1 | T39: 3 | U39: 2 | V39: 2 | W39: 1 | X39: 0 | Y39: 2 | Z39: 1 | AA39: 1 | AB39: 1 | AC39: 0 | AD39: 1 | AE39: 1 | AF39: 1 | AG39: 1 | AH39: 0 | AI39: 1 | AJ39: 1 | AK39: 0 | AL39: 1 | AM39: 1 | AN39: 1 | AO39: 2 | AP39: 1 | AQ39: 1 | AR39: 0 | AS39: 1 | AT39: 1 | AU39: 1 | AV39: 1 | AW39: 1 | AX39: 1 | AY39: 7 | AZ39: 9 | BA39: 7 | BB39: 8 | BC39: 7 | BD39: 6 | BE39: 9 | BF39: 6 | BG39: 7 | BH39: 6 | BI39: 9 | BJ39: 8 | BK39: 9 | BL39: 11 | BM39: 9 | BN39: 8 | BO39: 8 | BP39: 7 | BQ39: 7 | BR39: 6 | BS39: 5 | BT39: 6 | BU39: 7 | BV39: 8 | BW39: 11 | BX39: 12 | BY39: 0 | BZ39: 0 | CA39: 0 | CB39: 0 | CC39: 0 | CD39: 1 | CF39: 4 | CG39: 4 | CH39: 43 | CI39: 4 | CK39: 0 | CL39: 13 | CM39: 27 | CN39: 25 | CO39: 11 | CP39: 35 | CQ39: 95 | CR39: 77 | CT39: 11 | CU39: 18 | CV39: 126
A40: 150809 | C40: 33 | D40: 150809 | E40: DISTRITO SANTA LEONOR | F40: 805 | H40: 426 | I40: 379 | K40: 3 | L40: 4 | M40: 5 | N40: 4 | O40: 8 | P40: 12 | Q40: 7 | R40: 6 | S40: 6 | T40: 5 | U40: 3 | V40: 7 | W40: 3 | X40: 7 | Y40: 6 | Z40: 3 | AA40: 7 | AB40: 3 | AC40: 3 | AD40: 3 | AE40: 7 | AF40: 5 | AG40: 5 | AH40: 5 | AI40: 5 | AJ40: 9 | AK40: 5 | AL40: 5 | AM40: 5 | AN40: 5 | AO40: 9 | AP40: 4 | AQ40: 5 | AR40: 7 | AS40: 7 | AT40: 2 | AU40: 7 | AV40: 6 | AW40: 5 | AX40: 4 | AY40: 26 | AZ40: 19 | BA40: 28 | BB40: 26 | BC40: 26 | BD40: 29 | BE40: 29 | BF40: 18 | BG40: 23 | BH40: 23 | BI40: 21 | BJ40: 21 | BK40: 26 | BL40: 20 | BM40: 26 | BN40: 19 | BO40: 27 | BP40: 23 | BQ40: 25 | BR40: 18 | BS40: 19 | BT40: 11 | BU40: 16 | BV40: 20 | BW40: 23 | BX40: 26 | BY40: 1 | BZ40: 2 | CA40: 0 | CB40: 1 | CC40: 4 | CD40: 10 | CE40: 0 | CF40: 29 | CG40: 23 | CH40: 136 | CI40: 15 | CK40: 7 | CL40: 53 | CM40: 127 | CN40: 135 | CO40: 68 | CP40: 121 | CQ40: 281 | CR40: 208 | CT40: =SUM(U40:AD40) -> 45 | CU40: =SUM(AE40:AX40) -> 112 | CV40: =SUM(AY40:BN40) -> 380
B41: 05 | C41: 34 | D41: 5645 | E41: P.S. CHIUCHIN | F41: 512 | H41: 272 | I41: 240 | K41: 2 | L41: 2 | M41: 3 | N41: 3 | O41: 6 | P41: 8 | Q41: 5 | R41: 4 | S41: 4 | T41: 3 | U41: 2 | V41: 5 | W41: 2 | X41: 5 | Y41: 4 | Z41: 2 | AA41: 5 | AB41: 2 | AC41: 2 | AD41: 2 | AE41: 5 | AF41: 3 | AG41: 3 | AH41: 3 | AI41: 3 | AJ41: 6 | AK41: 3 | AL41: 3 | AM41: 3 | AN41: 3 | AO41: 6 | AP41: 3 | AQ41: 3 | AR41: 5 | AS41: 5 | AT41: 1 | AU41: 5 | AV41: 4 | AW41: 3 | AX41: 3 | AY41: 17 | AZ41: 12 | BA41: 17 | BB41: 16 | BC41: 17 | BD41: 18 | BE41: 18 | BF41: 11 | BG41: 14 | BH41: 14 | BI41: 13 | BJ41: 13 | BK41: 17 | BL41: 13 | BM41: 16 | BN41: 12 | BO41: 17 | BP41: 14 | BQ41: 16 | BR41: 11 | BS41: 12 | BT41: 7 | BU41: 10 | BV41: 13 | BW41: 14 | BX41: 16 | BY41: 1 | BZ41: 1 | CA41: 0 | CB41: 1 | CC41: 2 | CD41: 6 | CF41: 18 | CG41: 16 | CH41: 84 | CI41: 8 | CK41: 4 | CL41: 36 | CM41: 85 | CN41: 89 | CO41: 44 | CP41: 77 | CQ41: 176 | CR41: 130 | CT41: 31 | CU41: 73 | CV41: 238
B42: 05 | C42: 35 | D42: 5646 | E42: P.S. PARQUIN | F42: 168 | H42: 87 | I42: 81 | K42: 1 | L42: 1 | M42: 1 | N42: 1 | O42: 1 | P42: 3 | Q42: 1 | R42: 1 | S42: 2 | T42: 1 | U42: 1 | V42: 1 | W42: 1 | X42: 1 | Y42: 1 | Z42: 0 | AA42: 1 | AB42: 1 | AC42: 1 | AD42: 1 | AE42: 1 | AF42: 1 | AG42: 1 | AH42: 1 | AI42: 1 | AJ42: 2 | AK42: 1 | AL42: 1 | AM42: 1 | AN42: 1 | AO42: 2 | AP42: 1 | AQ42: 1 | AR42: 1 | AS42: 1 | AT42: 1 | AU42: 1 | AV42: 1 | AW42: 1 | AX42: 0 | AY42: 5 | AZ42: 4 | BA42: 6 | BB42: 5 | BC42: 5 | BD42: 7 | BE42: 6 | BF42: 4 | BG42: 5 | BH42: 5 | BI42: 5 | BJ42: 5 | BK42: 5 | BL42: 4 | BM42: 5 | BN42: 4 | BO42: 5 | BP42: 5 | BQ42: 5 | BR42: 4 | BS42: 4 | BT42: 3 | BU42: 3 | BV42: 4 | BW42: 6 | BX42: 6 | BY42: 0 | BZ42: 1 | CA42: 0 | CB42: 0 | CC42: 1 | CD42: 2 | CF42: 6 | CG42: 4 | CH42: 30 | CI42: 5 | CK42: 2 | CL42: 11 | CM42: 26 | CN42: 27 | CO42: 14 | CP42: 23 | CQ42: 60 | CR42: 45 | CT42: 9 | CU42: 21 | CV42: 80
B43: 05 | C43: 36 | D43: 5647 | E43: P.S. JUCUL | F43: 125 | H43: 67 | I43: 58 | K43: 0 | L43: 1 | M43: 1 | N43: 0 | O43: 1 | P43: 1 | Q43: 1 | R43: 1 | S43: 0 | T43: 1 | U43: 0 | V43: 1 | W43: 0 | X43: 1 | Y43: 1 | Z43: 1 | AA43: 1 | AB43: 0 | AC43: 0 | AD43: 0 | AE43: 1 | AF43: 1 | AG43: 1 | AH43: 1 | AI43: 1 | AJ43: 1 | AK43: 1 | AL43: 1 | AM43: 1 | AN43: 1 | AO43: 1 | AP43: 0 | AQ43: 1 | AR43: 1 | AS43: 1 | AT43: 0 | AU43: 1 | AV43: 1 | AW43: 1 | AX43: 1 | AY43: 4 | AZ43: 3 | BA43: 5 | BB43: 5 | BC43: 4 | BD43: 4 | BE43: 5 | BF43: 3 | BG43: 4 | BH43: 4 | BI43: 3 | BJ43: 3 | BK43: 4 | BL43: 3 | BM43: 5 | BN43: 3 | BO43: 5 | BP43: 4 | BQ43: 4 | BR43: 3 | BS43: 3 | BT43: 1 | BU43: 3 | BV43: 3 | BW43: 3 | BX43: 4 | BY43: 0 | BZ43: 0 | CA43: 0 | CB43: 0 | CC43: 1 | CD43: 2 | CF43: 5 | CG43: 3 | CH43: 22 | CI43: 2 | CK43: 1 | CL43: 6 | CM43: 16 | CN43: 19 | CO43: 10 | CP43: 21 | CQ43: 45 | CR43: 33 | CT43: 5 | CU43: 18 | CV43: 62
A44: 150810 | C44: 37 | D44: 150810 | E44: DISTRITO SANTA MARIA | F44: 40867 | H44: 20439 | I44: 20428 | K44: 328 | L44: 297 | M44: 350 | N44: 363 | O44: 343 | P44: 377 | Q44: 341 | R44: 327 | S44: 323 | T44: 318 | U44: 258 | V44: 248 | W44: 390 | X44: 362 | Y44: 351 | Z44: 372 | AA44: 360 | AB44: 388 | AC44: 349 | AD44: 341 | AE44: 326 | AF44: 315 | AG44: 364 | AH44: 334 | AI44: 392 | AJ44: 342 | AK44: 341 | AL44: 333 | AM44: 350 | AN44: 302 | AO44: 315 | AP44: 324 | AQ44: 327 | AR44: 271 | AS44: 322 | AT44: 320 | AU44: 280 | AV44: 294 | AW44: 324 | AX44: 317 | AY44: 1678 | AZ44: 1538 | BA44: 1797 | BB44: 1829 | BC44: 1551 | BD44: 1645 | BE44: 1477 | BF44: 1537 | BG44: 1341 | BH44: 1333 | BI44: 1202 | BJ44: 1252 | BK44: 1073 | BL44: 1059 | BM44: 880 | BN44: 887 | BO44: 727 | BP44: 776 | BQ44: 605 | BR44: 621 | BS44: 511 | BT44: 539 | BU44: 375 | BV44: 394 | BW44: 488 | BX44: 473 | BY44: 32 | BZ44: 132 | CA44: 142 | CB44: 196 | CC44: 155 | CD44: 780 | CE44: 0 | CF44: 1626 | CG44: 1526 | CH44: 9134 | CI44: 1340 | CK44: 625 | CL44: 2742 | CM44: 8125 | CN44: 8697 | CO44: 3939 | CP44: 8057 | CQ44: 15237 | CR44: 5509 | CT44: 3419 | CU44: 6493 | CV44: 22079
B45: 02 | C45: 38 | D45: 5668 | E45: C.S. SANTA MARIA | F45: 11442 | H45: 5720 | I45: 5722 | K45: 92 | L45: 83 | M45: 98 | N45: 102 | O45: 96 | P45: 106 | Q45: 95 | R45: 92 | S45: 90 | T45: 89 | U45: 72 | V45: 69 | W45: 109 | X45: 101 | Y45: 98 | Z45: 104 | AA45: 101 | AB45: 109 | AC45: 98 | AD45: 95 | AE45: 91 | AF45: 88 | AG45: 102 | AH45: 94 | AI45: 110 | AJ45: 96 | AK45: 95 | AL45: 93 | AM45: 98 | AN45: 85 | AO45: 88 | AP45: 91 | AQ45: 92 | AR45: 76 | AS45: 90 | AT45: 90 | AU45: 78 | AV45: 82 | AW45: 91 | AX45: 89 | AY45: 470 | AZ45: 431 | BA45: 503 | BB45: 512 | BC45: 434 | BD45: 461 | BE45: 414 | BF45: 430 | BG45: 375 | BH45: 373 | BI45: 337 | BJ45: 351 | BK45: 300 | BL45: 297 | BM45: 246 | BN45: 248 | BO45: 204 | BP45: 217 | BQ45: 169 | BR45: 174 | BS45: 143 | BT45: 151 | BU45: 105 | BV45: 110 | BW45: 136 | BX45: 133 | BY45: 9 | BZ45: 37 | CA45: 40 | CB45: 55 | CC45: 43 | CD45: 219 | CF45: 456 | CG45: 428 | CH45: 2558 | CI45: 375 | CK45: 175 | CL45: 768 | CM45: 2274 | CN45: 2435 | CO45: 1104 | CP45: 2256 | CQ45: 4266 | CR45: 1542 | CT45: 956 | CU45: 1819 | CV45: 6182
B46: 02 | C46: 39 | D46: 5669 | E46: P.S. CHONTA | F46: 6134 | H46: 3069 | I46: 3065 | K46: 49 | L46: 45 | M46: 53 | N46: 54 | O46: 51 | P46: 57 | Q46: 51 | R46: 49 | S46: 48 | T46: 48 | U46: 39 | V46: 37 | W46: 59 | X46: 54 | Y46: 53 | Z46: 56 | AA46: 54 | AB46: 58 | AC46: 52 | AD46: 51 | AE46: 49 | AF46: 47 | AG46: 55 | AH46: 50 | AI46: 59 | AJ46: 51 | AK46: 51 | AL46: 50 | AM46: 53 | AN46: 45 | AO46: 47 | AP46: 49 | AQ46: 49 | AR46: 41 | AS46: 48 | AT46: 48 | AU46: 42 | AV46: 44 | AW46: 49 | AX46: 48 | AY46: 252 | AZ46: 231 | BA46: 270 | BB46: 274 | BC46: 233 | BD46: 247 | BE46: 222 | BF46: 231 | BG46: 201 | BH46: 200 | BI46: 180 | BJ46: 188 | BK46: 161 | BL46: 159 | BM46: 132 | BN46: 133 | BO46: 109 | BP46: 116 | BQ46: 91 | BR46: 93 | BS46: 77 | BT46: 81 | BU46: 56 | BV46: 59 | BW46: 74 | BX46: 71 | BY46: 5 | BZ46: 20 | CA46: 21 | CB46: 29 | CC46: 23 | CD46: 117 | CF46: 243 | CG46: 230 | CH46: 1371 | CI46: 201 | CK46: 94 | CL46: 411 | CM46: 1219 | CN46: 1305 | CO46: 591 | CP46: 1210 | CQ46: 2287 | CR46: 827 | CT46: 513 | CU46: 975 | CV46: 3314
B47: 02 | C47: 40 | D47: 5671 | E47: P.S. ZAPATA | F47: 3678 | H47: 1840 | I47: 1838 | K47: 30 | L47: 27 | M47: 32 | N47: 33 | O47: 31 | P47: 34 | Q47: 31 | R47: 29 | S47: 29 | T47: 29 | U47: 23 | V47: 22 | W47: 35 | X47: 33 | Y47: 32 | Z47: 33 | AA47: 32 | AB47: 35 | AC47: 31 | AD47: 31 | AE47: 29 | AF47: 28 | AG47: 33 | AH47: 30 | AI47: 35 | AJ47: 31 | AK47: 31 | AL47: 30 | AM47: 32 | AN47: 27 | AO47: 28 | AP47: 29 | AQ47: 29 | AR47: 24 | AS47: 29 | AT47: 29 | AU47: 25 | AV47: 26 | AW47: 29 | AX47: 29 | AY47: 151 | AZ47: 138 | BA47: 162 | BB47: 165 | BC47: 140 | BD47: 148 | BE47: 133 | BF47: 138 | BG47: 121 | BH47: 120 | BI47: 108 | BJ47: 113 | BK47: 97 | BL47: 95 | BM47: 79 | BN47: 80 | BO47: 65 | BP47: 70 | BQ47: 54 | BR47: 56 | BS47: 46 | BT47: 49 | BU47: 34 | BV47: 35 | BW47: 44 | BX47: 42 | BY47: 3 | BZ47: 12 | CA47: 13 | CB47: 18 | CC47: 14 | CD47: 70 | CF47: 146 | CG47: 137 | CH47: 822 | CI47: 121 | CK47: 57 | CL47: 248 | CM47: 732 | CN47: 781 | CO47: 354 | CP47: 725 | CQ47: 1372 | CR47: 495 | CT47: 307 | CU47: 583 | CV47: 1988
B48: 02 | C48: 41 | D48: 5670 | E48: P.S. AMADO VELASQUEZ | F48: 12257 | H48: 6132 | I48: 6125 | K48: 98 | L48: 89 | M48: 104 | N48: 109 | O48: 103 | P48: 112 | Q48: 103 | R48: 98 | S48: 98 | T48: 95 | U48: 78 | V48: 75 | W48: 117 | X48: 109 | Y48: 105 | Z48: 112 | AA48: 108 | AB48: 116 | AC48: 105 | AD48: 103 | AE48: 98 | AF48: 95 | AG48: 108 | AH48: 100 | AI48: 117 | AJ48: 102 | AK48: 103 | AL48: 100 | AM48: 104 | AN48: 91 | AO48: 95 | AP48: 97 | AQ48: 98 | AR48: 81 | AS48: 97 | AT48: 95 | AU48: 85 | AV48: 89 | AW48: 97 | AX48: 94 | AY48: 503 | AZ48: 461 | BA48: 539 | BB48: 549 | BC48: 465 | BD48: 493 | BE48: 442 | BF48: 461 | BG48: 403 | BH48: 400 | BI48: 361 | BJ48: 375 | BK48: 322 | BL48: 317 | BM48: 265 | BN48: 266 | BO48: 218 | BP48: 233 | BQ48: 182 | BR48: 186 | BS48: 153 | BT48: 161 | BU48: 112 | BV48: 119 | BW48: 146 | BX48: 142 | BY48: 9 | BZ48: 39 | CA48: 42 | CB48: 59 | CC48: 47 | CD48: 233 | CF48: 488 | CG48: 456 | CH48: 2739 | CI48: 402 | CK48: 187 | CL48: 822 | CM48: 2438 | CN48: 2609 | CO48: 1180 | CP48: 2417 | CQ48: 4570 | CR48: 1652 | CT48: 1028 | CU48: 1946 | CV48: 6622
B49: 02 | C49: 42 | D49: 5672 | E49: P.S. SAN BARTOLOME | F49: 7356 | H49: 3678 | I49: 3678 | K49: 59 | L49: 53 | M49: 63 | N49: 65 | O49: 62 | P49: 68 | Q49: 61 | R49: 59 | S49: 58 | T49: 57 | U49: 46 | V49: 45 | W49: 70 | X49: 65 | Y49: 63 | Z49: 67 | AA49: 65 | AB49: 70 | AC49: 63 | AD49: 61 | AE49: 59 | AF49: 57 | AG49: 66 | AH49: 60 | AI49: 71 | AJ49: 62 | AK49: 61 | AL49: 60 | AM49: 63 | AN49: 54 | AO49: 57 | AP49: 58 | AQ49: 59 | AR49: 49 | AS49: 58 | AT49: 58 | AU49: 50 | AV49: 53 | AW49: 58 | AX49: 57 | AY49: 302 | AZ49: 277 | BA49: 323 | BB49: 329 | BC49: 279 | BD49: 296 | BE49: 266 | BF49: 277 | BG49: 241 | BH49: 240 | BI49: 216 | BJ49: 225 | BK49: 193 | BL49: 191 | BM49: 158 | BN49: 160 | BO49: 131 | BP49: 140 | BQ49: 109 | BR49: 112 | BS49: 92 | BT49: 97 | BU49: 68 | BV49: 71 | BW49: 88 | BX49: 85 | BY49: 6 | BZ49: 24 | CA49: 26 | CB49: 35 | CC49: 28 | CD49: 141 | CF49: 293 | CG49: 275 | CH49: 1644 | CI49: 241 | CK49: 112 | CL49: 493 | CM49: 1462 | CN49: 1567 | CO49: 710 | CP49: 1449 | CQ49: 2742 | CR49: 993 | CT49: 615 | CU49: 1170 | CV49: 3973
A50: 150811 | C50: 43 | D50: 150811 | E50: DISTRITO SAYAN | F50: 25487 | H50: 12941 | I50: 12546 | K50: 183 | L50: 204 | M50: 213 | N50: 193 | O50: 195 | P50: 188 | Q50: 211 | R50: 194 | S50: 226 | T50: 206 | U50: 210 | V50: 194 | W50: 230 | X50: 232 | Y50: 224 | Z50: 261 | AA50: 232 | AB50: 218 | AC50: 238 | AD50: 222 | AE50: 249 | AF50: 176 | AG50: 219 | AH50: 213 | AI50: 239 | AJ50: 218 | AK50: 218 | AL50: 227 | AM50: 234 | AN50: 203 | AO50: 213 | AP50: 251 | AQ50: 216 | AR50: 217 | AS50: 204 | AT50: 193 | AU50: 215 | AV50: 214 | AW50: 206 | AX50: 195 | AY50: 962 | AZ50: 1019 | BA50: 1124 | BB50: 1112 | BC50: 970 | BD50: 1025 | BE50: 976 | BF50: 935 | BG50: 864 | BH50: 862 | BI50: 809 | BJ50: 744 | BK50: 647 | BL50: 626 | BM50: 564 | BN50: 560 | BO50: 491 | BP50: 408 | BQ50: 372 | BR50: 355 | BS50: 309 | BT50: 236 | BU50: 215 | BV50: 198 | BW50: 263 | BX50: 247 | BY50: 18 | BZ50: 79 | CA50: 90 | CB50: 104 | CC50: 114 | CD50: 506 | CE50: 0 | CF50: 1037 | CG50: 1070 | CH50: 5697 | CI50: 657 | CK50: 387 | CL50: 1626 | CM50: 5131 | CN50: 5751 | CO50: 2633 | CP50: 5047 | CQ50: 9582 | CR50: 3094 | CT50: 2261 | CU50: 4320 | CV50: 13799
B51: 03 | C51: 44 | D51: 5780 | E51: C.S. SAYAN | F51: 8144 | H51: 4139 | I51: 4005 | K51: 59 | L51: 64 | M51: 66 | N51: 60 | O51: 62 | P51: 59 | Q51: 66 | R51: 63 | S51: 72 | T51: 64 | U51: 67 | V51: 61 | W51: 74 | X51: 75 | Y51: 71 | Z51: 84 | AA51: 75 | AB51: 69 | AC51: 76 | AD51: 71 | AE51: 73 | AF51: 57 | AG51: 69 | AH51: 69 | AI51: 77 | AJ51: 69 | AK51: 69 | AL51: 72 | AM51: 76 | AN51: 66 | AO51: 69 | AP51: 79 | AQ51: 67 | AR51: 68 | AS51: 67 | AT51: 62 | AU51: 71 | AV51: 70 | AW51: 67 | AX51: 62 | AY51: 308 | AZ51: 327 | BA51: 360 | BB51: 357 | BC51: 311 | BD51: 327 | BE51: 314 | BF51: 299 | BG51: 276 | BH51: 275 | BI51: 259 | BJ51: 239 | BK51: 209 | BL51: 199 | BM51: 180 | BN51: 179 | BO51: 156 | BP51: 131 | BQ51: 120 | BR51: 112 | BS51: 100 | BT51: 76 | BU51: 70 | BV51: 63 | BW51: 83 | BX51: 77 | BY51: 7 | BZ51: 25 | CA51: 29 | CB51: 34 | CC51: 35 | CD51: 159 | CF51: 333 | CG51: 341 | CH51: 1824 | CI51: 207 | CK51: 123 | CL51: 512 | CM51: 1626 | CN51: 1832 | CO51: 841 | CP51: 1622 | CQ51: 3067 | CR51: 988 | CT51: 723 | CU51: 1379 | CV51: 4419
B52: 03 | C52: 45 | D52: 5774 | E52: C.S. 9 DE OCTUBRE | F52: 6893 | H52: 3501 | I52: 3392 | K52: 49 | L52: 55 | M52: 58 | N52: 53 | O52: 53 | P52: 51 | Q52: 57 | R52: 52 | S52: 61 | T52: 56 | U52: 57 | V52: 53 | W52: 62 | X52: 63 | Y52: 61 | Z52: 71 | AA52: 63 | AB52: 59 | AC52: 65 | AD52: 60 | AE52: 70 | AF52: 48 | AG52: 59 | AH52: 58 | AI52: 65 | AJ52: 59 | AK52: 59 | AL52: 62 | AM52: 63 | AN52: 55 | AO52: 58 | AP52: 68 | AQ52: 59 | AR52: 59 | AS52: 55 | AT52: 52 | AU52: 58 | AV52: 58 | AW52: 56 | AX52: 53 | AY52: 259 | AZ52: 275 | BA52: 303 | BB52: 300 | BC52: 262 | BD52: 277 | BE52: 263 | BF52: 252 | BG52: 234 | BH52: 233 | BI52: 219 | BJ52: 201 | BK52: 175 | BL52: 169 | BM52: 153 | BN52: 151 | BO52: 133 | BP52: 110 | BQ52: 100 | BR52: 96 | BS52: 83 | BT52: 64 | BU52: 58 | BV52: 53 | BW52: 71 | BX52: 66 | BY52: 5 | BZ52: 21 | CA52: 24 | CB52: 28 | CC52: 31 | CD52: 139 | CF52: 282 | CG52: 290 | CH52: 1538 | CI52: 183 | CK52: 104 | CL52: 441 | CM52: 1394 | CN52: 1563 | CO52: 714 | CP52: 1362 | CQ52: 2589 | CR52: 834 | CT52: 614 | CU52: 1174 | CV52: 3726
B53: 03 | C53: 46 | D53: 5781 | E53: P.S. CHAMBARA | F53: 756 | H53: 375 | I53: 381 | K53: 6 | L53: 7 | M53: 7 | N53: 6 | O53: 6 | P53: 6 | Q53: 7 | R53: 6 | S53: 7 | T53: 7 | U53: 6 | V53: 6 | W53: 6 | X53: 7 | Y53: 6 | Z53: 8 | AA53: 6 | AB53: 7 | AC53: 6 | AD53: 7 | AE53: 7 | AF53: 5 | AG53: 6 | AH53: 6 | AI53: 6 | AJ53: 7 | AK53: 6 | AL53: 7 | AM53: 6 | AN53: 6 | AO53: 5 | AP53: 8 | AQ53: 6 | AR53: 7 | AS53: 5 | AT53: 6 | AU53: 5 | AV53: 6 | AW53: 5 | AX53: 6 | AY53: 29 | AZ53: 30 | BA53: 33 | BB53: 33 | BC53: 29 | BD53: 31 | BE53: 29 | BF53: 28 | BG53: 26 | BH53: 26 | BI53: 24 | BJ53: 22 | BK53: 19 | BL53: 19 | BM53: 17 | BN53: 17 | BO53: 15 | BP53: 12 | BQ53: 11 | BR53: 11 | BS53: 9 | BT53: 6 | BU53: 6 | BV53: 7 | BW53: 8 | BX53: 8 | BY53: 0 | BZ53: 3 | CA53: 3 | CB53: 3 | CC53: 4 | CD53: 16 | CF53: 31 | CG53: 33 | CH53: 170 | CI53: 19 | CK53: 13 | CL53: 52 | CM53: 154 | CN53: 164 | CO53: 75 | CP53: 147 | CQ53: 287 | CR53: 93 | CT53: 65 | CU53: 121 | CV53: 412
B54: 03 | C54: 47 | D54: 5775 | E54: P.S. LA MERCED | F54: 1024 | H54: 522 | I54: 502 | K54: 7 | L54: 9 | M54: 8 | N54: 8 | O54: 8 | P54: 8 | Q54: 8 | R54: 8 | S54: 9 | T54: 9 | U54: 9 | V54: 8 | W54: 9 | X54: 9 | Y54: 9 | Z54: 10 | AA54: 9 | AB54: 9 | AC54: 10 | AD54: 9 | AE54: 10 | AF54: 7 | AG54: 9 | AH54: 9 | AI54: 10 | AJ54: 9 | AK54: 9 | AL54: 9 | AM54: 9 | AN54: 8 | AO54: 9 | AP54: 10 | AQ54: 9 | AR54: 9 | AS54: 8 | AT54: 8 | AU54: 9 | AV54: 9 | AW54: 8 | AX54: 8 | AY54: 39 | AZ54: 40 | BA54: 45 | BB54: 44 | BC54: 39 | BD54: 41 | BE54: 39 | BF54: 37 | BG54: 35 | BH54: 34 | BI54: 33 | BJ54: 29 | BK54: 26 | BL54: 25 | BM54: 23 | BN54: 22 | BO54: 20 | BP54: 16 | BQ54: 15 | BR54: 14 | BS54: 12 | BT54: 9 | BU54: 9 | BV54: 8 | BW54: 11 | BX54: 10 | BY54: 1 | BZ54: 3 | CA54: 4 | CB54: 4 | CC54: 5 | CD54: 21 | CF54: 42 | CG54: 44 | CH54: 225 | CI54: 25 | CK54: 16 | CL54: 66 | CM54: 208 | CN54: 233 | CO54: 107 | CP54: 202 | CQ54: 383 | CR54: 124 | CT54: 91 | CU54: 176 | CV54: 551
B55: 03 | C55: 48 | D55: 5776 | E55: P.S. LA VILLA | F55: 7154 | H55: 3630 | I55: 3524 | K55: 51 | L55: 57 | M55: 60 | N55: 54 | O55: 54 | P55: 53 | Q55: 59 | R55: 54 | S55: 63 | T55: 58 | U55: 59 | V55: 54 | W55: 65 | X55: 65 | Y55: 63 | Z55: 73 | AA55: 65 | AB55: 61 | AC55: 67 | AD55: 62 | AE55: 73 | AF55: 50 | AG55: 62 | AH55: 60 | AI55: 67 | AJ55: 61 | AK55: 61 | AL55: 64 | AM55: 66 | AN55: 57 | AO55: 60 | AP55: 71 | AQ55: 61 | AR55: 61 | AS55: 57 | AT55: 54 | AU55: 60 | AV55: 60 | AW55: 58 | AX55: 55 | AY55: 269 | AZ55: 287 | BA55: 315 | BB55: 312 | BC55: 271 | BD55: 287 | BE55: 273 | BF55: 263 | BG55: 242 | BH55: 242 | BI55: 227 | BJ55: 209 | BK55: 181 | BL55: 176 | BM55: 158 | BN55: 157 | BO55: 138 | BP55: 115 | BQ55: 104 | BR55: 100 | BS55: 87 | BT55: 67 | BU55: 60 | BV55: 55 | BW55: 74 | BX55: 70 | BY55: 5 | BZ55: 22 | CA55: 25 | CB55: 29 | CC55: 32 | CD55: 141 | CF55: 292 | CG55: 301 | CH55: 1600 | CI55: 185 | CK55: 108 | CL55: 455 | CM55: 1442 | CN55: 1619 | CO55: 740 | CP55: 1416 | CQ55: 2686 | CR55: 870 | CT55: 634 | CU55: 1218 | CV55: 3869
B56: 03 | C56: 49 | D56: 5777 | E56: P.S. EL AHORCADO | F56: 766 | H56: 385 | I56: 381 | K56: 6 | L56: 7 | M56: 7 | N56: 6 | O56: 6 | P56: 6 | Q56: 7 | R56: 6 | S56: 7 | T56: 7 | U56: 6 | V56: 6 | W56: 7 | X56: 7 | Y56: 7 | Z56: 8 | AA56: 7 | AB56: 7 | AC56: 7 | AD56: 7 | AE56: 8 | AF56: 5 | AG56: 7 | AH56: 6 | AI56: 7 | AJ56: 7 | AK56: 7 | AL56: 7 | AM56: 7 | AN56: 6 | AO56: 6 | AP56: 8 | AQ56: 7 | AR56: 7 | AS56: 6 | AT56: 6 | AU56: 6 | AV56: 6 | AW56: 6 | AX56: 6 | AY56: 29 | AZ56: 30 | BA56: 34 | BB56: 33 | BC56: 29 | BD56: 31 | BE56: 29 | BF56: 28 | BG56: 25 | BH56: 26 | BI56: 23 | BJ56: 22 | BK56: 18 | BL56: 19 | BM56: 16 | BN56: 17 | BO56: 14 | BP56: 12 | BQ56: 11 | BR56: 11 | BS56: 9 | BT56: 7 | BU56: 6 | BV56: 6 | BW56: 8 | BX56: 8 | BY56: 0 | BZ56: 3 | CA56: 3 | CB56: 3 | CC56: 4 | CD56: 16 | CF56: 31 | CG56: 33 | CH56: 170 | CI56: 19 | CK56: 13 | CL56: 52 | CM56: 160 | CN56: 176 | CO56: 81 | CP56: 150 | CQ56: 283 | CR56: 92 | CT56: 69 | CU56: 131 | CV56: 409
B57: 03 | C57: 50 | D57: 6726 | E57: P.S. LA UNION | F57: 750 | H57: 389 | I57: 361 | K57: 5 | L57: 5 | M57: 7 | N57: 6 | O57: 6 | P57: 5 | Q57: 7 | R57: 5 | S57: 7 | T57: 5 | U57: 6 | V57: 6 | W57: 7 | X57: 6 | Y57: 7 | Z57: 7 | AA57: 7 | AB57: 6 | AC57: 7 | AD57: 6 | AE57: 8 | AF57: 4 | AG57: 7 | AH57: 5 | AI57: 7 | AJ57: 6 | AK57: 7 | AL57: 6 | AM57: 7 | AN57: 5 | AO57: 6 | AP57: 7 | AQ57: 7 | AR57: 6 | AS57: 6 | AT57: 5 | AU57: 6 | AV57: 5 | AW57: 6 | AX57: 5 | AY57: 29 | AZ57: 30 | BA57: 34 | BB57: 33 | BC57: 29 | BD57: 31 | BE57: 29 | BF57: 28 | BG57: 26 | BH57: 26 | BI57: 24 | BJ57: 22 | BK57: 19 | BL57: 19 | BM57: 17 | BN57: 17 | BO57: 15 | BP57: 12 | BQ57: 11 | BR57: 11 | BS57: 9 | BT57: 7 | BU57: 6 | BV57: 6 | BW57: 8 | BX57: 8 | BY57: 0 | BZ57: 2 | CA57: 2 | CB57: 3 | CC57: 3 | CD57: 14 | CF57: 26 | CG57: 28 | CH57: 170 | CI57: 19 | CK57: 10 | CL57: 48 | CM57: 147 | CN57: 164 | CO57: 75 | CP57: 148 | CQ57: 287 | CR57: 93 | CT57: 65 | CU57: 121 | CV57: 413
A58: 150812 | C58: 51 | D58: 150812 | E58: DISTRITO VEGUETA | F58: 29531 | H58: 14802 | I58: 14729 | K58: 269 | L58: 277 | M58: 291 | N58: 285 | O58: 311 | P58: 294 | Q58: 284 | R58: 248 | S58: 303 | T58: 266 | U58: 262 | V58: 269 | W58: 303 | X58: 261 | Y58: 304 | Z58: 275 | AA58: 265 | AB58: 275 | AC58: 261 | AD58: 243 | AE58: 262 | AF58: 255 | AG58: 245 | AH58: 264 | AI58: 323 | AJ58: 253 | AK58: 289 | AL58: 253 | AM58: 270 | AN58: 220 | AO58: 276 | AP58: 228 | AQ58: 251 | AR58: 211 | AS58: 230 | AT58: 236 | AU58: 233 | AV58: 218 | AW58: 221 | AX58: 230 | AY58: 1027 | AZ58: 1087 | BA58: 1317 | BB58: 1358 | BC58: 1197 | BD58: 1284 | BE58: 1116 | BF58: 1155 | BG58: 944 | BH58: 959 | BI58: 807 | BJ58: 836 | BK58: 693 | BL58: 699 | BM58: 594 | BN58: 625 | BO58: 470 | BP58: 495 | BQ58: 392 | BR58: 370 | BS58: 303 | BT58: 271 | BU58: 228 | BV58: 211 | BW58: 261 | BX58: 318 | BY58: 28 | BZ58: 140 | CA58: 106 | CB58: 129 | CC58: 171 | CD58: 685 | CE58: 0 | CF58: 1245 | CG58: 1123 | CH58: 6679 | CI58: 1167 | CK58: 546 | CL58: 2282 | CM58: 6572 | CN58: 6784 | CO58: 3040 | CP58: 5691 | CQ58: 10909 | CR58: 3319 | CT58: 2718 | CU58: 4968 | CV58: 15698
B59: 04 | C59: 52 | D59: 5673 | E59: C.S. VEGUETA | F59: 8284 | H59: 4153 | I59: 4131 | K59: 76 | L59: 78 | M59: 82 | N59: 79 | O59: 88 | P59: 83 | Q59: 79 | R59: 70 | S59: 86 | T59: 74 | U59: 74 | V59: 75 | W59: 85 | X59: 74 | Y59: 85 | Z59: 77 | AA59: 75 | AB59: 77 | AC59: 74 | AD59: 68 | AE59: 74 | AF59: 72 | AG59: 69 | AH59: 74 | AI59: 90 | AJ59: 71 | AK59: 82 | AL59: 71 | AM59: 76 | AN59: 61 | AO59: 77 | AP59: 63 | AQ59: 71 | AR59: 59 | AS59: 64 | AT59: 67 | AU59: 65 | AV59: 61 | AW59: 63 | AX59: 64 | AY59: 288 | AZ59: 305 | BA59: 369 | BB59: 381 | BC59: 335 | BD59: 359 | BE59: 313 | BF59: 324 | BG59: 264 | BH59: 269 | BI59: 225 | BJ59: 235 | BK59: 194 | BL59: 196 | BM59: 166 | BN59: 176 | BO59: 132 | BP59: 139 | BQ59: 110 | BR59: 104 | BS59: 85 | BT59: 76 | BU59: 64 | BV59: 59 | BW59: 73 | BX59: 90 | BY59: 8 | BZ59: 40 | CA59: 30 | CB59: 36 | CC59: 48 | CD59: 192 | CF59: 349 | CG59: 314 | CH59: 1873 | CI59: 328 | CK59: 154 | CL59: 641 | CM59: 1848 | CN59: 1905 | CO59: 852 | CP59: 1596 | CQ59: 3056 | CR59: 932 | CT59: 764 | CU59: 1394 | CV59: 4399
B60: 04 | C60: 53 | D60: 5674 | E60: P.S. MAZO | F60: 2955 | H60: 1483 | I60: 1472 | K60: 27 | L60: 27 | M60: 29 | N60: 29 | O60: 31 | P60: 29 | Q60: 29 | R60: 25 | S60: 30 | T60: 27 | U60: 26 | V60: 27 | W60: 31 | X60: 26 | Y60: 31 | Z60: 28 | AA60: 26 | AB60: 28 | AC60: 26 | AD60: 24 | AE60: 26 | AF60: 25 | AG60: 24 | AH60: 26 | AI60: 33 | AJ60: 25 | AK60: 28 | AL60: 25 | AM60: 27 | AN60: 22 | AO60: 27 | AP60: 23 | AQ60: 25 | AR60: 21 | AS60: 23 | AT60: 23 | AU60: 23 | AV60: 22 | AW60: 22 | AX60: 23 | AY60: 103 | AZ60: 109 | BA60: 132 | BB60: 136 | BC60: 120 | BD60: 129 | BE60: 112 | BF60: 115 | BG60: 95 | BH60: 96 | BI60: 81 | BJ60: 83 | BK60: 70 | BL60: 70 | BM60: 59 | BN60: 62 | BO60: 47 | BP60: 49 | BQ60: 39 | BR60: 38 | BS60: 31 | BT60: 27 | BU60: 23 | BV60: 21 | BW60: 27 | BX60: 32 | BY60: 3 | BZ60: 14 | CA60: 10 | CB60: 13 | CC60: 17 | CD60: 69 | CF60: 123 | CG60: 112 | CH60: 668 | CI60: 115 | CK60: 54 | CL60: 229 | CM60: 657 | CN60: 676 | CO60: 302 | CP60: 570 | CQ60: 1092 | CR60: 334 | CT60: 273 | CU60: 493 | CV60: 1572
B61: 04 | C61: 54 | D61: 5675 | E61: P.S. PRIMAVERA | F61: 6498 | H61: 3257 | I61: 3241 | K61: 59 | L61: 61 | M61: 64 | N61: 63 | O61: 68 | P61: 64 | Q61: 62 | R61: 55 | S61: 66 | T61: 58 | U61: 57 | V61: 59 | W61: 66 | X61: 58 | Y61: 67 | Z61: 60 | AA61: 58 | AB61: 60 | AC61: 58 | AD61: 54 | AE61: 58 | AF61: 56 | AG61: 54 | AH61: 58 | AI61: 72 | AJ61: 56 | AK61: 63 | AL61: 56 | AM61: 59 | AN61: 49 | AO61: 61 | AP61: 51 | AQ61: 55 | AR61: 47 | AS61: 51 | AT61: 52 | AU61: 52 | AV61: 48 | AW61: 48 | AX61: 51 | AY61: 226 | AZ61: 239 | BA61: 290 | BB61: 299 | BC61: 263 | BD61: 282 | BE61: 245 | BF61: 254 | BG61: 209 | BH61: 211 | BI61: 179 | BJ61: 184 | BK61: 152 | BL61: 153 | BM61: 131 | BN61: 137 | BO61: 104 | BP61: 109 | BQ61: 86 | BR61: 82 | BS61: 67 | BT61: 60 | BU61: 50 | BV61: 46 | BW61: 57 | BX61: 69 | BY61: 6 | BZ61: 30 | CA61: 24 | CB61: 29 | CC61: 37 | CD61: 149 | CF61: 275 | CG61: 249 | CH61: 1469 | CI61: 260 | CK61: 120 | CL61: 500 | CM61: 1443 | CN61: 1495 | CO61: 672 | CP61: 1253 | CQ61: 2400 | CR61: 730 | CT61: 597 | CU61: 1097 | CV61: 3454
B62: 04 | C62: 55 | D62: 5676 | E62: P.S. MARIATEGUI | F62: 7654 | H62: 3838 | I62: 3816 | K62: 69 | L62: 71 | M62: 76 | N62: 74 | O62: 81 | P62: 76 | Q62: 74 | R62: 63 | S62: 79 | T62: 69 | U62: 68 | V62: 69 | W62: 79 | X62: 67 | Y62: 78 | Z62: 71 | AA62: 68 | AB62: 71 | AC62: 67 | AD62: 63 | AE62: 68 | AF62: 67 | AG62: 64 | AH62: 68 | AI62: 83 | AJ62: 66 | AK62: 75 | AL62: 66 | AM62: 70 | AN62: 57 | AO62: 72 | AP62: 59 | AQ62: 65 | AR62: 54 | AS62: 60 | AT62: 61 | AU62: 60 | AV62: 56 | AW62: 58 | AX62: 60 | AY62: 265 | AZ62: 282 | BA62: 341 | BB62: 352 | BC62: 311 | BD62: 334 | BE62: 289 | BF62: 299 | BG62: 245 | BH62: 249 | BI62: 209 | BJ62: 216 | BK62: 180 | BL62: 181 | BM62: 155 | BN62: 163 | BO62: 122 | BP62: 129 | BQ62: 102 | BR62: 95 | BS62: 78 | BT62: 70 | BU62: 59 | BV62: 55 | BW62: 68 | BX62: 83 | BY62: 7 | BZ62: 36 | CA62: 27 | CB62: 33 | CC62: 44 | CD62: 176 | CF62: 324 | CG62: 290 | CH62: 1732 | CI62: 304 | CK62: 140 | CL62: 592 | CM62: 1700 | CN62: 1756 | CO62: 788 | CP62: 1474 | CQ62: 2831 | CR62: 861 | CT62: 701 | CU62: 1289 | CV62: 4071
B63: 04 | C63: 56 | D63: 5677 | E63: P.S. MEDIO MUNDO | F63: 3849 | H63: 1927 | I63: 1922 | K63: 36 | L63: 37 | M63: 37 | N63: 37 | O63: 40 | P63: 39 | Q63: 37 | R63: 33 | S63: 39 | T63: 35 | U63: 35 | V63: 36 | W63: 39 | X63: 34 | Y63: 40 | Z63: 36 | AA63: 35 | AB63: 36 | AC63: 34 | AD63: 32 | AE63: 34 | AF63: 33 | AG63: 32 | AH63: 35 | AI63: 42 | AJ63: 33 | AK63: 38 | AL63: 33 | AM63: 35 | AN63: 29 | AO63: 36 | AP63: 30 | AQ63: 33 | AR63: 28 | AS63: 30 | AT63: 31 | AU63: 31 | AV63: 29 | AW63: 28 | AX63: 30 | AY63: 134 | AZ63: 141 | BA63: 172 | BB63: 176 | BC63: 156 | BD63: 167 | BE63: 145 | BF63: 151 | BG63: 122 | BH63: 124 | BI63: 105 | BJ63: 109 | BK63: 90 | BL63: 91 | BM63: 77 | BN63: 81 | BO63: 61 | BP63: 64 | BQ63: 51 | BR63: 48 | BS63: 39 | BT63: 35 | BU63: 30 | BV63: 28 | BW63: 34 | BX63: 41 | BY63: 4 | BZ63: 19 | CA63: 14 | CB63: 17 | CC63: 23 | CD63: 91 | CF63: 163 | CG63: 148 | CH63: 868 | CI63: 149 | CK63: 73 | CL63: 297 | CM63: 861 | CN63: 889 | CO63: 398 | CP63: 741 | CQ63: 1418 | CR63: 431 | CT63: 357 | CU63: 650 | CV63: 2041
B64: 04 | C64: 57 | D64: 5678 | E64: P.S. TIROLER | F64: 291 | H64: 144 | I64: 147 | K64: 2 | L64: 3 | M64: 3 | N64: 3 | O64: 3 | P64: 3 | Q64: 3 | R64: 2 | S64: 3 | T64: 3 | U64: 2 | V64: 3 | W64: 3 | X64: 2 | Y64: 3 | Z64: 3 | AA64: 3 | AB64: 3 | AC64: 2 | AD64: 2 | AE64: 2 | AF64: 2 | AG64: 2 | AH64: 3 | AI64: 3 | AJ64: 2 | AK64: 3 | AL64: 2 | AM64: 3 | AN64: 2 | AO64: 3 | AP64: 2 | AQ64: 2 | AR64: 2 | AS64: 2 | AT64: 2 | AU64: 2 | AV64: 2 | AW64: 2 | AX64: 2 | AY64: 11 | AZ64: 11 | BA64: 13 | BB64: 14 | BC64: 12 | BD64: 13 | BE64: 12 | BF64: 12 | BG64: 9 | BH64: 10 | BI64: 8 | BJ64: 9 | BK64: 7 | BL64: 8 | BM64: 6 | BN64: 6 | BO64: 4 | BP64: 5 | BQ64: 4 | BR64: 3 | BS64: 3 | BT64: 3 | BU64: 2 | BV64: 2 | BW64: 2 | BX64: 3 | BY64: 0 | BZ64: 1 | CA64: 1 | CB64: 1 | CC64: 2 | CD64: 8 | CF64: 11 | CG64: 10 | CH64: 69 | CI64: 11 | CK64: 5 | CL64: 23 | CM64: 63 | CN64: 63 | CO64: 28 | CP64: 57 | CQ64: 112 | CR64: 31 | CT64: 26 | CU64: 45 | CV64: 161
A65: 150900 | C65: 58 | D65: 150900 | E65: PROVINCIA OYON | F65: 16527 | H65: 8142 | I65: 8385 | K65: 111 | L65: 108 | M65: 96 | N65: 105 | O65: 123 | P65: 111 | Q65: 134 | R65: 119 | S65: 118 | T65: 138 | U65: 123 | V65: 90 | W65: 142 | X65: 133 | Y65: 143 | Z65: 146 | AA65: 130 | AB65: 161 | AC65: 157 | AD65: 159 | AE65: 168 | AF65: 168 | AG65: 171 | AH65: 166 | AI65: 176 | AJ65: 193 | AK65: 189 | AL65: 186 | AM65: 154 | AN65: 161 | AO65: 183 | AP65: 188 | AQ65: 165 | AR65: 194 | AS65: 163 | AT65: 152 | AU65: 152 | AV65: 139 | AW65: 130 | AX65: 129 | AY65: 621 | AZ65: 622 | BA65: 633 | BB65: 658 | BC65: 544 | BD65: 624 | BE65: 552 | BF65: 592 | BG65: 479 | BH65: 440 | BI65: 476 | BJ65: 446 | BK65: 434 | BL65: 438 | BM65: 357 | BN65: 370 | BO65: 327 | BP65: 315 | BQ65: 254 | BR65: 259 | BS65: 203 | BT65: 203 | BU65: 140 | BV65: 180 | BW65: 194 | BX65: 292 | BY65: 14 | BZ65: 55 | CA65: 55 | CB65: 56 | CC65: 53 | CD65: 264 | CE65: 0 | CF65: 874 | CG65: 802 | CH65: 3382 | CI65: 394 | CK65: 219 | CL65: 944 | CM65: 3220 | CN65: 4161 | CO65: 2104 | CP65: 3084 | CQ65: 5752 | CR65: 2367 | CT65: 1384 | CU65: 3327 | CV65: 8286
A66: 150901 | C66: 59 | D66: 150901 | E66: DISTRITO OYON | F66: 11551 | H66: 5614 | I66: 5937 | K66: 58 | L66: 58 | M66: 58 | N66: 49 | O66: 64 | P66: 64 | Q66: 85 | R66: 68 | S66: 79 | T66: 79 | U66: 76 | V66: 59 | W66: 108 | X66: 110 | Y66: 117 | Z66: 119 | AA66: 96 | AB66: 137 | AC66: 126 | AD66: 133 | AE66: 128 | AF66: 132 | AG66: 144 | AH66: 128 | AI66: 131 | AJ66: 146 | AK66: 146 | AL66: 138 | AM66: 123 | AN66: 128 | AO66: 140 | AP66: 145 | AQ66: 125 | AR66: 142 | AS66: 119 | AT66: 110 | AU66: 100 | AV66: 100 | AW66: 96 | AX66: 98 | AY66: 444 | AZ66: 470 | BA66: 473 | BB66: 484 | BC66: 397 | BD66: 487 | BE66: 401 | BF66: 439 | BG66: 333 | BH66: 317 | BI66: 317 | BJ66: 316 | BK66: 297 | BL66: 314 | BM66: 222 | BN66: 234 | BO66: 190 | BP66: 194 | BQ66: 154 | BR66: 159 | BS66: 116 | BT66: 118 | BU66: 70 | BV66: 99 | BW66: 81 | BX66: 163 | BY66: 10 | BZ66: 30 | CA66: 31 | CB66: 28 | CC66: 27 | CD66: 154 | CE66: 0 | CF66: 672 | CG66: 595 | CH66: 2513 | CI66: 225 | CK66: 116 | CL66: 546 | CM66: 2275 | CN66: 3206 | CO66: 1593 | CP66: 2265 | CQ66: 4074 | CR66: 1344 | CT66: 1081 | CU66: 2519 | CV66: 5945
B67: 05 | C67: 60 | D67: 5659 | E67: C.S. OYON | F67: 9615 | H67: 4681 | I67: 4934 | K67: 51 | L67: 50 | M67: 47 | N67: 41 | O67: 53 | P67: 53 | Q67: 71 | R67: 57 | S67: 66 | T67: 65 | U67: 64 | V67: 49 | W67: 91 | X67: 93 | Y67: 98 | Z67: 100 | AA67: 80 | AB67: 114 | AC67: 105 | AD67: 111 | AE67: 107 | AF67: 110 | AG67: 121 | AH67: 106 | AI67: 110 | AJ67: 122 | AK67: 123 | AL67: 115 | AM67: 103 | AN67: 106 | AO67: 117 | AP67: 121 | AQ67: 104 | AR67: 118 | AS67: 100 | AT67: 92 | AU67: 83 | AV67: 82 | AW67: 80 | AX67: 82 | AY67: 370 | AZ67: 391 | BA67: 392 | BB67: 400 | BC67: 330 | BD67: 403 | BE67: 332 | BF67: 365 | BG67: 276 | BH67: 262 | BI67: 264 | BJ67: 262 | BK67: 247 | BL67: 260 | BM67: 184 | BN67: 194 | BO67: 159 | BP67: 161 | BQ67: 129 | BR67: 131 | BS67: 96 | BT67: 98 | BU67: 59 | BV67: 83 | BW67: 69 | BX67: 137 | BY67: 9 | BZ67: 26 | CA67: 27 | CB67: 25 | CC67: 23 | CD67: 127 | CF67: 559 | CG67: 495 | CH67: 2083 | CI67: 175 | CK67: 101 | CL67: 453 | CM67: 1903 | CN67: 2680 | CO67: 1331 | CP67: 1880 | CQ67: 3379 | CR67: 1122 | CT67: 905 | CU67: 2102 | CV67: 4932
B68: 05 | C68: 61 | D68: 5660 | E68: P.S. MALLAY | F68: 573 | H68: 278 | I68: 295 | K68: 2 | L68: 2 | M68: 3 | N68: 2 | O68: 3 | P68: 3 | Q68: 4 | R68: 3 | S68: 4 | T68: 4 | U68: 4 | V68: 3 | W68: 5 | X68: 5 | Y68: 6 | Z68: 6 | AA68: 5 | AB68: 7 | AC68: 6 | AD68: 6 | AE68: 6 | AF68: 6 | AG68: 7 | AH68: 6 | AI68: 6 | AJ68: 7 | AK68: 7 | AL68: 7 | AM68: 6 | AN68: 6 | AO68: 7 | AP68: 7 | AQ68: 6 | AR68: 7 | AS68: 6 | AT68: 5 | AU68: 5 | AV68: 5 | AW68: 5 | AX68: 5 | AY68: 22 | AZ68: 24 | BA68: 24 | BB68: 25 | BC68: 20 | BD68: 25 | BE68: 20 | BF68: 22 | BG68: 17 | BH68: 16 | BI68: 16 | BJ68: 16 | BK68: 15 | BL68: 16 | BM68: 12 | BN68: 12 | BO68: 9 | BP68: 10 | BQ68: 7 | BR68: 8 | BS68: 6 | BT68: 6 | BU68: 3 | BV68: 5 | BW68: 4 | BX68: 8 | BY68: 0 | BZ68: 1 | CA68: 1 | CB68: 1 | CC68: 1 | CD68: 8 | CF68: 32 | CG68: 29 | CH68: 128 | CI68: 15 | CK68: 4 | CL68: 26 | CM68: 108 | CN68: 155 | CO68: 77 | CP68: 115 | CQ68: 207 | CR68: 66 | CT68: 53 | CU68: 122 | CV68: 302
B69: 05 | C69: 62 | D69: 5661 | E69: P.S. NAVA | F69: 106 | H69: 50 | I69: 56 | K69: 0 | L69: 0 | M69: 1 | N69: 1 | O69: 1 | P69: 1 | Q69: 0 | R69: 1 | S69: 1 | T69: 1 | U69: 0 | V69: 1 | W69: 1 | X69: 1 | Y69: 1 | Z69: 1 | AA69: 1 | AB69: 1 | AC69: 1 | AD69: 1 | AE69: 1 | AF69: 1 | AG69: 1 | AH69: 1 | AI69: 1 | AJ69: 1 | AK69: 1 | AL69: 1 | AM69: 1 | AN69: 1 | AO69: 1 | AP69: 1 | AQ69: 1 | AR69: 1 | AS69: 1 | AT69: 1 | AU69: 1 | AV69: 1 | AW69: 1 | AX69: 1 | AY69: 4 | AZ69: 4 | BA69: 5 | BB69: 5 | BC69: 4 | BD69: 5 | BE69: 4 | BF69: 4 | BG69: 3 | BH69: 3 | BI69: 3 | BJ69: 3 | BK69: 3 | BL69: 3 | BM69: 2 | BN69: 2 | BO69: 2 | BP69: 2 | BQ69: 1 | BR69: 2 | BS69: 1 | BT69: 1 | BU69: 1 | BV69: 1 | BW69: 0 | BX69: 2 | BY69: 0 | BZ69: 0 | CA69: 0 | CB69: 0 | CC69: 0 | CD69: 2 | CF69: 5 | CG69: 5 | CH69: 24 | CI69: 4 | CK69: 0 | CL69: 7 | CM69: 20 | CN69: 25 | CO69: 12 | CP69: 22 | CQ69: 39 | CR69: 13 | CT69: 9 | CU69: 20 | CV69: 57
B70: 05 | C70: 63 | D70: 5662 | E70: P.S. TINTA | F70: 335 | H70: 161 | I70: 174 | K70: 1 | L70: 1 | M70: 2 | N70: 1 | O70: 2 | P70: 2 | Q70: 3 | R70: 1 | S70: 2 | T70: 3 | U70: 2 | V70: 1 | W70: 3 | X70: 3 | Y70: 3 | Z70: 3 | AA70: 3 | AB70: 4 | AC70: 4 | AD70: 4 | AE70: 4 | AF70: 4 | AG70: 4 | AH70: 4 | AI70: 4 | AJ70: 4 | AK70: 4 | AL70: 4 | AM70: 4 | AN70: 4 | AO70: 4 | AP70: 4 | AQ70: 4 | AR70: 4 | AS70: 3 | AT70: 3 | AU70: 3 | AV70: 3 | AW70: 3 | AX70: 3 | AY70: 12 | AZ70: 14 | BA70: 14 | BB70: 15 | BC70: 11 | BD70: 15 | BE70: 13 | BF70: 13 | BG70: 10 | BH70: 10 | BI70: 9 | BJ70: 10 | BK70: 8 | BL70: 10 | BM70: 6 | BN70: 7 | BO70: 5 | BP70: 5 | BQ70: 4 | BR70: 5 | BS70: 3 | BT70: 3 | BU70: 2 | BV70: 3 | BW70: 2 | BX70: 4 | BY70: 0 | BZ70: 1 | CA70: 0 | CB70: 0 | CC70: 1 | CD70: 4 | CF70: 20 | CG70: 17 | CH70: 77 | CI70: 6 | CK70: 2 | CL70: 16 | CM70: 64 | CN70: 92 | CO70: 46 | CP70: 67 | CQ70: 122 | CR70: 36 | CT70: 30 | CU70: 74 | CV70: 177
B71: 05 | C71: 64 | D71: 5648 | E71: P.S. RAPAZ | F71: 922 | H71: 444 | I71: 478 | K71: 4 | L71: 5 | M71: 5 | N71: 4 | O71: 5 | P71: 5 | Q71: 7 | R71: 6 | S71: 6 | T71: 6 | U71: 6 | V71: 5 | W71: 8 | X71: 8 | Y71: 9 | Z71: 9 | AA71: 7 | AB71: 11 | AC71: 10 | AD71: 11 | AE71: 10 | AF71: 11 | AG71: 11 | AH71: 11 | AI71: 10 | AJ71: 12 | AK71: 11 | AL71: 11 | AM71: 9 | AN71: 11 | AO71: 11 | AP71: 12 | AQ71: 10 | AR71: 12 | AS71: 9 | AT71: 9 | AU71: 8 | AV71: 9 | AW71: 7 | AX71: 7 | AY71: 36 | AZ71: 37 | BA71: 38 | BB71: 39 | BC71: 32 | BD71: 39 | BE71: 32 | BF71: 35 | BG71: 27 | BH71: 26 | BI71: 25 | BJ71: 25 | BK71: 24 | BL71: 25 | BM71: 18 | BN71: 19 | BO71: 15 | BP71: 16 | BQ71: 13 | BR71: 13 | BS71: 10 | BT71: 10 | BU71: 5 | BV71: 7 | BW71: 6 | BX71: 12 | BY71: 1 | BZ71: 2 | CA71: 3 | CB71: 2 | CC71: 2 | CD71: 13 | CF71: 56 | CG71: 49 | CH71: 201 | CI71: 25 | CK71: 9 | CL71: 44 | CM71: 180 | CN71: 254 | CO71: 127 | CP71: 181 | CQ71: 327 | CR71: 107 | CT71: 84 | CU71: 201 | CV71: 477
A72: 150902 | C72: 65 | D72: 150902 | E72: DISTRITO ANDAJES | F72: 443 | H72: 208 | I72: 235 | K72: 4 | L72: 4 | M72: 1 | N72: 5 | O72: 1 | P72: 4 | Q72: 4 | R72: 2 | S72: 2 | T72: 4 | U72: 3 | V72: 4 | W72: 2 | X72: 1 | Y72: 2 | Z72: 2 | AA72: 2 | AB72: 1 | AC72: 1 | AD72: 1 | AE72: 4 | AF72: 3 | AG72: 3 | AH72: 6 | AI72: 4 | AJ72: 3 | AK72: 1 | AL72: 4 | AM72: 1 | AN72: 1 | AO72: 3 | AP72: 3 | AQ72: 1 | AR72: 4 | AS72: 4 | AT72: 3 | AU72: 2 | AV72: 2 | AW72: 0 | AX72: 1 | AY72: 9 | AZ72: 7 | BA72: 7 | BB72: 6 | BC72: 6 | BD72: 4 | BE72: 9 | BF72: 11 | BG72: 11 | BH72: 6 | BI72: 6 | BJ72: 9 | BK72: 18 | BL72: 8 | BM72: 12 | BN72: 17 | BO72: 27 | BP72: 20 | BQ72: 9 | BR72: 17 | BS72: 11 | BT72: 16 | BU72: 10 | BV72: 20 | BW72: 28 | BX72: 36 | BY72: 0 | BZ72: 0 | CA72: 1 | CB72: 4 | CC72: 3 | CD72: 8 | CE72: 0 | CF72: 17 | CG72: 13 | CH72: 43 | CI72: 8 | CK72: 8 | CL72: 23 | CM72: 66 | CN72: 67 | CO72: 32 | CP72: 34 | CQ72: 117 | CR72: 194 | CT72: =SUM(U72:AD72) -> 19 | CU72: =SUM(AE72:AX72) -> 53 | CV72: =SUM(AY72:BN72) -> 146
B73: 05 | C73: 66 | D73: 5654 | E73: P.S. ANDAJES | F73: 443 | H73: 208 | I73: 235 | K73: 4 | L73: 4 | M73: 1 | N73: 5 | O73: 1 | P73: 4 | Q73: 4 | R73: 2 | S73: 2 | T73: 4 | U73: 3 | V73: 4 | W73: 2 | X73: 1 | Y73: 2 | Z73: 2 | AA73: 2 | AB73: 1 | AC73: 1 | AD73: 1 | AE73: 4 | AF73: 3 | AG73: 3 | AH73: 6 | AI73: 4 | AJ73: 3 | AK73: 1 | AL73: 4 | AM73: 1 | AN73: 1 | AO73: 3 | AP73: 3 | AQ73: 1 | AR73: 4 | AS73: 4 | AT73: 3 | AU73: 2 | AV73: 2 | AW73: 0 | AX73: 1 | AY73: 9 | AZ73: 7 | BA73: 7 | BB73: 6 | BC73: 6 | BD73: 4 | BE73: 9 | BF73: 11 | BG73: 11 | BH73: 6 | BI73: 6 | BJ73: 9 | BK73: 18 | BL73: 8 | BM73: 12 | BN73: 17 | BO73: 27 | BP73: 20 | BQ73: 9 | BR73: 17 | BS73: 11 | BT73: 16 | BU73: 10 | BV73: 20 | BW73: 28 | BX73: 36 | BY73: 0 | BZ73: 0 | CA73: 1 | CB73: 4 | CC73: 3 | CD73: 8 | CF73: 17 | CG73: 13 | CH73: 43 | CI73: 8 | CK73: =SUM(K73:L73) -> 8 | CL73: =SUM(M73:T73) -> 23 | CM73: =SUM(K73:AH73) -> 66 | CN73: =SUM(U73:AT73) -> 67 | CO73: =SUM(AI73:AT73) -> 32 | CP73: =SUM(AU73:BB73) -> 34 | CQ73: =SUM(BC73:BN73) -> 117 | CR73: =SUM(BO73:BX73) -> 194 | CT73: 19 | CU73: 53 | CV73: 146
A74: 150903 | C74: 67 | D74: 150903 | E74: DISTRITO CAUJUL | F74: 475 | H74: 233 | I74: 242 | K74: 7 | L74: 3 | M74: 5 | N74: 3 | O74: 1 | P74: 4 | Q74: 3 | R74: 4 | S74: 3 | T74: 3 | U74: 3 | V74: 1 | W74: 4 | X74: 3 | Y74: 3 | Z74: 5 | AA74: 1 | AB74: 1 | AC74: 4 | AD74: 4 | AE74: 2 | AF74: 2 | AG74: 4 | AH74: 3 | AI74: 4 | AJ74: 2 | AK74: 2 | AL74: 7 | AM74: 2 | AN74: 3 | AO74: 5 | AP74: 5 | AQ74: 3 | AR74: 5 | AS74: 3 | AT74: 3 | AU74: 3 | AV74: 4 | AW74: 2 | AX74: 4 | AY74: 15 | AZ74: 18 | BA74: 14 | BB74: 19 | BC74: 14 | BD74: 14 | BE74: 13 | BF74: 19 | BG74: 11 | BH74: 11 | BI74: 21 | BJ74: 10 | BK74: 10 | BL74: 12 | BM74: 13 | BN74: 16 | BO74: 14 | BP74: 13 | BQ74: 16 | BR74: 8 | BS74: 8 | BT74: 7 | BU74: 7 | BV74: 8 | BW74: 13 | BX74: 18 | BY74: 1 | BZ74: 3 | CA74: 2 | CB74: 4 | CC74: 1 | CD74: 10 | CE74: 0 | CF74: 17 | CG74: 21 | CH74: 91 | CI74: 17 | CK74: 10 | CL74: 26 | CM74: 76 | CN74: 84 | CO74: 44 | CP74: 79 | CQ74: 164 | CR74: 112 | CT74: 29 | CU74: 68 | CV74: 230
B75: 05 | C75: 68 | D75: 5655 | E75: P.S. CAUJUL | F75: 475 | H75: 233 | I75: 242 | K75: 7 | L75: 3 | M75: 5 | N75: 3 | O75: 1 | P75: 4 | Q75: 3 | R75: 4 | S75: 3 | T75: 3 | U75: 3 | V75: 1 | W75: 4 | X75: 3 | Y75: 3 | Z75: 5 | AA75: 1 | AB75: 1 | AC75: 4 | AD75: 4 | AE75: 2 | AF75: 2 | AG75: 4 | AH75: 3 | AI75: 4 | AJ75: 2 | AK75: 2 | AL75: 7 | AM75: 2 | AN75: 3 | AO75: 5 | AP75: 5 | AQ75: 3 | AR75: 5 | AS75: 3 | AT75: 3 | AU75: 3 | AV75: 4 | AW75: 2 | AX75: 4 | AY75: 15 | AZ75: 18 | BA75: 14 | BB75: 19 | BC75: 14 | BD75: 14 | BE75: 13 | BF75: 19 | BG75: 11 | BH75: 11 | BI75: 21 | BJ75: 10 | BK75: 10 | BL75: 12 | BM75: 13 | BN75: 16 | BO75: 14 | BP75: 13 | BQ75: 16 | BR75: 8 | BS75: 8 | BT75: 7 | BU75: 7 | BV75: 8 | BW75: 13 | BX75: 18 | BY75: 1 | BZ75: 3 | CA75: 2 | CB75: 4 | CC75: 1 | CD75: 10 | CF75: 17 | CG75: 21 | CH75: 91 | CI75: 17 | CK75: 10 | CL75: 26 | CM75: 76 | CN75: 84 | CO75: 44 | CP75: 79 | CQ75: 164 | CR75: 112 | CT75: 29 | CU75: 68 | CV75: 230
A76: 150904 | C76: 69 | D76: 150904 | E76: DISTRITO COCHAMARCA | F76: 991 | H76: 529 | I76: 462 | K76: 9 | L76: 14 | M76: 6 | N76: 10 | O76: 16 | P76: 4 | Q76: 7 | R76: 14 | S76: 2 | T76: 8 | U76: 8 | V76: 7 | W76: 11 | X76: 7 | Y76: 5 | Z76: 4 | AA76: 5 | AB76: 5 | AC76: 5 | AD76: 8 | AE76: 8 | AF76: 10 | AG76: 10 | AH76: 7 | AI76: 8 | AJ76: 11 | AK76: 11 | AL76: 11 | AM76: 6 | AN76: 11 | AO76: 15 | AP76: 9 | AQ76: 14 | AR76: 15 | AS76: 12 | AT76: 7 | AU76: 18 | AV76: 9 | AW76: 13 | AX76: 13 | AY76: 54 | AZ76: 43 | BA76: 44 | BB76: 36 | BC76: 38 | BD76: 26 | BE76: 28 | BF76: 25 | BG76: 23 | BH76: 18 | BI76: 34 | BJ76: 29 | BK76: 26 | BL76: 22 | BM76: 30 | BN76: 16 | BO76: 17 | BP76: 15 | BQ76: 11 | BR76: 10 | BS76: 13 | BT76: 14 | BU76: 6 | BV76: 8 | BW76: 16 | BX76: 16 | BY76: 1 | BZ76: 5 | CA76: 8 | CB76: 4 | CC76: 6 | CD76: 23 | CE76: 0 | CF76: 50 | CG76: 53 | CH76: 177 | CI76: 25 | CK76: 23 | CL76: 67 | CM76: 190 | CN76: 230 | CO76: 130 | CP76: 230 | CQ76: 315 | CR76: 126 | CT76: 65 | CU76: 218 | CV76: 492
B77: 03 | C77: 70 | D77: 5783 | E77: P.S. COCHAMARCA | F77: 417 | H77: 223 | I77: 194 | K77: 3 | L77: 5 | M77: 3 | N77: 5 | O77: 7 | P77: 2 | Q77: 2 | R77: 5 | S77: 1 | T77: 3 | U77: 3 | V77: 3 | W77: 5 | X77: 3 | Y77: 2 | Z77: 2 | AA77: 2 | AB77: 2 | AC77: 2 | AD77: 3 | AE77: 3 | AF77: 5 | AG77: 5 | AH77: 3 | AI77: 3 | AJ77: 5 | AK77: 5 | AL77: 5 | AM77: 3 | AN77: 5 | AO77: 6 | AP77: 4 | AQ77: 6 | AR77: 7 | AS77: 5 | AT77: 3 | AU77: 8 | AV77: 4 | AW77: 5 | AX77: 6 | AY77: 23 | AZ77: 19 | BA77: 19 | BB77: 15 | BC77: 16 | BD77: 11 | BE77: 12 | BF77: 10 | BG77: 10 | BH77: 8 | BI77: 15 | BJ77: 12 | BK77: 11 | BL77: 9 | BM77: 13 | BN77: 6 | BO77: 7 | BP77: 6 | BQ77: 5 | BR77: 4 | BS77: 5 | BT77: 5 | BU77: 2 | BV77: 3 | BW77: 6 | BX77: 6 | BY77: 1 | BZ77: 2 | CA77: 3 | CB77: 1 | CC77: 2 | CD77: 9 | CF77: 23 | CG77: 24 | CH77: 75 | CI77: 10 | CK77: 8 | CL77: 28 | CM77: 79 | CN77: 100 | CO77: 57 | CP77: 99 | CQ77: 133 | CR77: 49 | CT77: 27 | CU77: 96 | CV77: 209
B78: 03 | C78: 71 | D78: 5784 | E78: P.S. COLCAPAMPA | F78: 464 | H78: 250 | I78: 214 | K78: 5 | L78: 7 | M78: 3 | N78: 4 | O78: 7 | P78: 2 | Q78: 5 | R78: 7 | S78: 1 | T78: 4 | U78: 4 | V78: 3 | W78: 5 | X78: 3 | Y78: 2 | Z78: 1 | AA78: 2 | AB78: 2 | AC78: 2 | AD78: 4 | AE78: 4 | AF78: 4 | AG78: 4 | AH78: 3 | AI78: 4 | AJ78: 5 | AK78: 5 | AL78: 5 | AM78: 2 | AN78: 5 | AO78: 7 | AP78: 4 | AQ78: 6 | AR78: 6 | AS78: 6 | AT78: 3 | AU78: 8 | AV78: 4 | AW78: 6 | AX78: 5 | AY78: 26 | AZ78: 20 | BA78: 21 | BB78: 17 | BC78: 18 | BD78: 12 | BE78: 13 | BF78: 12 | BG78: 11 | BH78: 8 | BI78: 16 | BJ78: 14 | BK78: 12 | BL78: 11 | BM78: 14 | BN78: 8 | BO78: 8 | BP78: 7 | BQ78: 5 | BR78: 5 | BS78: 7 | BT78: 7 | BU78: 3 | BV78: 4 | BW78: 8 | BX78: 8 | BY78: 0 | BZ78: 3 | CA78: 4 | CB78: 2 | CC78: 3 | CD78: 11 | CF78: 22 | CG78: 22 | CH78: 83 | CI78: 13 | CK78: 12 | CL78: 33 | CM78: 88 | CN78: 101 | CO78: 58 | CP78: 107 | CQ78: 149 | CR78: 62 | CT78: 28 | CU78: 96 | CV78: 233
B79: 03 | C79: 72 | D79: 5785 | E79: P.S. YARUCAYA | F79: 110 | H79: 56 | I79: 54 | K79: 1 | L79: 2 | M79: 0 | N79: 1 | O79: 2 | P79: 0 | Q79: 0 | R79: 2 | S79: 0 | T79: 1 | U79: 1 | V79: 1 | W79: 1 | X79: 1 | Y79: 1 | Z79: 1 | AA79: 1 | AB79: 1 | AC79: 1 | AD79: 1 | AE79: 1 | AF79: 1 | AG79: 1 | AH79: 1 | AI79: 1 | AJ79: 1 | AK79: 1 | AL79: 1 | AM79: 1 | AN79: 1 | AO79: 2 | AP79: 1 | AQ79: 2 | AR79: 2 | AS79: 1 | AT79: 1 | AU79: 2 | AV79: 1 | AW79: 2 | AX79: 2 | AY79: 5 | AZ79: 4 | BA79: 4 | BB79: 4 | BC79: 4 | BD79: 3 | BE79: 3 | BF79: 3 | BG79: 2 | BH79: 2 | BI79: 3 | BJ79: 3 | BK79: 3 | BL79: 2 | BM79: 3 | BN79: 2 | BO79: 2 | BP79: 2 | BQ79: 1 | BR79: 1 | BS79: 1 | BT79: 2 | BU79: 1 | BV79: 1 | BW79: 2 | BX79: 2 | BY79: 0 | BZ79: 0 | CA79: 1 | CB79: 1 | CC79: 1 | CD79: 3 | CF79: 5 | CG79: 7 | CH79: 19 | CI79: 2 | CK79: 3 | CL79: 6 | CM79: 23 | CN79: 29 | CO79: 15 | CP79: 24 | CQ79: 33 | CR79: 15 | CT79: 10 | CU79: 26 | CV79: 50
A80: 150905 | C80: 73 | D80: 150905 | E80: DISTRITO NAVAN | F80: 782 | H80: 390 | I80: 392 | K80: 4 | L80: 1 | M80: 7 | N80: 5 | O80: 3 | P80: 3 | Q80: 3 | R80: 5 | S80: 2 | T80: 4 | U80: 3 | V80: 4 | W80: 7 | X80: 2 | Y80: 5 | Z80: 2 | AA80: 6 | AB80: 3 | AC80: 3 | AD80: 2 | AE80: 6 | AF80: 7 | AG80: 2 | AH80: 4 | AI80: 7 | AJ80: 11 | AK80: 7 | AL80: 9 | AM80: 6 | AN80: 4 | AO80: 3 | AP80: 5 | AQ80: 4 | AR80: 12 | AS80: 7 | AT80: 11 | AU80: 7 | AV80: 10 | AW80: 6 | AX80: 3 | AY80: 25 | AZ80: 23 | BA80: 17 | BB80: 20 | BC80: 15 | BD80: 28 | BE80: 34 | BF80: 26 | BG80: 21 | BH80: 23 | BI80: 28 | BJ80: 28 | BK80: 37 | BL80: 23 | BM80: 25 | BN80: 25 | BO80: 26 | BP80: 21 | BQ80: 20 | BR80: 18 | BS80: 15 | BT80: 15 | BU80: 11 | BV80: 13 | BW80: 18 | BX80: 22 | BY80: 0 | BZ80: 2 | CA80: 1 | CB80: 2 | CC80: 0 | CD80: 10 | CE80: 0 | CF80: 35 | CG80: 41 | CH80: 148 | CI80: 16 | CK80: 5 | CL80: 32 | CM80: 93 | CN80: 142 | CO80: 86 | CP80: 111 | CQ80: 313 | CR80: 179 | CT80: 37 | CU80: 131 | CV80: 398
B81: 05 | C81: 74 | D81: 5656 | E81: P.S. NAVAN | F81: 782 | H81: 390 | I81: 392 | K81: 4 | L81: 1 | M81: 7 | N81: 5 | O81: 3 | P81: 3 | Q81: 3 | R81: 5 | S81: 2 | T81: 4 | U81: 3 | V81: 4 | W81: 7 | X81: 2 | Y81: 5 | Z81: 2 | AA81: 6 | AB81: 3 | AC81: 3 | AD81: 2 | AE81: 6 | AF81: 7 | AG81: 2 | AH81: 4 | AI81: 7 | AJ81: 11 | AK81: 7 | AL81: 9 | AM81: 6 | AN81: 4 | AO81: 3 | AP81: 5 | AQ81: 4 | AR81: 12 | AS81: 7 | AT81: 11 | AU81: 7 | AV81: 10 | AW81: 6 | AX81: 3 | AY81: 25 | AZ81: 23 | BA81: 17 | BB81: 20 | BC81: 15 | BD81: 28 | BE81: 34 | BF81: 26 | BG81: 21 | BH81: 23 | BI81: 28 | BJ81: 28 | BK81: 37 | BL81: 23 | BM81: 25 | BN81: 25 | BO81: 26 | BP81: 21 | BQ81: 20 | BR81: 18 | BS81: 15 | BT81: 15 | BU81: 11 | BV81: 13 | BW81: 18 | BX81: 22 | BY81: 0 | BZ81: 2 | CA81: 1 | CB81: 2 | CC81: 0 | CD81: 10 | CF81: 35 | CG81: 41 | CH81: 148 | CI81: 16 | CK81: 5 | CL81: 32 | CM81: 93 | CN81: 142 | CO81: 86 | CP81: 111 | CQ81: 313 | CR81: 179 | CT81: 37 | CU81: 131 | CV81: 398
A82: 150906 | C82: 75 | D82: 150906 | E82: DISTRITO PACHANGARA | F82: 2285 | H82: 1168 | I82: 1117 | K82: 29 | L82: 28 | M82: 19 | N82: 33 | O82: 38 | P82: 32 | Q82: 32 | R82: 26 | S82: 30 | T82: 40 | U82: 30 | V82: 15 | W82: 10 | X82: 10 | Y82: 11 | Z82: 14 | AA82: 20 | AB82: 14 | AC82: 18 | AD82: 11 | AE82: 20 | AF82: 14 | AG82: 8 | AH82: 18 | AI82: 22 | AJ82: 20 | AK82: 22 | AL82: 17 | AM82: 16 | AN82: 14 | AO82: 17 | AP82: 21 | AQ82: 18 | AR82: 16 | AS82: 18 | AT82: 18 | AU82: 22 | AV82: 14 | AW82: 13 | AX82: 10 | AY82: 74 | AZ82: 61 | BA82: 78 | BB82: 93 | BC82: 74 | BD82: 65 | BE82: 67 | BF82: 72 | BG82: 80 | BH82: 65 | BI82: 70 | BJ82: 54 | BK82: 46 | BL82: 59 | BM82: 55 | BN82: 62 | BO82: 53 | BP82: 52 | BQ82: 44 | BR82: 47 | BS82: 40 | BT82: 33 | BU82: 36 | BV82: 32 | BW82: 38 | BX82: 37 | BY82: 2 | BZ82: 15 | CA82: 12 | CB82: 14 | CC82: 16 | CD82: 59 | CE82: 0 | CF82: 83 | CG82: 79 | CH82: 410 | CI82: 103 | CK82: 57 | CL82: 250 | CM82: 520 | CN82: 432 | CO82: 219 | CP82: 365 | CQ82: 769 | CR82: 412 | CT82: 153 | CU82: 338 | CV82: 1075
B83: 05 | C83: 76 | D83: 5657 | E83: C.S. CHURIN | F83: 1762 | H83: 900 | I83: 862 | K83: 22 | L83: 22 | M83: 15 | N83: 25 | O83: 29 | P83: 25 | Q83: 24 | R83: 20 | S83: 23 | T83: 31 | U83: 23 | V83: 12 | W83: 8 | X83: 8 | Y83: 9 | Z83: 11 | AA83: 15 | AB83: 11 | AC83: 14 | AD83: 9 | AE83: 15 | AF83: 11 | AG83: 6 | AH83: 14 | AI83: 16 | AJ83: 15 | AK83: 16 | AL83: 13 | AM83: 12 | AN83: 11 | AO83: 13 | AP83: 16 | AQ83: 14 | AR83: 12 | AS83: 14 | AT83: 14 | AU83: 16 | AV83: 11 | AW83: 11 | AX83: 8 | AY83: 57 | AZ83: 47 | BA83: 60 | BB83: 72 | BC83: 57 | BD83: 50 | BE83: 52 | BF83: 56 | BG83: 62 | BH83: 50 | BI83: 55 | BJ83: 42 | BK83: 36 | BL83: 45 | BM83: 42 | BN83: 47 | BO83: 41 | BP83: 40 | BQ83: 34 | BR83: 36 | BS83: 31 | BT83: 25 | BU83: 28 | BV83: 24 | BW83: 30 | BX83: 29 | BY83: 2 | BZ83: 12 | CA83: 10 | CB83: 10 | CC83: 12 | CD83: 46 | CF83: 64 | CG83: 61 | CH83: 317 | CI83: 79 | CK83: 44 | CL83: 192 | CM83: 402 | CN83: 332 | CO83: 166 | CP83: 282 | CQ83: 594 | CR83: 318 | CT83: 120 | CU83: 258 | CV83: 830
B84: 05 | C84: 77 | D84: 5658 | E84: P.S. PACHANGARA | F84: 246 | H84: 128 | I84: 118 | K84: 3 | L84: 3 | M84: 2 | N84: 3 | O84: 4 | P84: 3 | Q84: 4 | R84: 3 | S84: 3 | T84: 4 | U84: 3 | V84: 1 | W84: 1 | X84: 1 | Y84: 1 | Z84: 1 | AA84: 2 | AB84: 1 | AC84: 2 | AD84: 1 | AE84: 2 | AF84: 1 | AG84: 1 | AH84: 2 | AI84: 3 | AJ84: 2 | AK84: 3 | AL84: 2 | AM84: 2 | AN84: 1 | AO84: 2 | AP84: 2 | AQ84: 2 | AR84: 2 | AS84: 2 | AT84: 2 | AU84: 3 | AV84: 1 | AW84: 1 | AX84: 1 | AY84: 8 | AZ84: 7 | BA84: 9 | BB84: 10 | BC84: 8 | BD84: 7 | BE84: 7 | BF84: 8 | BG84: 9 | BH84: 7 | BI84: 7 | BJ84: 5 | BK84: 5 | BL84: 7 | BM84: 6 | BN84: 7 | BO84: 6 | BP84: 6 | BQ84: 5 | BR84: 5 | BS84: 4 | BT84: 4 | BU84: 4 | BV84: 4 | BW84: 4 | BX84: 4 | BY84: 0 | BZ84: 1 | CA84: 1 | CB84: 2 | CC84: 2 | CD84: 5 | CF84: 8 | CG84: 8 | CH84: 44 | CI84: 11 | CK84: 6 | CL84: 26 | CM84: 52 | CN84: 45 | CO84: 25 | CP84: 40 | CQ84: 83 | CR84: 46 | CT84: 14 | CU84: 37 | CV84: 117
B85: 05 | C85: 78 | D85: 5649 | E85: P.S. HUANCAHUASI | F85: 277 | H85: 140 | I85: 137 | K85: 4 | L85: 3 | M85: 2 | N85: 5 | O85: 5 | P85: 4 | Q85: 4 | R85: 3 | S85: 4 | T85: 5 | U85: 4 | V85: 2 | W85: 1 | X85: 1 | Y85: 1 | Z85: 2 | AA85: 3 | AB85: 2 | AC85: 2 | AD85: 1 | AE85: 3 | AF85: 2 | AG85: 1 | AH85: 2 | AI85: 3 | AJ85: 3 | AK85: 3 | AL85: 2 | AM85: 2 | AN85: 2 | AO85: 2 | AP85: 3 | AQ85: 2 | AR85: 2 | AS85: 2 | AT85: 2 | AU85: 3 | AV85: 2 | AW85: 1 | AX85: 1 | AY85: 9 | AZ85: 7 | BA85: 9 | BB85: 11 | BC85: 9 | BD85: 8 | BE85: 8 | BF85: 8 | BG85: 9 | BH85: 8 | BI85: 8 | BJ85: 7 | BK85: 5 | BL85: 7 | BM85: 7 | BN85: 8 | BO85: 6 | BP85: 6 | BQ85: 5 | BR85: 6 | BS85: 5 | BT85: 4 | BU85: 4 | BV85: 4 | BW85: 4 | BX85: 4 | BY85: 0 | BZ85: 2 | CA85: 1 | CB85: 2 | CC85: 2 | CD85: 8 | CF85: 11 | CG85: 10 | CH85: 49 | CI85: 13 | CK85: 7 | CL85: 32 | CM85: 66 | CN85: 55 | CO85: 28 | CP85: 43 | CQ85: 92 | CR85: 48 | CT85: 19 | CU85: 43 | CV85: 128
C86: 79 | E86: PROVINCIA HUARAL | F86: 913 | H86: 481 | I86: 432 | K86: 2 | L86: 6 | M86: 3 | N86: 3 | O86: 6 | P86: 2 | Q86: 5 | R86: 4 | S86: 3 | T86: 7 | U86: 5 | V86: 6 | W86: 5 | X86: 6 | Y86: 6 | Z86: 4 | AA86: 6 | AB86: 6 | AC86: 7 | AD86: 4 | AE86: 6 | AF86: 3 | AG86: 7 | AH86: 7 | AI86: 6 | AJ86: 7 | AK86: 7 | AL86: 6 | AM86: 7 | AN86: 8 | AO86: 4 | AP86: 7 | AQ86: 9 | AR86: 6 | AS86: 6 | AT86: 6 | AU86: 7 | AV86: 7 | AW86: 6 | AX86: 5 | AY86: 34 | AZ86: 30 | BA86: 36 | BB86: 29 | BC86: 46 | BD86: 30 | BE86: 39 | BF86: 29 | BG86: 24 | BH86: 29 | BI86: 33 | BJ86: 27 | BK86: 26 | BL86: 24 | BM86: 28 | BN86: 29 | BO86: 26 | BP86: 25 | BQ86: 20 | BR86: 16 | BS86: 18 | BT86: 14 | BU86: 14 | BV86: 11 | BW86: 24 | BX86: 29 | BY86: 1 | BZ86: 1 | CA86: 2 | CB86: 1 | CC86: 4 | CD86: 17 | CE86: 0 | CF86: 31 | CG86: 31 | CH86: 174 | CI86: 29 | CK86: 8 | CL86: 33 | CM86: 119 | CN86: 157 | CO86: 79 | CP86: 154 | CQ86: 364 | CR86: 197 | CT86: 55 | CU86: 127 | CV86: 493
C87: 80 | D87: 150600 | E87: IHUARI - ACOTAMA | F87: 913 | H87: 481 | I87: 432 | K87: 2 | L87: 6 | M87: 3 | N87: 3 | O87: 6 | P87: 2 | Q87: 5 | R87: 4 | S87: 3 | T87: 7 | U87: 5 | V87: 6 | W87: 5 | X87: 6 | Y87: 6 | Z87: 4 | AA87: 6 | AB87: 6 | AC87: 7 | AD87: 4 | AE87: 6 | AF87: 3 | AG87: 7 | AH87: 7 | AI87: 6 | AJ87: 7 | AK87: 7 | AL87: 6 | AM87: 7 | AN87: 8 | AO87: 4 | AP87: 7 | AQ87: 9 | AR87: 6 | AS87: 6 | AT87: 6 | AU87: 7 | AV87: 7 | AW87: 6 | AX87: 5 | AY87: 34 | AZ87: 30 | BA87: 36 | BB87: 29 | BC87: 46 | BD87: 30 | BE87: 39 | BF87: 29 | BG87: 24 | BH87: 29 | BI87: 33 | BJ87: 27 | BK87: 26 | BL87: 24 | BM87: 28 | BN87: 29 | BO87: 26 | BP87: 25 | BQ87: 20 | BR87: 16 | BS87: 18 | BT87: 14 | BU87: 14 | BV87: 11 | BW87: 24 | BX87: 29 | BY87: 1 | BZ87: 1 | CA87: 2 | CB87: 1 | CC87: 4 | CD87: 17 | CF87: 31 | CG87: 31 | CH87: 174 | CI87: 29 | CK87: 8 | CL87: 33 | CM87: 119 | CN87: 157 | CO87: 79 | CP87: 154 | CQ87: 364 | CR87: 197 | CT87: 55 | CU87: 127 | CV87: 493
A88: 150606 | B88: 03 | C88: 81
C89: 82 | E89: MICRORED HUAURA | F89: =SUM(H89:I89) -> 40247 | H89: =K89+M89+O89+Q89+S89+U89+W89+Y89+AA89+AC89+AE89+AG89+AI89+AK89+AM89+AO89+AQ89+AS89+AU89+AW89+AY89+BA89+BC89+BE89+BG89+BI89+BK89+BM89+BO89+BQ89+BS89+BU89+BW89 -> 20445 | I89: =L89+N89+P89+R89+T89+V89+X89+Z89+AB89+AD89+AF89+AH89+AJ89+AL89+AN89+AP89+AR89+AT89+AV89+AX89+AZ89+BB89+BD89+BF89+BH89+BJ89+BL89+BN89+BP89+BR89+BT89+BV89+BX89 -> 19802 | K89: =K13+K24 -> 287 | L89: =L13+L24 -> 261 | M89: 263 | N89: 269 | O89: 341 | P89: 299 | Q89: 341 | R89: 333 | S89: 325 | T89: 288 | U89: 260 | V89: 251 | W89: 374 | X89: 375 | Y89: 395 | Z89: 314 | AA89: 379 | AB89: 328 | AC89: 357 | AD89: 324 | AE89: 364 | AF89: 335 | AG89: 366 | AH89: 355 | AI89: 378 | AJ89: 353 | AK89: 340 | AL89: 332 | AM89: 333 | AN89: 322 | AO89: 317 | AP89: 317 | AQ89: 313 | AR89: 338 | AS89: 291 | AT89: 304 | AU89: 311 | AV89: 302 | AW89: 311 | AX89: 303 | AY89: 1530 | AZ89: 1479 | BA89: 1867 | BB89: 1789 | BC89: 1732 | BD89: 1610 | BE89: 1497 | BF89: 1506 | BG89: 1439 | BH89: 1333 | BI89: 1214 | BJ89: 1259 | BK89: 1050 | BL89: 1133 | BM89: 930 | BN89: 937 | BO89: 781 | BP89: 734 | BQ89: 585 | BR89: 570 | BS89: 444 | BT89: 420 | BU89: 327 | BV89: 286 | BW89: 403 | BX89: =BX13+BX24 -> 443 | BY89: 33 | BZ89: 130 | CA89: 112 | CB89: 157 | CC89: 149 | CD89: 636 | CE89: =CE13+CE24 -> 0 | CF89: 1697 | CG89: 1564 | CH89: 8976 | CI89: 1019 | CK89: =CK13+CK24 -> 548 | CL89: =CL13+CL24 -> 2459 | CM89: 7784 | CN89: 8715 | CO89: 3938 | CP89: 7892 | CQ89: 15640 | CR89: 4993 | CT89: =CT13+CT24 -> 3357 | CU89: 6585 | CV89: 22305
B90: 1 | C90: 83 | E90: MICRORED HUALMAY | F90: =SUM(H90:I90) -> 99822 | H90: =K90+M90+O90+Q90+S90+U90+W90+Y90+AA90+AC90+AE90+AG90+AI90+AK90+AM90+AO90+AQ90+AS90+AU90+AW90+AY90+BA90+BC90+BE90+BG90+BI90+BK90+BM90+BO90+BQ90+BS90+BU90+BW90 -> 49524 | I90: =L90+N90+P90+R90+T90+V90+X90+Z90+AB90+AD90+AF90+AH90+AJ90+AL90+AN90+AP90+AR90+AT90+AV90+AX90+AZ90+BB90+BD90+BF90+BH90+BJ90+BL90+BN90+BP90+BR90+BT90+BV90+BX90 -> 50298 | K90: =K44+K20+K16+K12 -> 663 | L90: =L44+L20+L16+L12 -> 641 | M90: 675 | N90: 672 | O90: 722 | P90: 722 | Q90: 746 | R90: 726 | S90: 718 | T90: 736 | U90: 608 | V90: 613 | W90: 867 | X90: 844 | Y90: 888 | Z90: 877 | AA90: 894 | AB90: 898 | AC90: 848 | AD90: 859 | AE90: 815 | AF90: 764 | AG90: 852 | AH90: 790 | AI90: 900 | AJ90: 815 | AK90: 849 | AL90: 832 | AM90: 797 | AN90: 774 | AO90: 772 | AP90: 788 | AQ90: 777 | AR90: 722 | AS90: 763 | AT90: 751 | AU90: 734 | AV90: 705 | AW90: 701 | AX90: 733 | AY90: 3857 | AZ90: 3683 | BA90: 4189 | BB90: 4341 | BC90: 3792 | BD90: 3960 | BE90: 3669 | BF90: 3813 | BG90: 3367 | BH90: 3450 | BI90: 3136 | BJ90: 3221 | BK90: 2775 | BL90: 2726 | BM90: 2331 | BN90: 2409 | BO90: 1913 | BP90: 1990 | BQ90: 1560 | BR90: 1697 | BS90: 1268 | BT90: 1360 | BU90: 913 | BV90: 1035 | BW90: 1165 | BX90: =BX44+BX20+BX16+BX12 -> 1351 | BY90: 61 | BZ90: 290 | CA90: 292 | CB90: 373 | CC90: 349 | CD90: 1608 | CE90: =CE44+CE20+CE16+CE12 -> 0 | CF90: 3975 | CG90: 3699 | CH90: 22468 | CI90: 2525 | CK90: =CK44+CK20+CK16+CK12 -> 1304 | CL90: =CL44+CL20+CL16+CL12 -> 5717 | CM90: 18438 | CN90: 20957 | CO90: 9540 | CP90: 18943 | CQ90: 38649 | CR90: 14252 | CT90: =CT44+CT20+CT16+CT12 -> 8196 | CU90: 15634 | CV90: 54719
B91: 2 | C91: 84 | E91: MICRORED SAYAN | F91: 29386 | H91: 15074 | I91: 14312 | K91: =K50+K30+K76++K87 -> 217 | L91: =L50+L30+L76++L87 -> 242 | M91: 242 | N91: 220 | O91: 244 | P91: 210 | Q91: 237 | R91: 225 | S91: 245 | T91: 231 | U91: 243 | V91: 219 | W91: 256 | X91: 259 | Y91: 248 | Z91: 278 | AA91: 256 | AB91: 242 | AC91: 263 | AD91: 249 | AE91: 276 | AF91: 199 | AG91: 253 | AH91: 241 | AI91: 267 | AJ91: 250 | AK91: 254 | AL91: 261 | AM91: 260 | AN91: 237 | AO91: 255 | AP91: 280 | AQ91: 256 | AR91: 255 | AS91: 239 | AT91: 218 | AU91: 261 | AV91: 245 | AW91: 246 | AX91: 226 | AY91: 1152 | AZ91: 1172 | BA91: 1271 | BB91: 1242 | BC91: 1148 | BD91: 1141 | BE91: 1123 | BF91: 1049 | BG91: 984 | BH91: 958 | BI91: 949 | BJ91: 852 | BK91: 755 | BL91: 717 | BM91: 674 | BN91: 637 | BO91: 582 | BP91: 486 | BQ91: 456 | BR91: 422 | BS91: 368 | BT91: 283 | BU91: 256 | BV91: 238 | BW91: 338 | BX91: =BX50+BX30+BX76++BX87 -> 328 | BY91: 25 | BZ91: 93 | CA91: 109 | CB91: 124 | CC91: 133 | CD91: 599 | CE91: =CE50+CE30+CE76++CE87 -> 0 | CF91: 1188 | CG91: 1224 | CH91: 6414 | CI91: 798 | CK91: =CK50+CK30+CK76++CK87 -> 459 | CL91: =CL50+CL30+CL76++CL87 -> 1854 | CM91: 5795 | CN91: 6514 | CO91: 3032 | CP91: 5815 | CQ91: 10987 | CR91: 3757 | CT91: =CT50+CT30+CT76++CT87 -> 2513 | CU91: 4979 | CV91: 15824
B92: 3 | C92: 85 | E92: MICRORED VEGUETA | F92: 29531 | H92: 14802 | I92: 14729 | K92: =K58 -> 269 | L92: =L58 -> 277 | M92: 291 | N92: 285 | O92: 311 | P92: 294 | Q92: 284 | R92: 248 | S92: 303 | T92: 266 | U92: 262 | V92: 269 | W92: 303 | X92: 261 | Y92: 304 | Z92: 275 | AA92: 265 | AB92: 275 | AC92: 261 | AD92: 243 | AE92: 262 | AF92: 255 | AG92: 245 | AH92: 264 | AI92: 323 | AJ92: 253 | AK92: 289 | AL92: 253 | AM92: 270 | AN92: 220 | AO92: 276 | AP92: 228 | AQ92: 251 | AR92: 211 | AS92: 230 | AT92: 236 | AU92: 233 | AV92: 218 | AW92: 221 | AX92: 230 | AY92: 1027 | AZ92: 1087 | BA92: 1317 | BB92: 1358 | BC92: 1197 | BD92: 1284 | BE92: 1116 | BF92: 1155 | BG92: 944 | BH92: 959 | BI92: 807 | BJ92: 836 | BK92: 693 | BL92: 699 | BM92: 594 | BN92: 625 | BO92: 470 | BP92: 495 | BQ92: 392 | BR92: 370 | BS92: 303 | BT92: 271 | BU92: 228 | BV92: 211 | BW92: 261 | BX92: =BX58 -> 318 | BY92: 28 | BZ92: 140 | CA92: 106 | CB92: 129 | CC92: 171 | CD92: 685 | CE92: =CE58 -> 0 | CF92: 1245 | CG92: 1123 | CH92: 6679 | CI92: 1167 | CK92: =CK58 -> 546 | CL92: =CL58 -> 2282 | CM92: 6572 | CN92: 6784 | CO92: 3040 | CP92: 5691 | CQ92: 10909 | CR92: 3319 | CT92: =CT58 -> 2718 | CU92: 4968 | CV92: 15698
B93: 4 | C93: 86 | E93: MICRORED CHURIN - OYON | F93: 18654 | H93: 9204 | I93: 9450 | K93: =K82+K66+K72+K74+K80+K18+K35+K40 -> 113 | L93: =L82+L66+L72+L74+L80+L18+L35+L40 -> 103 | M93: 106 | N93: 113 | O93: 129 | P93: 133 | Q93: 145 | R93: 119 | S93: 131 | T93: 158 | U93: 134 | V93: 107 | W93: 145 | X93: 142 | Y93: 165 | Z93: 152 | AA93: 143 | AB93: 170 | AC93: 167 | AD93: 167 | AE93: 181 | AF93: 176 | AG93: 181 | AH93: 176 | AI93: 189 | AJ93: 208 | AK93: 200 | AL93: 193 | AM93: 170 | AN93: 172 | AO93: 199 | AP93: 200 | AQ93: 180 | AR93: 201 | AS93: 179 | AT93: 162 | AU93: 157 | AV93: 155 | AW93: 136 | AX93: 129 | AY93: 650 | AZ93: 673 | BA93: 687 | BB93: 713 | BC93: 586 | BD93: 683 | BE93: 617 | BF93: 638 | BG93: 539 | BH93: 495 | BI93: 535 | BJ93: 496 | BK93: 508 | BL93: 523 | BM93: 434 | BN93: 442 | BO93: 401 | BP93: 382 | BQ93: 334 | BR93: 330 | BS93: 262 | BT93: 261 | BU93: 202 | BV93: 253 | BW93: 299 | BX93: =BX82+BX66+BX72+BX74+BX80+BX18+BX35+BX40 -> 425 | BY93: 15 | BZ93: 55 | CA93: 50 | CB93: 58 | CC93: 53 | CD93: 270 | CE93: 0 | CF93: 925 | CG93: 847 | CH93: 3698 | CI93: 427 | CK93: 216 | CL93: 1034 | CM93: 3456 | CN93: 4459 | CO93: 2253 | CP93: 3300 | CQ93: 6496 | CR93: 3149 | CT93: 1492 | CU93: 3544 | CV93: 9219

Sheet etapas y mredes
C2: POBLACION ASIGNADA POR DISTRITO SIERRA, HOSPITAL, MICROREDES Y POR ETAPAS DE VIDA 2023
C7: DISTRITO | P7: MICROREDES
C8: 65 | D8: 67 | E8: 11 | F8: 74 | G8: 60 | H8: 28 | I8: 76 | J8: 33 | N8: 4 | P8: 82 | Q8: 83 | R8: 84 | S8: 85 | T8: 86
B9: POBLACION POR ETAPAS DE VIDA | C9: Andajes | D9: Caujul | E9: Checras | F9: Naván | G9: Oyón | H9: Paccho | I9: Pachangara | J9: Santa Leonor | K9: TOTAL | L9: PORC. (%) | N9: HOSPITAL HUACHO | P9: HUAURA | Q9: HUALMAY | R9: SAYAN | S9: VEGUETA | T9: CHURIN OYON | U9: Total Microredes
A10: 75 | B10: Neonatal (0-28dias) | C10: =VLOOKUP(C$8,Poblacion!$C$8:$CV$93,$A10) -> 0 | D10: =VLOOKUP(D$8,Poblacion!$C$8:$CV$93,$A10) -> 1 | E10: =VLOOKUP(E$8,Poblacion!$C$8:$CV$93,$A10) -> 0 | F10: =VLOOKUP(F$8,Poblacion!$C$8:$CV$93,$A10) -> 0 | G10: =VLOOKUP(G$8,Poblacion!$C$8:$CV$93,$A10) -> 9 | H10: =VLOOKUP(H$8,Poblacion!$C$8:$CV$93,$A10) -> 1 | I10: =VLOOKUP(I$8,Poblacion!$C$8:$CV$93,$A10) -> 2 | J10: =VLOOKUP(J$8,Poblacion!$C$8:$CV$93,$A10) -> 1 | K10: =SUM(C10:J10) -> 14 | L10: =IFERROR((K10/$K$20)*100,0) -> 0.08644643408 | N10: =VLOOKUP(N$8,Poblacion!$C$8:$CV$93,$A10) -> 19 | P10: =VLOOKUP(P$8,Poblacion!$C$8:$CV$93,$A10) -> 33 | Q10: =VLOOKUP(Q$8,Poblacion!$C$8:$CV$93,$A10) -> 61 | R10: =VLOOKUP(R$8,Poblacion!$C$8:$CV$93,$A10) -> 25 | S10: =VLOOKUP(S$8,Poblacion!$C$8:$CV$93,$A10) -> 28 | T10: =VLOOKUP(T$8,Poblacion!$C$8:$CV$93,$A10) -> 15 | U10: =SUM(P10:T10) -> 162
A11: 87 | B11: Infantil (Men.1año) | C11: =VLOOKUP(C$8,Poblacion!$C$8:$CV$93,$A11) -> 8 | D11: =VLOOKUP(D$8,Poblacion!$C$8:$CV$93,$A11) -> 10 | E11: =VLOOKUP(E$8,Poblacion!$C$8:$CV$93,$A11) -> 6 | F11: =VLOOKUP(F$8,Poblacion!$C$8:$CV$93,$A11) -> 5 | G11: =VLOOKUP(G$8,Poblacion!$C$8:$CV$93,$A11) -> 101 | H11: =VLOOKUP(H$8,Poblacion!$C$8:$CV$93,$A11) -> 7 | I11: =VLOOKUP(I$8,Poblacion!$C$8:$CV$93,$A11) -> 44 | J11: =VLOOKUP(J$8,Poblacion!$C$8:$CV$93,$A11) -> 7 | K11: =SUM(C11:J11) -> 188 | L11: =IFERROR((K11/$K$20)*100,0) -> 1.160852115 | N11: =VLOOKUP(N$8,Poblacion!$C$8:$CV$93,$A11) -> 516 | P11: =VLOOKUP(P$8,Poblacion!$C$8:$CV$93,$A11) -> 548 | Q11: =VLOOKUP(Q$8,Poblacion!$C$8:$CV$93,$A11) -> 1304 | R11: =VLOOKUP(R$8,Poblacion!$C$8:$CV$93,$A11) -> 459 | S11: =VLOOKUP(S$8,Poblacion!$C$8:$CV$93,$A11) -> 546 | T11: =VLOOKUP(T$8,Poblacion!$C$8:$CV$93,$A11) -> 216 | U11: =SUM(P11:T11) -> 3073
A12: 88 | B12: Pre-escolar (01-04años) | C12: =VLOOKUP(C$8,Poblacion!$C$8:$CV$93,$A12) -> 23 | D12: =VLOOKUP(D$8,Poblacion!$C$8:$CV$93,$A12) -> 26 | E12: =VLOOKUP(E$8,Poblacion!$C$8:$CV$93,$A12) -> 35 | F12: =VLOOKUP(F$8,Poblacion!$C$8:$CV$93,$A12) -> 32 | G12: =VLOOKUP(G$8,Poblacion!$C$8:$CV$93,$A12) -> 453 | H12: =VLOOKUP(H$8,Poblacion!$C$8:$CV$93,$A12) -> 69 | I12: =VLOOKUP(I$8,Poblacion!$C$8:$CV$93,$A12) -> 192 | J12: =VLOOKUP(J$8,Poblacion!$C$8:$CV$93,$A12) -> 53 | K12: 883 | L12: 5.452300093 | N12: =VLOOKUP(N$8,Poblacion!$C$8:$CV$93,$A12) -> 2419 | P12: =VLOOKUP(P$8,Poblacion!$C$8:$CV$93,$A12) -> 2459 | Q12: =VLOOKUP(Q$8,Poblacion!$C$8:$CV$93,$A12) -> 5717 | R12: =VLOOKUP(R$8,Poblacion!$C$8:$CV$93,$A12) -> 1854 | S12: =VLOOKUP(S$8,Poblacion!$C$8:$CV$93,$A12) -> 2282 | T12: =VLOOKUP(T$8,Poblacion!$C$8:$CV$93,$A12) -> 1034 | U12: 13346
A13: 89 | B13: Niño (0-11años) | C13: =VLOOKUP(C$8,Poblacion!$C$8:$CV$93,$A13) -> 66 | D13: =VLOOKUP(D$8,Poblacion!$C$8:$CV$93,$A13) -> 76 | E13: =VLOOKUP(E$8,Poblacion!$C$8:$CV$93,$A13) -> 102 | F13: =VLOOKUP(F$8,Poblacion!$C$8:$CV$93,$A13) -> 93 | G13: =VLOOKUP(G$8,Poblacion!$C$8:$CV$93,$A13) -> 1903 | H13: =VLOOKUP(H$8,Poblacion!$C$8:$CV$93,$A13) -> 197 | I13: =VLOOKUP(I$8,Poblacion!$C$8:$CV$93,$A13) -> 402 | J13: =VLOOKUP(J$8,Poblacion!$C$8:$CV$93,$A13) -> 127 | K13: 2966 | L13: 18.31429454 | N13: =VLOOKUP(N$8,Poblacion!$C$8:$CV$93,$A13) -> 8548 | P13: =VLOOKUP(P$8,Poblacion!$C$8:$CV$93,$A13) -> 7784 | Q13: =VLOOKUP(Q$8,Poblacion!$C$8:$CV$93,$A13) -> 18438 | R13: =VLOOKUP(R$8,Poblacion!$C$8:$CV$93,$A13) -> 5795 | S13: =VLOOKUP(S$8,Poblacion!$C$8:$CV$93,$A13) -> 6572 | T13: =VLOOKUP(T$8,Poblacion!$C$8:$CV$93,$A13) -> 3456 | U13: 42045
A14: 90 | B14: Escolar (05-17años) | C14: =VLOOKUP(C$8,Poblacion!$C$8:$CV$93,$A14) -> 67 | D14: =VLOOKUP(D$8,Poblacion!$C$8:$CV$93,$A14) -> 84 | E14: =VLOOKUP(E$8,Poblacion!$C$8:$CV$93,$A14) -> 159 | F14: =VLOOKUP(F$8,Poblacion!$C$8:$CV$93,$A14) -> 142 | G14: =VLOOKUP(G$8,Poblacion!$C$8:$CV$93,$A14) -> 2680 | H14: =VLOOKUP(H$8,Poblacion!$C$8:$CV$93,$A14) -> 234 | I14: =VLOOKUP(I$8,Poblacion!$C$8:$CV$93,$A14) -> 332 | J14: =VLOOKUP(J$8,Poblacion!$C$8:$CV$93,$A14) -> 135 | K14: 3833 | L14: 23.6677987 | N14: =VLOOKUP(N$8,Poblacion!$C$8:$CV$93,$A14) -> 10268 | P14: =VLOOKUP(P$8,Poblacion!$C$8:$CV$93,$A14) -> 8715 | Q14: =VLOOKUP(Q$8,Poblacion!$C$8:$CV$93,$A14) -> 20957 | R14: =VLOOKUP(R$8,Poblacion!$C$8:$CV$93,$A14) -> 6514 | S14: =VLOOKUP(S$8,Poblacion!$C$8:$CV$93,$A14) -> 6784 | T14: =VLOOKUP(T$8,Poblacion!$C$8:$CV$93,$A14) -> 4459 | U14: 47429
A15: 91 | B15: Adolescente (12-17años) | C15: =VLOOKUP(C$8,Poblacion!$C$8:$CV$93,$A15) -> 32 | D15: =VLOOKUP(D$8,Poblacion!$C$8:$CV$93,$A15) -> 44 | E15: =VLOOKUP(E$8,Poblacion!$C$8:$CV$93,$A15) -> 98 | F15: =VLOOKUP(F$8,Poblacion!$C$8:$CV$93,$A15) -> 86 | G15: =VLOOKUP(G$8,Poblacion!$C$8:$CV$93,$A15) -> 1331 | H15: =VLOOKUP(H$8,Poblacion!$C$8:$CV$93,$A15) -> 113 | I15: =VLOOKUP(I$8,Poblacion!$C$8:$CV$93,$A15) -> 166 | J15: =VLOOKUP(J$8,Poblacion!$C$8:$CV$93,$A15) -> 68 | K15: 1938 | L15: 11.96665638 | N15: =VLOOKUP(N$8,Poblacion!$C$8:$CV$93,$A15) -> 4655 | P15: =VLOOKUP(P$8,Poblacion!$C$8:$CV$93,$A15) -> 3938 | Q15: =VLOOKUP(Q$8,Poblacion!$C$8:$CV$93,$A15) -> 9540 | R15: =VLOOKUP(R$8,Poblacion!$C$8:$CV$93,$A15) -> 3032 | S15: =VLOOKUP(S$8,Poblacion!$C$8:$CV$93,$A15) -> 3040 | T15: =VLOOKUP(T$8,Poblacion!$C$8:$CV$93,$A15) -> 2253 | U15: 21803
A16: 92 | B16: Adulto Joven (18-29años) | C16: =VLOOKUP(C$8,Poblacion!$C$8:$CV$93,$A16) -> 34 | D16: =VLOOKUP(D$8,Poblacion!$C$8:$CV$93,$A16) -> 79 | E16: =VLOOKUP(E$8,Poblacion!$C$8:$CV$93,$A16) -> 120 | F16: =VLOOKUP(F$8,Poblacion!$C$8:$CV$93,$A16) -> 111 | G16: =VLOOKUP(G$8,Poblacion!$C$8:$CV$93,$A16) -> 1880 | H16: =VLOOKUP(H$8,Poblacion!$C$8:$CV$93,$A16) -> 205 | I16: =VLOOKUP(I$8,Poblacion!$C$8:$CV$93,$A16) -> 282 | J16: =VLOOKUP(J$8,Poblacion!$C$8:$CV$93,$A16) -> 121 | K16: 2832 | L16: 17.48687867 | N16: =VLOOKUP(N$8,Poblacion!$C$8:$CV$93,$A16) -> 9241 | P16: =VLOOKUP(P$8,Poblacion!$C$8:$CV$93,$A16) -> 7892 | Q16: =VLOOKUP(Q$8,Poblacion!$C$8:$CV$93,$A16) -> 18943 | R16: =VLOOKUP(R$8,Poblacion!$C$8:$CV$93,$A16) -> 5815 | S16: =VLOOKUP(S$8,Poblacion!$C$8:$CV$93,$A16) -> 5691 | T16: =VLOOKUP(T$8,Poblacion!$C$8:$CV$93,$A16) -> 3300 | U16: 41641
A17: 93 | B17: Adulto (30-59años) | C17: =VLOOKUP(C$8,Poblacion!$C$8:$CV$93,$A17) -> 117 | D17: =VLOOKUP(D$8,Poblacion!$C$8:$CV$93,$A17) -> 164 | E17: =VLOOKUP(E$8,Poblacion!$C$8:$CV$93,$A17) -> 259 | F17: =VLOOKUP(F$8,Poblacion!$C$8:$CV$93,$A17) -> 313 | G17: =VLOOKUP(G$8,Poblacion!$C$8:$CV$93,$A17) -> 3379 | H17: =VLOOKUP(H$8,Poblacion!$C$8:$CV$93,$A17) -> 519 | I17: =VLOOKUP(I$8,Poblacion!$C$8:$CV$93,$A17) -> 594 | J17: =VLOOKUP(J$8,Poblacion!$C$8:$CV$93,$A17) -> 281 | K17: 5626 | L17: 34.73911701 | N17: =VLOOKUP(N$8,Poblacion!$C$8:$CV$93,$A17) -> 20951 | P17: =VLOOKUP(P$8,Poblacion!$C$8:$CV$93,$A17) -> 15640 | Q17: =VLOOKUP(Q$8,Poblacion!$C$8:$CV$93,$A17) -> 38649 | R17: =VLOOKUP(R$8,Poblacion!$C$8:$CV$93,$A17) -> 10987 | S17: =VLOOKUP(S$8,Poblacion!$C$8:$CV$93,$A17) -> 10909 | T17: =VLOOKUP(T$8,Poblacion!$C$8:$CV$93,$A17) -> 6496 | U17: 82681
A18: 94 | B18: Adu.Mayor (60 a MAS) | C18: =VLOOKUP(C$8,Poblacion!$C$8:$CV$93,$A18) -> 194 | D18: =VLOOKUP(D$8,Poblacion!$C$8:$CV$93,$A18) -> 112 | E18: =VLOOKUP(E$8,Poblacion!$C$8:$CV$93,$A18) -> 268 | F18: =VLOOKUP(F$8,Poblacion!$C$8:$CV$93,$A18) -> 179 | G18: =VLOOKUP(G$8,Poblacion!$C$8:$CV$93,$A18) -> 1122 | H18: =VLOOKUP(H$8,Poblacion!$C$8:$CV$93,$A18) -> 432 | I18: =VLOOKUP(I$8,Poblacion!$C$8:$CV$93,$A18) -> 318 | J18: =VLOOKUP(J$8,Poblacion!$C$8:$CV$93,$A18) -> 208 | K18: 2833 | L18: 17.49305341 | N18: =VLOOKUP(N$8,Poblacion!$C$8:$CV$93,$A18) -> 9040 | P18: =VLOOKUP(P$8,Poblacion!$C$8:$CV$93,$A18) -> 4993 | Q18: =VLOOKUP(Q$8,Poblacion!$C$8:$CV$93,$A18) -> 14252 | R18: =VLOOKUP(R$8,Poblacion!$C$8:$CV$93,$A18) -> 3757 | S18: =VLOOKUP(S$8,Poblacion!$C$8:$CV$93,$A18) -> 3319 | T18: =VLOOKUP(T$8,Poblacion!$C$8:$CV$93,$A18) -> 3149 | U18: 29470
A19: 85 | B19: Gestantes | C19: =VLOOKUP(C$8,Poblacion!$C$8:$CV$93,$A19) -> 8 | D19: =VLOOKUP(D$8,Poblacion!$C$8:$CV$93,$A19) -> 17 | E19: =VLOOKUP(E$8,Poblacion!$C$8:$CV$93,$A19) -> 22 | F19: =VLOOKUP(F$8,Poblacion!$C$8:$CV$93,$A19) -> 16 | G19: =VLOOKUP(G$8,Poblacion!$C$8:$CV$93,$A19) -> 175 | H19: =VLOOKUP(H$8,Poblacion!$C$8:$CV$93,$A19) -> 21 | I19: =VLOOKUP(I$8,Poblacion!$C$8:$CV$93,$A19) -> 79 | J19: =VLOOKUP(J$8,Poblacion!$C$8:$CV$93,$A19) -> 15 | K19: 353 | L19: 2.179685088 | N19: =VLOOKUP(N$8,Poblacion!$C$8:$CV$93,$A19) -> 1017 | P19: =VLOOKUP(P$8,Poblacion!$C$8:$CV$93,$A19) -> 1019 | Q19: =VLOOKUP(Q$8,Poblacion!$C$8:$CV$93,$A19) -> 2525 | R19: =VLOOKUP(R$8,Poblacion!$C$8:$CV$93,$A19) -> 798 | S19: =VLOOKUP(S$8,Poblacion!$C$8:$CV$93,$A19) -> 1167 | T19: =VLOOKUP(T$8,Poblacion!$C$8:$CV$93,$A19) -> 427 | U19: 5936
B20: TOTAL | C20: =C13+C15+C16+C17+C18 -> 443 | D20: =D13+D15+D16+D17+D18 -> 475 | E20: 847 | F20: 782 | G20: 9615 | H20: 1466 | I20: 1762 | J20: 805 | K20: =K13+K15+K16+K17+K18 -> 16195 | L20: =IFERROR((K20/$K$20)*100,0) -> 100 | N20: =N13+N15+N16+N17+N18 -> 52435 | P20: 40247 | Q20: 99822 | R20: 29386 | S20: 29531 | T20: 18654 | U20: 217640
B21: =Interfaz!$A$22 -> Elaboración: Área de Estadística - RIS Huaura Oyón.
G25: 1 | H25: =VLOOKUP($G$25,Poblacion!$C$8:$E$93,3,FALSE) -> HUAURA - OYON
B26: POBLACION POR ETAPAS DE VIDA | C26: TOTAL | E26: PORC. (%) | H26: =+"POBLACION POR ETAPAS DE VIDA DEL "&$H$25 -> POBLACION POR ETAPAS DE VIDA DEL HUAURA - OYON
A27: 75 | B27: Neonatal (0-28dias) | C27: =VLOOKUP($G$25,Poblacion!$C$8:$CV$93,$A27) -> 181 | E27: =IFERROR(($C27/$C$37)*100,0) -> 0.06701842081 | H27: =B30 -> Niño (0-11años) | I27: =C30 -> 50593
A28: 87 | B28: Infantil (Men.1año) | C28: =VLOOKUP($G$25,Poblacion!$C$8:$CV$93,$A28) -> 3589 | E28: =IFERROR(($C28/$C$37)*100,0) -> 1.328890123 | H28: =B32 -> Adolescente (12-17años) | I28: 26458
A29: 88 | B29: Pre-escolar (01-04años) | C29: =VLOOKUP($G$25,Poblacion!$C$8:$CV$93,$A29) -> 15765 | E29: 5.837267426 | H29: Adulto Joven (18-29años) | I29: 50882
A30: 89 | B30: Niño (0-11años) | C30: =VLOOKUP($G$25,Poblacion!$C$8:$CV$93,$A30) -> 50593 | E30: 18.73294455 | H30: Adulto (30-59años) | I30: 103632
A31: 90 | B31: Escolar (05-17años) | C31: =VLOOKUP($G$25,Poblacion!$C$8:$CV$93,$A31) -> 57697 | E31: 21.363325 | H31: Adu.Mayor (60 a MAS) | I31: 38510
A32: 91 | B32: Adolescente (12-17años) | C32: =VLOOKUP($G$25,Poblacion!$C$8:$CV$93,$A32) -> 26458 | E32: 9.796537999
A33: 92 | B33: Adulto Joven (18-29años) | C33: =VLOOKUP($G$25,Poblacion!$C$8:$CV$93,$A33) -> 50882 | E33: 18.83995187
A34: 93 | B34: Adulto (30-59años) | C34: =VLOOKUP($G$25,Poblacion!$C$8:$CV$93,$A34) -> 103632 | E34: 38.37156345
A35: 94 | B35: Adu.Mayor (60 a MAS) | C35: =VLOOKUP($G$25,Poblacion!$C$8:$CV$93,$A35) -> 38510 | E35: 14.25900213
A36: 85 | B36: Gestantes | C36: =VLOOKUP($G$25,Poblacion!$C$8:$CV$93,$A36) -> 6953 | E36: 2.574470055
B37: TOTAL | C37: =C30+C32+C33+C34+C35 -> 270075 | E37: 100
B38: =Interfaz!$A$22 -> Elaboración: Área de Estadística - RIS Huaura Oyón.

Sheet Pobla_EESS
D2: POBLACIÓN SEGÚN DISTRITOS Y EE.SS - 2023
D8: SIN MICRORED | K8: MICRORED HUALMAY
D9: DISTRITO | E9: POBLACIÓN | F9: EE.SS | G9: POBLACIÓN | H9: MASCULINO | I9: FEMENINO | K9: DISTRITO | L9: POBLACIÓN | M9: EE.SS | N9: POBLACIÓN | O9: MASCULINO | P9: FEMENINO
D10: HUACHO | E10: =G10 -> 52435 | F10: HOSPITAL HUACHO | G10: =VLOOKUP($F10,Poblacion!$E$8:$I$87,2,FALSE) -> 52435 | H10: =VLOOKUP($F10,Poblacion!$E$8:$I$87,4,FALSE) -> 25572 | I10: =VLOOKUP($F10,Poblacion!$E$8:$I$87,5,FALSE) -> 26863 | K10: HUALMAY | L10: =SUM(N10:N12) -> 29453 | M10: C.S. HUALMAY | N10: =VLOOKUP($M10,Poblacion!$E$8:$I$87,2,FALSE) -> 14167 | O10: =VLOOKUP($M10,Poblacion!$E$8:$I$87,4,FALSE) -> 6999 | P10: =VLOOKUP($M10,Poblacion!$E$8:$I$87,5,FALSE) -> 7168
D11: HUACHO | F11: CLINICA SAN PEDRO | G11: 0 | K11: HUALMAY | M11: P.S. DGO. MANDAMIENTO | N11: =VLOOKUP($M11,Poblacion!$E$8:$I$87,2,FALSE) -> 10595 | O11: =VLOOKUP($M11,Poblacion!$E$8:$I$87,4,FALSE) -> 5231 | P11: =VLOOKUP($M11,Poblacion!$E$8:$I$87,5,FALSE) -> 5364
D12: HUACHO | F12: ESSALUD GUSTAVO LA NATA | G12: 0 | K12: HUALMAY | M12: P.S. CAMPO ALEGRE | N12: =VLOOKUP($M12,Poblacion!$E$8:$I$87,2,FALSE) -> 4691 | O12: =VLOOKUP($M12,Poblacion!$E$8:$I$87,4,FALSE) -> 2318 | P12: =VLOOKUP($M12,Poblacion!$E$8:$I$87,5,FALSE) -> 2373
D13: HUACHO | F13: CLINICA SAN BARTOLOME | G13: 0 | K13: S.MARIA | L13: =SUM(N13:N17) -> 40867 | M13: C.S. SANTA MARIA | N13: =VLOOKUP($M13,Poblacion!$E$8:$I$87,2,FALSE) -> 11442 | O13: =VLOOKUP($M13,Poblacion!$E$8:$I$87,4,FALSE) -> 5720 | P13: =VLOOKUP($M13,Poblacion!$E$8:$I$87,5,FALSE) -> 5722
D14: HUACHO | F14: GOLD ESTANDAR EIRL. | G14: 0 | K14: S.MARIA | M14: P.S. CHONTA | N14: =VLOOKUP($M14,Poblacion!$E$8:$I$87,2,FALSE) -> 6134 | O14: =VLOOKUP($M14,Poblacion!$E$8:$I$87,4,FALSE) -> 3069 | P14: =VLOOKUP($M14,Poblacion!$E$8:$I$87,5,FALSE) -> 3065
D15: CARQUIN | F15: INSITUTO NACIONAL PENITENCIARIO CARQUIN | G15: 0 | K15: S.MARIA | M15: P.S. ZAPATA | N15: =VLOOKUP($M15,Poblacion!$E$8:$I$87,2,FALSE) -> 3678 | O15: =VLOOKUP($M15,Poblacion!$E$8:$I$87,4,FALSE) -> 1840 | P15: =VLOOKUP($M15,Poblacion!$E$8:$I$87,5,FALSE) -> 1838
F16: OTROS ESTABLECIMIENTOS | G16: 0 | K16: S.MARIA | M16: P.S. AMADO VELASQUEZ | N16: =VLOOKUP($M16,Poblacion!$E$8:$I$87,2,FALSE) -> 12257 | O16: =VLOOKUP($M16,Poblacion!$E$8:$I$87,4,FALSE) -> 6132 | P16: =VLOOKUP($M16,Poblacion!$E$8:$I$87,5,FALSE) -> 6125
D17: TOTAL SIN MICRORED | G17: =SUM(G10:G16) -> 52435 | H17: =SUM(H10:H16) -> 25572 | I17: =SUM(I10:I16) -> 26863 | K17: S.MARIA | M17: P.S. SAN BARTOLOME | N17: =VLOOKUP($M17,Poblacion!$E$8:$I$87,2,FALSE) -> 7356 | O17: =VLOOKUP($M17,Poblacion!$E$8:$I$87,4,FALSE) -> 3678 | P17: =VLOOKUP($M17,Poblacion!$E$8:$I$87,5,FALSE) -> 3678
D18: ='etapas y mredes'!B21 -> Elaboración: Área de Estadística - RIS Huaura Oyón. | K18: CARQUIN | L18: =N18 -> 9116 | M18: P.S. CARQUIN | N18: =VLOOKUP($M18,Poblacion!$E$8:$I$87,2,FALSE) -> 9116 | O18: =VLOOKUP($M18,Poblacion!$E$8:$I$87,4,FALSE) -> 4596 | P18: =VLOOKUP($M18,Poblacion!$E$8:$I$87,5,FALSE) -> 4520
K19: HUACHO | L19: =N19 -> 20386 | M19: C.S. MANZANARES | N19: =VLOOKUP($M19,Poblacion!$E$8:$I$87,2,FALSE) -> 20386 | O19: =VLOOKUP($M19,Poblacion!$E$8:$I$87,4,FALSE) -> 9941 | P19: =VLOOKUP($M19,Poblacion!$E$8:$I$87,5,FALSE) -> 10445
K20: TOTAL MCR HUALMAY | M20: TOTAL MICRORED HUALMAY | N20: =SUM(N10:N19) -> 99822 | O20: =SUM(O10:O19) -> 49524 | P20: =SUM(P10:P19) -> 50298
K21: =D18 -> Elaboración: Área de Estadística - RIS Huaura Oyón.
D24: MICRORED HUAURA | K24: MICRORED VEGUETA
D25: DISTRITO | E25: POBLACIÓN | F25: EE.SS | G25: POBLACIÓN | H25: MASCULINO | I25: FEMENINO | K25: DISTRITO | L25: POBLACIÓN | M25: EE.SS | N25: POBLACIÓN | O25: MASCULINO | P25: FEMENINO
D26: HUAURA | E26: =SUM(G26:G30) -> 38198 | F26: C.S. HUAURA | G26: =VLOOKUP($F26,Poblacion!$E$8:$I$87,2,FALSE) -> 19108 | H26: =VLOOKUP($F26,Poblacion!$E$8:$I$87,4,FALSE) -> 9683 | I26: =VLOOKUP($F26,Poblacion!$E$8:$I$87,5,FALSE) -> 9425 | K26: VEGUETA | L26: =SUM(N26:N31) -> 29531 | M26: C.S. VEGUETA | N26: =VLOOKUP($M26,Poblacion!$E$8:$I$87,2,FALSE) -> 8284 | O26: =VLOOKUP($M26,Poblacion!$E$8:$I$87,4,FALSE) -> 4153 | P26: =VLOOKUP($M26,Poblacion!$E$8:$I$87,5,FALSE) -> 4131
D27: HUAURA | F27: C.S. SOCORRO | G27: =VLOOKUP($F27,Poblacion!$E$8:$I$87,2,FALSE) -> 12603 | H27: =VLOOKUP($F27,Poblacion!$E$8:$I$87,4,FALSE) -> 6382 | I27: =VLOOKUP($F27,Poblacion!$E$8:$I$87,5,FALSE) -> 6221 | K27: VEGUETA | M27: P.S. MAZO | N27: =VLOOKUP($M27,Poblacion!$E$8:$I$87,2,FALSE) -> 2955 | O27: =VLOOKUP($M27,Poblacion!$E$8:$I$87,4,FALSE) -> 1483 | P27: =VLOOKUP($M27,Poblacion!$E$8:$I$87,5,FALSE) -> 1472
D28: HUAURA | F28: P.S. HUMAYA | G28: =VLOOKUP($F28,Poblacion!$E$8:$I$87,2,FALSE) -> 3456 | H28: =VLOOKUP($F28,Poblacion!$E$8:$I$87,4,FALSE) -> 1750 | I28: =VLOOKUP($F28,Poblacion!$E$8:$I$87,5,FALSE) -> 1706 | K28: VEGUETA | M28: P.S. PRIMAVERA | N28: =VLOOKUP($M28,Poblacion!$E$8:$I$87,2,FALSE) -> 6498 | O28: =VLOOKUP($M28,Poblacion!$E$8:$I$87,4,FALSE) -> 3257 | P28: =VLOOKUP($M28,Poblacion!$E$8:$I$87,5,FALSE) -> 3241
D29: HUAURA | F29: P.S. VILCAHUAURA | G29: =VLOOKUP($F29,Poblacion!$E$8:$I$87,2,FALSE) -> 2651 | H29: =VLOOKUP($F29,Poblacion!$E$8:$I$87,4,FALSE) -> 1345 | I29: =VLOOKUP($F29,Poblacion!$E$8:$I$87,5,FALSE) -> 1306 | K29: VEGUETA | M29: P.S. MARIATEGUI | N29: =VLOOKUP($M29,Poblacion!$E$8:$I$87,2,FALSE) -> 7654 | O29: =VLOOKUP($M29,Poblacion!$E$8:$I$87,4,FALSE) -> 3838 | P29: =VLOOKUP($M29,Poblacion!$E$8:$I$87,5,FALSE) -> 3816
D30: HUAURA | F30: P.S. PEÑICO | G30: =VLOOKUP($F30,Poblacion!$E$8:$I$87,2,FALSE) -> 380 | H30: =VLOOKUP($F30,Poblacion!$E$8:$I$87,4,FALSE) -> 195 | I30: =VLOOKUP($F30,Poblacion!$E$8:$I$87,5,FALSE) -> 185 | K30: VEGUETA | M30: P.S. MEDIO MUNDO | N30: =VLOOKUP($M30,Poblacion!$E$8:$I$87,2,FALSE) -> 3849 | O30: =VLOOKUP($M30,Poblacion!$E$8:$I$87,4,FALSE) -> 1927 | P30: =VLOOKUP($M30,Poblacion!$E$8:$I$87,5,FALSE) -> 1922
D31: AMBAR | E31: =SUM(G31:G32) -> 2049 | F31: C.S. AMBAR | G31: =VLOOKUP($F31,Poblacion!$E$8:$I$87,2,FALSE) -> 1235 | H31: =VLOOKUP($F31,Poblacion!$E$8:$I$87,4,FALSE) -> 660 | I31: =VLOOKUP($F31,Poblacion!$E$8:$I$87,5,FALSE) -> 575 | K31: VEGUETA | M31: P.S. TIROLER | N31: =VLOOKUP($M31,Poblacion!$E$8:$I$87,2,FALSE) -> 291 | O31: =VLOOKUP($M31,Poblacion!$E$8:$I$87,4,FALSE) -> 144 | P31: =VLOOKUP($M31,Poblacion!$E$8:$I$87,5,FALSE) -> 147
D32: AMBAR | F32: P.S. AYNACA | G32: =VLOOKUP($F32,Poblacion!$E$8:$I$87,2,FALSE) -> 814 | H32: =VLOOKUP($F32,Poblacion!$E$8:$I$87,4,FALSE) -> 430 | I32: =VLOOKUP($F32,Poblacion!$E$8:$I$87,5,FALSE) -> 384 | K32: TOTAL MCR VEGUETA | N32: =SUM(N26:N31) -> 29531 | O32: =SUM(O26:O31) -> 14802 | P32: =SUM(P26:P31) -> 14729
D33: TOTAL MCR HUAURA | F33: TOTAL MICRORED HUAURA | G33: =SUM(G26:G32) -> 40247 | H33: =SUM(H26:H32) -> 20445 | I33: 19802 | K33: =K21 -> Elaboración: Área de Estadística - RIS Huaura Oyón.
D34: =K21 -> Elaboración: Área de Estadística - RIS Huaura Oyón.
D38: MICRORED SAYAN | K38: MICRORED CHURIN OYÓN
D39: DISTRITO | E39: POBLACIÓN | F39: EE.SS | G39: POBLACIÓN | H39: MASCULINO | I39: FEMENINO | K39: DISTRITO | L39: POBLACIÓN | M39: EE.SS | N39: POBLACIÓN | O39: MASCULINO | P39: FEMENINO
D40: SAYAN | E40: =SUM(G40:G46) -> 25487 | F40: C.S. SAYAN | G40: =VLOOKUP($F40,Poblacion!$E$8:$I$87,2,FALSE) -> 8144 | H40: =VLOOKUP($F40,Poblacion!$E$8:$I$87,4,FALSE) -> 4139 | I40: =VLOOKUP($F40,Poblacion!$E$8:$I$87,5,FALSE) -> 4005 | K40: PACHANGARA | L40: =SUM(N40:N42) -> 2285 | M40: C.S. CHURIN | N40: =VLOOKUP(M40,Poblacion!$E$5:$I$88,2,FALSE) -> 1762 | O40: =VLOOKUP(M40,Poblacion!$E$5:$I$88,4,FALSE) -> 900 | P40: =VLOOKUP(M40,Poblacion!$E$5:$I$88,5,FALSE) -> 862
D41: SAYAN | F41: C.S. 9 DE OCTUBRE | G41: =VLOOKUP($F41,Poblacion!$E$8:$I$87,2,FALSE) -> 6893 | H41: =VLOOKUP($F41,Poblacion!$E$8:$I$87,4,FALSE) -> 3501 | I41: =VLOOKUP($F41,Poblacion!$E$8:$I$87,5,FALSE) -> 3392 | K41: PACHANGARA | M41: P.S. PACHANGARA | N41: =VLOOKUP(M41,Poblacion!$E$5:$I$88,2,FALSE) -> 246 | O41: =VLOOKUP(M41,Poblacion!$E$5:$I$88,4,FALSE) -> 128 | P41: =VLOOKUP(M41,Poblacion!$E$5:$I$88,5,FALSE) -> 118
D42: SAYAN | F42: P.S. CHAMBARA | G42: =VLOOKUP($F42,Poblacion!$E$8:$I$87,2,FALSE) -> 756 | H42: =VLOOKUP($F42,Poblacion!$E$8:$I$87,4,FALSE) -> 375 | I42: =VLOOKUP($F42,Poblacion!$E$8:$I$87,5,FALSE) -> 381 | K42: PACHANGARA | M42: P.S. HUANCAHUASI | N42: =VLOOKUP(M42,Poblacion!$E$5:$I$88,2,FALSE) -> 277 | O42: =VLOOKUP(M42,Poblacion!$E$5:$I$88,4,FALSE) -> 140 | P42: =VLOOKUP(M42,Poblacion!$E$5:$I$88,5,FALSE) -> 137
D43: SAYAN | F43: P.S. LA MERCED | G43: =VLOOKUP($F43,Poblacion!$E$8:$I$87,2,FALSE) -> 1024 | H43: =VLOOKUP($F43,Poblacion!$E$8:$I$87,4,FALSE) -> 522 | I43: =VLOOKUP($F43,Poblacion!$E$8:$I$87,5,FALSE) -> 502 | K43: OYON | L43: =SUM(N43:N47) -> 11551 | M43: C.S. OYON | N43: =VLOOKUP(M43,Poblacion!$E$5:$I$88,2,FALSE) -> 9615 | O43: =VLOOKUP(M43,Poblacion!$E$5:$I$88,4,FALSE) -> 4681 | P43: =VLOOKUP(M43,Poblacion!$E$5:$I$88,5,FALSE) -> 4934
D44: SAYAN | F44: P.S. LA VILLA | G44: =VLOOKUP($F44,Poblacion!$E$8:$I$87,2,FALSE) -> 7154 | H44: =VLOOKUP($F44,Poblacion!$E$8:$I$87,4,FALSE) -> 3630 | I44: =VLOOKUP($F44,Poblacion!$E$8:$I$87,5,FALSE) -> 3524 | K44: OYON | M44: P.S. MALLAY | N44: =VLOOKUP(M44,Poblacion!$E$5:$I$88,2,FALSE) -> 573 | O44: =VLOOKUP(M44,Poblacion!$E$5:$I$88,4,FALSE) -> 278 | P44: =VLOOKUP(M44,Poblacion!$E$5:$I$88,5,FALSE) -> 295
D45: SAYAN | F45: P.S. EL AHORCADO | G45: =VLOOKUP($F45,Poblacion!$E$8:$I$87,2,FALSE) -> 766 | H45: =VLOOKUP($F45,Poblacion!$E$8:$I$87,4,FALSE) -> 385 | I45: =VLOOKUP($F45,Poblacion!$E$8:$I$87,5,FALSE) -> 381 | K45: OYON | M45: P.S. NAVA | N45: =VLOOKUP(M45,Poblacion!$E$5:$I$88,2,FALSE) -> 106 | O45: =VLOOKUP(M45,Poblacion!$E$5:$I$88,4,FALSE) -> 50 | P45: =VLOOKUP(M45,Poblacion!$E$5:$I$88,5,FALSE) -> 56
D46: SAYAN | F46: P.S. LA UNION | G46: =VLOOKUP($F46,Poblacion!$E$8:$I$87,2,FALSE) -> 750 | H46: =VLOOKUP($F46,Poblacion!$E$8:$I$87,4,FALSE) -> 389 | I46: =VLOOKUP($F46,Poblacion!$E$8:$I$87,5,FALSE) -> 361 | K46: OYON | M46: P.S. TINTA | N46: =VLOOKUP(M46,Poblacion!$E$5:$I$88,2,FALSE) -> 335 | O46: =VLOOKUP(M46,Poblacion!$E$5:$I$88,4,FALSE) -> 161 | P46: =VLOOKUP(M46,Poblacion!$E$5:$I$88,5,FALSE) -> 174
D47: L.PRADO | E47: =SUM(G47:G50) -> 1995 | F47: P.S. AUQUIMARCA | G47: =VLOOKUP($F47,Poblacion!$E$8:$I$87,2,FALSE) -> 108 | H47: =VLOOKUP($F47,Poblacion!$E$8:$I$87,4,FALSE) -> 59 | I47: =VLOOKUP($F47,Poblacion!$E$8:$I$87,5,FALSE) -> 49 | K47: OYON | M47: P.S. RAPAZ | N47: =VLOOKUP(M47,Poblacion!$E$5:$I$88,2,FALSE) -> 922 | O47: =VLOOKUP(M47,Poblacion!$E$5:$I$88,4,FALSE) -> 444 | P47: =VLOOKUP(M47,Poblacion!$E$5:$I$88,5,FALSE) -> 478
D48: L.PRADO | F48: P.S. PARAN | G48: =VLOOKUP($F48,Poblacion!$E$8:$I$87,2,FALSE) -> 684 | H48: =VLOOKUP($F48,Poblacion!$E$8:$I$87,4,FALSE) -> 385 | I48: =VLOOKUP($F48,Poblacion!$E$8:$I$87,5,FALSE) -> 299 | K48: ANDAJES | L48: =N48 -> 443 | M48: P.S. ANDAJES | N48: =VLOOKUP(M48,Poblacion!$E$5:$I$88,2,FALSE) -> 443 | O48: =VLOOKUP(M48,Poblacion!$E$5:$I$88,4,FALSE) -> 208 | P48: =VLOOKUP(M48,Poblacion!$E$5:$I$88,5,FALSE) -> 235
D49: L.PRADO | F49: P.S. SANTA CRUZ | G49: =VLOOKUP($F49,Poblacion!$E$8:$I$87,2,FALSE) -> 396 | H49: =VLOOKUP($F49,Poblacion!$E$8:$I$87,4,FALSE) -> 222 | I49: =VLOOKUP($F49,Poblacion!$E$8:$I$87,5,FALSE) -> 174 | K49: CAUJUL | L49: =N49 -> 475 | M49: P.S. CAUJUL | N49: =VLOOKUP(M49,Poblacion!$E$5:$I$88,2,FALSE) -> 475 | O49: =VLOOKUP(M49,Poblacion!$E$5:$I$88,4,FALSE) -> 233 | P49: =VLOOKUP(M49,Poblacion!$E$5:$I$88,5,FALSE) -> 242
D50: L.PRADO | F50: P.S. HUANANGUI | G50: =VLOOKUP($F50,Poblacion!$E$8:$I$87,2,FALSE) -> 807 | H50: =VLOOKUP($F50,Poblacion!$E$8:$I$87,4,FALSE) -> 457 | I50: =VLOOKUP($F50,Poblacion!$E$8:$I$87,5,FALSE) -> 350 | K50: NAVAN | L50: 782 | M50: P.S. NAVAN | N50: =VLOOKUP(M50,Poblacion!$E$5:$I$88,2,FALSE) -> 782 | O50: =VLOOKUP(M50,Poblacion!$E$5:$I$88,4,FALSE) -> 390 | P50: =VLOOKUP(M50,Poblacion!$E$5:$I$88,5,FALSE) -> 392
D51: COCHAMARCA | E51: =SUM(G51:G53) -> 991 | F51: P.S. COCHAMARCA | G51: =VLOOKUP($F51,Poblacion!$E$8:$I$87,2,FALSE) -> 417 | H51: =VLOOKUP($F51,Poblacion!$E$8:$I$87,4,FALSE) -> 223 | I51: =VLOOKUP($F51,Poblacion!$E$8:$I$87,5,FALSE) -> 194 | K51: CHECRAS | L51: 847 | M51: P.S. PUÑUN | N51: =VLOOKUP(M51,Poblacion!$E$5:$I$88,2,FALSE) -> 847 | O51: =VLOOKUP(M51,Poblacion!$E$5:$I$88,4,FALSE) -> 420 | P51: =VLOOKUP(M51,Poblacion!$E$5:$I$88,5,FALSE) -> 427
D52: COCHAMARCA | F52: P.S. COLCAPAMPA | G52: =VLOOKUP($F52,Poblacion!$E$8:$I$87,2,FALSE) -> 464 | H52: =VLOOKUP($F52,Poblacion!$E$8:$I$87,4,FALSE) -> 250 | I52: =VLOOKUP($F52,Poblacion!$E$8:$I$87,5,FALSE) -> 214 | K52: PACCHO | L52: =SUM(N52:N55) -> 1466 | M52: P.S. PACCHO | N52: =VLOOKUP(M52,Poblacion!$E$5:$I$88,2,FALSE) -> 625 | O52: =VLOOKUP(M52,Poblacion!$E$5:$I$88,4,FALSE) -> 323 | P52: =VLOOKUP(M52,Poblacion!$E$5:$I$88,5,FALSE) -> 302
D53: COCHAMARCA | F53: P.S. YARUCAYA | G53: =VLOOKUP($F53,Poblacion!$E$8:$I$87,2,FALSE) -> 110 | H53: =VLOOKUP($F53,Poblacion!$E$8:$I$87,4,FALSE) -> 56 | I53: =VLOOKUP($F53,Poblacion!$E$8:$I$87,5,FALSE) -> 54 | K53: PACCHO | M53: P.S. LACSANGA | N53: =VLOOKUP(M53,Poblacion!$E$5:$I$88,2,FALSE) -> 363 | O53: =VLOOKUP(M53,Poblacion!$E$5:$I$88,4,FALSE) -> 181 | P53: =VLOOKUP(M53,Poblacion!$E$5:$I$88,5,FALSE) -> 182
D54: IHUARI - ACOTAMA | E54: =G54 -> 913 | F54: IHUARI - ACOTAMA | G54: =VLOOKUP($F54,Poblacion!$E$8:$I$87,2,FALSE) -> 913 | H54: =VLOOKUP($F54,Poblacion!$E$8:$I$87,4,FALSE) -> 481 | I54: =VLOOKUP($F54,Poblacion!$E$8:$I$87,5,FALSE) -> 432 | K54: PACCHO | M54: P.S. AYARANGA | N54: =VLOOKUP(M54,Poblacion!$E$5:$I$88,2,FALSE) -> 233 | O54: =VLOOKUP(M54,Poblacion!$E$5:$I$88,4,FALSE) -> 118 | P54: =VLOOKUP(M54,Poblacion!$E$5:$I$88,5,FALSE) -> 115
D55: TOTAL MICRORED SAYAN | G55: =SUM(G40:G54) -> 29386 | H55: =SUM(H40:H54) -> 15074 | I55: 14312 | K55: PACCHO | M55: P.S. MUZGA | N55: =VLOOKUP(M55,Poblacion!$E$5:$I$88,2,FALSE) -> 245 | O55: =VLOOKUP(M55,Poblacion!$E$5:$I$88,4,FALSE) -> 123 | P55: =VLOOKUP(M55,Poblacion!$E$5:$I$88,5,FALSE) -> 122
D56: =K33 -> Elaboración: Área de Estadística - RIS Huaura Oyón. | K56: S.LEONOR | L56: =SUM(N56:N58) -> 805 | M56: P.S. CHIUCHIN | N56: =VLOOKUP(M56,Poblacion!$E$5:$I$88,2,FALSE) -> 512 | O56: =VLOOKUP(M56,Poblacion!$E$5:$I$88,4,FALSE) -> 272 | P56: =VLOOKUP(M56,Poblacion!$E$5:$I$88,5,FALSE) -> 240
K57: S.LEONOR | M57: P.S. PARQUIN | N57: =VLOOKUP(M57,Poblacion!$E$5:$I$88,2,FALSE) -> 168 | O57: =VLOOKUP(M57,Poblacion!$E$5:$I$88,4,FALSE) -> 87 | P57: =VLOOKUP(M57,Poblacion!$E$5:$I$88,5,FALSE) -> 81
K58: S.LEONOR | M58: P.S. JUCUL | N58: =VLOOKUP(M58,Poblacion!$E$5:$I$88,2,FALSE) -> 125 | O58: =VLOOKUP(M58,Poblacion!$E$5:$I$88,4,FALSE) -> 67 | P58: =VLOOKUP(M58,Poblacion!$E$5:$I$88,5,FALSE) -> 58
K59: TOTAL MICRORED CHURIN - OYON | N59: =SUM(N40:N58) -> 18654 | O59: =SUM(O40:O58) -> 9204 | P59: 9450
K60: =K33 -> Elaboración: Área de Estadística - RIS Huaura Oyón.
